{"text_format":"1","workbook":"xlsx","n_sheets":31,"sheets":["Инструкция","Выбор субъекта РФ","Обновление","modProv","Лог обновления","Титульный","Список листов","Ф.7.1","Ф.7.2","Ф.8","Ф.9","Ф.10","Ф.11.1","Ф.11.2","Ф.12","Ф.13","Комментарий","Проверка","modHyp","modUpdTemplMain","modHypShowHide","modChange","TEHSHEET","REESTR_ORG","REESTR_FILTERED","modfrmReestr","modCommandButton","AllSheetsInThisWorkbook","modF_7_1","modF_7_2","modHandler"],"not_rendered":{"charts":0,"images":17,"macros":1,"external_links":0,"defined_names":74,"comments":2,"pivot_tables":0},"unopened":[],"bounds":{"document_bytes":16777216,"sheet_cells":100000,"rows_first":2000,"rows_last":500,"rows_between":2000,"halvings":0,"cell_chars":16384,"cell_head_chars":4096},"cells_cut":0,"cells_raw":0,"read":"whole","date_system":"1900"}

{"sheet":"Инструкция","index":0,"n_rows":39,"n_cols":7,"rows_kept":39,"cut":false,"hidden":false,"merged":[[38,2,38,3],[38,4,38,7],[36,4,36,7],[29,2,29,3],[29,4,29,7],[35,2,35,3],[30,2,30,3],[37,2,37,3],[37,4,37,7],[30,4,30,7],[26,2,26,3],[26,4,26,7],[36,2,36,3],[33,2,33,4],[31,2,31,3],[31,4,31,7],[34,2,34,3],[34,4,34,7],[35,4,35,7],[28,4,28,7],[27,2,27,3],[27,4,27,7],[28,2,28,3],[2,11,2,13],[3,1,3,9],[8,2,8,7],[9,2,9,7],[6,2,6,7],[7,2,7,7],[25,2,25,3],[1,4,1,9],[2,6,2,9],[10,2,10,7],[11,2,11,7],[15,4,16,7],[19,2,19,7],[25,4,25,7],[20,2,20,7],[21,2,21,7],[23,2,23,7],[24,2,24,4],[22,2,22,7]]}
[]
[null,null,null,null,"Код шаблона: INVEST.EE.FACT"]
[null,null,null,null,null,null,{"$f":"\"Версия \" & GetVersion()","v":"Версия 1.4"}]
[null,"Инструкция по заполнению шаблона"]
[]
[]
[null,null,"Технические требования:\n\n• макросы во время работы должны быть включены \n\n"]
[null,null,"• на рабочем месте должен быть установлен MS Office 2003, 2007, 2010 x86 с полной версией MS Excel"]
[null,null,"• макросы во время работы должны быть включены "]
[null,null,"• для корректной работы шаблона требуется выбрать низкий уровень безопасности"]
[null,null,"(В меню MS Excel 2003: Сервис ¦ Макрос ¦ Безопасность ¦ выбрать нижний пункт «Низкая безопасность» ¦ «OK»)"]
[null,null,"(В MS Excel 2007 после открытия файла шаблона нажать на кнопку «Параметры…» в строке «Предупреждение системы безопасности», далее выбрать «Включить это содержимое» ¦ «OK»)"]
[null,null,null,"Цвета ячеек:"]
[null,null,null,"●","Голубой – ячейки, обязательные для заполнения;"]
[null,null,null,"●","Желтый – ячейки, предназначенные для заполнения;"]
[null,null,null,"●","Зеленый – ячейки с формулами/константами или заполняемые автоматически (например, при выборе организации из реестра)."]
[]
[null,null,null,"Пояснение к заполнению (необходимо нажать один раз)."]
[]
[null,null,"Шаблон может быть сохранен на любом этапе заполнения!"]
[null,null,"• При сохранении шаблона осуществляется проверка на наличие и корректность (например, КПП – 9 цифр) обязательных параметров на листах. "]
[null,null,"• Если какая-то ячейка не удовлетворяет условию проверки, на лист «Проверка» добавляется гиперссылка на данную ячейку и причина, по которой шаблон не будет загружен в хранилище данных. "]
[null,null,"• В колонке «Статус ошибки» для каждого сообщения возможны 2 значения: ошибка и предупреждение. "]
[null,null,"• При наличии сообщений со статусом «Ошибка» шаблон будет отклонён системой, сообщения со статусом «Предупреждение» носят информационный характер, и такой шаблон будет принят системой."]
[null,null,"Организационно-технические консультации:"]
[null,null,"ФИО:",null,"Голубев Игорь Александрович, Булеков Олег Викторович"]
[null,null,"телефон:",null,"(391) 265-63-83"]
[null,null,"e-mail:",null,"krrec@mail.ru"]
[null,null,"WEB-сайт:",null,"http://eias.ru/"]
[null,null,"Комментарий",null,"-"]
[null,null,"Дистрибутивы:",null,"Для устранения проблем с MS Excel (например, \"Compile error in hidden module\") воспользуйтесь пакетами библиотек: "]
[null,null,"Дистрибутивы (ссылка):",null,"http://eias.ru/?page=show_distrs"]
[]
[null,null,"Консультации по методологии заполнения форм:"]
[null,null,"ФИО:",null,"Максименко Евгений Борисович"]
[null,null,"телефон:",null,"(391) 265-65-69"]
[null,null,"e-mail:",null,"maximenko@krasrec.ru"]
[null,null,"WEB-сайт:",null,"www.krasnoyarsk.eias.ru"]
[null,null,"Комментарий",null,"-"]

{"sheet":"Выбор субъекта РФ","index":1,"n_rows":3,"n_cols":6,"rows_kept":3,"cut":false,"hidden":true,"merged":[[2,5,2,8],[2,3,2,4]]}
[]
[null,null,null,null,null,27]
[null,null,null,"Субъект РФ",null,"Красноярский край"]

{"sheet":"Обновление","index":2,"n_rows":24,"n_cols":15,"rows_kept":24,"cut":false,"hidden":false,"merged":[[1,14,1,16],[2,2,2,15],[23,2,23,7],[23,8,23,15]]}
[]
[null,null,null,null,null,null,null,null,null,null,null,null,null,null,{"$f":"version","v":"Версия 1.4"}]
[null,null,"Инструкция по обновлению шаблона"]
[]
[]
[]
[]
[]
[]
[]
[]
[]
[]
[]
[]
[]
[]
[]
[]
[]
[]
[]
[]
[null,null,"Если компьютер имеет подключение к Интернет, можно автоматически проверять наличие доступных обновлений. Выберите способ оповещения о наличии обновлений для шаблона:"]

{"sheet":"modProv","index":3,"n_rows":0,"n_cols":0,"rows_kept":0,"cut":false,"hidden":true,"merged":[]}

{"sheet":"Лог обновления","index":4,"n_rows":279,"n_cols":3,"rows_kept":279,"cut":false,"hidden":false,"merged":[]}
["Дата/Время","Сообщение","Статус"]
["4/17/2012  4:11:21 PM","Проверка доступных обновлений...","Информация"]
["4/17/2012  4:11:22 PM","Доступно обновление до версии 1.4","Информация"]
["4/17/2012  4:11:22 PM","Описание изменений: 1. добавление столбца Примечание на лист 'Ф.7.1'","Информация"]
["4/17/2012  4:11:22 PM","Размер файла обновления: 378880 байт","Информация"]
["4/17/2012  4:11:24 PM","Подготовка к обновлению...","Информация"]
["4/17/2012  4:11:26 PM","Сохранение файла резервной копии: C:\\Users\\SERGEY.ENERGO\\Documents\\00..BKP.BKP..BKP..BKP.xls","Информация"]
["4/17/2012  4:11:36 PM","Резервная копия создана: C:\\Users\\SERGEY.ENERGO\\Documents\\00..BKP.BKP..BKP..BKP.xls","Информация"]
["4/17/2012  4:11:36 PM","Создание книги для установки обновлений...","Информация"]
["4/17/2012  4:11:46 PM","Файл обновления загружен: C:\\app\\UPDATE.INVEST.EE.FACT.TO.1.4.64.xls","Информация"]
["4/17/2012  4:11:46 PM","Файл обновления загружен: C:\\app\\UPDATE.INVEST.EE.FACT.TO.1.4.64.xls","Информация"]
["4/17/2012  4:12:31 PM","Проверка доступных обновлений...","Информация"]
["4/17/2012  4:12:32 PM","Версия шаблона 1.4 актуальна, обновление не требуется","Информация"]
["4/17/2012  4:22:44 PM","Проверка доступных обновлений...","Информация"]
["4/17/2012  4:22:45 PM","Версия шаблона 1.4 актуальна, обновление не требуется","Информация"]
["4/24/2012  4:37:41 PM","Проверка доступных обновлений...","Информация"]
["4/24/2012  4:37:44 PM","Версия шаблона 1.4 актуальна, обновление не требуется","Информация"]
["4/25/2012  8:47:06 AM","Проверка доступных обновлений...","Информация"]
["4/25/2012  8:47:07 AM","Версия шаблона 1.4 актуальна, обновление не требуется","Информация"]
["4/25/2012  9:34:52 AM","Проверка доступных обновлений...","Информация"]
["4/25/2012  9:34:54 AM","Версия шаблона 1.4 актуальна, обновление не требуется","Информация"]
["4/25/2012  11:10:19 AM","Проверка доступных обновлений...","Информация"]
["4/25/2012  11:10:41 AM","Нет доступных обновлений для шаблона с кодом INVEST.EE.FACT!","Информация"]
["4/25/2012  11:23:41 AM","Проверка доступных обновлений...","Информация"]
["4/25/2012  11:24:03 AM","Нет доступных обновлений для шаблона с кодом INVEST.EE.FACT!","Информация"]
["4/25/2012  11:37:00 AM","Проверка доступных обновлений...","Информация"]
["4/25/2012  11:37:22 AM","Нет доступных обновлений для шаблона с кодом INVEST.EE.FACT!","Информация"]
["4/25/2012  11:38:02 AM","Проверка доступных обновлений...","Информация"]
["4/25/2012  11:38:27 AM","Нет доступных обновлений для шаблона с кодом INVEST.EE.FACT!","Информация"]
["4/25/2012  11:47:59 AM","Проверка доступных обновлений...","Информация"]
["4/25/2012  11:48:21 AM","Нет доступных обновлений для шаблона с кодом INVEST.EE.FACT!","Информация"]
["4/25/2012  1:58:33 PM","Проверка доступных обновлений...","Информация"]
["4/25/2012  1:58:55 PM","Нет доступных обновлений для шаблона с кодом INVEST.EE.FACT!","Информация"]
["4/25/2012  2:21:22 PM","Проверка доступных обновлений...","Информация"]
["4/25/2012  2:21:44 PM","Нет доступных обновлений для шаблона с кодом INVEST.EE.FACT!","Информация"]
["4/27/2012  8:29:01 AM","Проверка доступных обновлений...","Информация"]
["4/27/2012  8:29:02 AM","Версия шаблона 1.4 актуальна, обновление не требуется","Информация"]
["5/2/2012  8:28:24 AM","Проверка доступных обновлений...","Информация"]
["5/2/2012  8:28:47 AM","Нет доступных обновлений для шаблона с кодом INVEST.EE.FACT!","Информация"]
["5/2/2012  10:40:35 AM","Проверка доступных обновлений...","Информация"]
["5/2/2012  10:40:36 AM","Версия шаблона 1.4 актуальна, обновление не требуется","Информация"]
["5/2/2012  2:13:47 PM","Проверка доступных обновлений...","Информация"]
["5/2/2012  2:13:49 PM","Версия шаблона 1.4 актуальна, обновление не требуется","Информация"]
["5/10/2012  1:48:28 PM","Проверка доступных обновлений...","Информация"]
["5/10/2012  1:48:30 PM","Версия шаблона 1.4 актуальна, обновление не требуется","Информация"]
["5/11/2012  1:50:44 PM","Проверка доступных обновлений...","Информация"]
["5/11/2012  1:51:06 PM","Нет доступных обновлений для шаблона с кодом INVEST.EE.FACT!","Информация"]
["5/11/2012  2:22:39 PM","Проверка доступных обновлений...","Информация"]
["5/11/2012  2:23:01 PM","Нет доступных обновлений для шаблона с кодом INVEST.EE.FACT!","Информация"]
["5/12/2012  8:50:36 AM","Проверка доступных обновлений...","Информация"]
["5/12/2012  8:51:01 AM","Нет доступных обновлений для шаблона с кодом INVEST.EE.FACT!","Информация"]
["5/15/2012  8:52:59 AM","Проверка доступных обновлений...","Информация"]
["5/15/2012  8:53:22 AM","Нет доступных обновлений для шаблона с кодом INVEST.EE.FACT!","Информация"]
["5/15/2012  8:54:23 AM","Проверка доступных обновлений...","Информация"]
["5/15/2012  8:54:45 AM","Нет доступных обновлений для шаблона с кодом INVEST.EE.FACT!","Информация"]
["5/15/2012  9:13:27 AM","Проверка доступных обновлений...","Информация"]
["5/15/2012  9:13:49 AM","Нет доступных обновлений для шаблона с кодом INVEST.EE.FACT!","Информация"]
["5/15/2012  10:01:43 AM","Проверка доступных обновлений...","Информация"]
["5/15/2012  10:01:44 AM","Версия шаблона 1.4 актуальна, обновление не требуется","Информация"]
["5/15/2012  1:30:52 PM","Проверка доступных обновлений...","Информация"]
["5/15/2012  1:30:56 PM","Версия шаблона 1.4 актуальна, обновление не требуется","Информация"]
["5/15/2012  1:37:39 PM","Проверка доступных обновлений...","Информация"]
["5/15/2012  1:37:40 PM","Версия шаблона 1.4 актуальна, обновление не требуется","Информация"]
["5/15/2012  4:14:16 PM","Проверка доступных обновлений...","Информация"]
["5/15/2012  4:14:17 PM","Версия шаблона 1.4 актуальна, обновление не требуется","Информация"]
["2/4/2013  9:57:34 AM","Проверка доступных обновлений...","Информация"]
["2/4/2013  9:57:35 AM","Версия шаблона 1.4 актуальна, обновление не требуется","Информация"]
["2/4/2013  10:02:24 AM","Проверка доступных обновлений...","Информация"]
["2/4/2013  10:02:25 AM","Версия шаблона 1.4 актуальна, обновление не требуется","Информация"]
["2/4/2013  10:03:34 AM","Проверка доступных обновлений...","Информация"]
["2/4/2013  10:03:35 AM","Версия шаблона 1.4 актуальна, обновление не требуется","Информация"]
["2/4/2013  10:18:39 AM","Проверка доступных обновлений...","Информация"]
["2/4/2013  10:18:45 AM","Нет доступных обновлений для шаблона с кодом INVEST.EE.FACT!","Информация"]
["2/4/2013  10:39:54 AM","Проверка доступных обновлений...","Информация"]
["2/4/2013  10:40:16 AM","Нет доступных обновлений для шаблона с кодом INVEST.EE.FACT!","Информация"]
["2/4/2013  10:41:00 AM","Проверка доступных обновлений...","Информация"]
["2/4/2013  10:41:22 AM","Нет доступных обновлений для шаблона с кодом INVEST.EE.FACT!","Информация"]
["2/4/2013  11:42:46 AM","Проверка доступных обновлений...","Информация"]
["2/4/2013  11:43:08 AM","Нет доступных обновлений для шаблона с кодом INVEST.EE.FACT!","Информация"]
["2/4/2013  1:56:53 PM","Проверка доступных обновлений...","Информация"]
["2/4/2013  1:56:54 PM","Версия шаблона 1.4 актуальна, обновление не требуется","Информация"]
["2/6/2013  8:44:42 AM","Проверка доступных обновлений...","Информация"]
["2/6/2013  8:44:47 AM","Версия шаблона 1.4 актуальна, обновление не требуется","Информация"]
["2/7/2013  8:18:14 AM","Проверка доступных обновлений...","Информация"]
["2/7/2013  8:18:36 AM","Нет доступных обновлений для шаблона с кодом INVEST.EE.FACT!","Информация"]
["2/7/2013  11:44:48 AM","Проверка доступных обновлений...","Информация"]
["2/7/2013  11:45:09 AM","Нет доступных обновлений для шаблона с кодом INVEST.EE.FACT!","Информация"]
["2/7/2013  4:36:13 PM","Проверка доступных обновлений...","Информация"]
["2/7/2013  4:36:35 PM","Нет доступных обновлений для шаблона с кодом INVEST.EE.FACT!","Информация"]
["2/11/2013  8:24:31 AM","Проверка доступных обновлений...","Информация"]
["2/11/2013  8:24:54 AM","Нет доступных обновлений для шаблона с кодом INVEST.EE.FACT!","Информация"]
["2/14/2013  11:38:20 AM","Проверка доступных обновлений...","Информация"]
["2/14/2013  11:38:42 AM","Нет доступных обновлений для шаблона с кодом INVEST.EE.FACT!","Информация"]
["6/24/2013  3:11:30 PM","Проверка доступных обновлений...","Информация"]
["6/24/2013  3:11:52 PM","Нет доступных обновлений для шаблона с кодом INVEST.EE.FACT!","Информация"]
["6/25/2013  3:54:07 PM","Проверка доступных обновлений...","Информация"]
["6/25/2013  3:54:08 PM","Версия шаблона 1.4 актуальна, обновление не требуется","Информация"]
["6/25/2013  4:11:21 PM","Проверка доступных обновлений...","Информация"]
["6/25/2013  4:11:22 PM","Версия шаблона 1.4 актуальна, обновление не требуется","Информация"]
["8/29/2013  10:15:42 AM","Проверка доступных обновлений...","Информация"]
["8/29/2013  10:16:04 AM","Нет доступных обновлений для шаблона с кодом INVEST.EE.FACT!","Информация"]
["10/21/2013  2:17:15 PM","Проверка доступных обновлений...","Информация"]
["10/21/2013  2:17:16 PM","Версия шаблона 1.4 актуальна, обновление не требуется","Информация"]
["12/17/2013  3:56:14 PM","Проверка доступных обновлений...","Информация"]
["12/17/2013  3:56:18 PM","Версия шаблона 1.4 актуальна, обновление не требуется","Информация"]
["12/17/2013  4:15:46 PM","Проверка доступных обновлений...","Информация"]
["12/17/2013  4:15:47 PM","Версия шаблона 1.4 актуальна, обновление не требуется","Информация"]
["12/17/2013  4:55:40 PM","Проверка доступных обновлений...","Информация"]
["12/17/2013  4:55:41 PM","Версия шаблона 1.4 актуальна, обновление не требуется","Информация"]
["12/18/2013  9:55:53 AM","Проверка доступных обновлений...","Информация"]
["12/18/2013  9:56:15 AM","Нет доступных обновлений для шаблона с кодом INVEST.EE.FACT!","Информация"]
["12/18/2013  10:19:32 AM","Проверка доступных обновлений...","Информация"]
["12/18/2013  10:19:33 AM","Версия шаблона 1.4 актуальна, обновление не требуется","Информация"]
["12/18/2013  11:08:46 AM","Проверка доступных обновлений...","Информация"]
["12/18/2013  11:08:47 AM","Версия шаблона 1.4 актуальна, обновление не требуется","Информация"]
["12/18/2013  11:30:16 AM","Проверка доступных обновлений...","Информация"]
["12/18/2013  11:30:17 AM","Версия шаблона 1.4 актуальна, обновление не требуется","Информация"]
["2/25/2014  9:00:49 AM","Проверка доступных обновлений...","Информация"]
["2/25/2014  9:01:07 AM","Нет доступных обновлений для шаблона с кодом INVEST.EE.FACT!","Информация"]
["4/29/2014  3:50:29 PM","Проверка доступных обновлений...","Информация"]
["4/29/2014  3:50:34 PM","Версия шаблона 1.4 актуальна, обновление не требуется","Информация"]
["4/29/2014  3:55:51 PM","Проверка доступных обновлений...","Информация"]
["4/29/2014  3:55:56 PM","Версия шаблона 1.4 актуальна, обновление не требуется","Информация"]
["4/30/2014  10:11:01 AM","Проверка доступных обновлений...","Информация"]
["4/30/2014  10:11:05 AM","Версия шаблона 1.4 актуальна, обновление не требуется","Информация"]
["5/5/2014  11:03:27 AM","Проверка доступных обновлений...","Информация"]
["5/5/2014  11:03:28 AM","Версия шаблона 1.4 актуальна, обновление не требуется","Информация"]
["5/7/2014  8:54:38 AM","Проверка доступных обновлений...","Информация"]
["5/7/2014  8:54:39 AM","Версия шаблона 1.4 актуальна, обновление не требуется","Информация"]
["5/8/2014  1:55:27 PM","Проверка доступных обновлений...","Информация"]
["5/8/2014  1:55:28 PM","Версия шаблона 1.4 актуальна, обновление не требуется","Информация"]
["6/9/2014  9:36:15 AM","Проверка доступных обновлений...","Информация"]
["6/9/2014  9:36:16 AM","Версия шаблона 1.4 актуальна, обновление не требуется","Информация"]
["6/16/2014  8:49:59 AM","Проверка доступных обновлений...","Информация"]
["6/16/2014  8:50:21 AM","Нет доступных обновлений для шаблона с кодом INVEST.EE.FACT!","Информация"]
["6/16/2014  9:24:57 AM","Проверка доступных обновлений...","Информация"]
["6/16/2014  9:24:58 AM","Версия шаблона 1.4 актуальна, обновление не требуется","Информация"]
["6/16/2014  11:20:19 AM","Проверка доступных обновлений...","Информация"]
["6/16/2014  11:20:20 AM","Версия шаблона 1.4 актуальна, обновление не требуется","Информация"]
["7/7/2014  4:16:40 PM","Проверка доступных обновлений...","Информация"]
["7/7/2014  4:16:41 PM","Версия шаблона 1.4 актуальна, обновление не требуется","Информация"]
["7/22/2014  3:47:09 PM","Проверка доступных обновлений...","Информация"]
["7/22/2014  3:47:31 PM","Нет доступных обновлений для шаблона с кодом INVEST.EE.FACT!","Информация"]
["7/23/2014  1:54:39 PM","Проверка доступных обновлений...","Информация"]
["7/23/2014  1:54:40 PM","Версия шаблона 1.4 актуальна, обновление не требуется","Информация"]
["8/13/2014  11:47:15 AM","Проверка доступных обновлений...","Информация"]
["8/13/2014  11:47:21 AM","Версия шаблона 1.4 актуальна, обновление не требуется","Информация"]
["10/23/2014  1:39:55 PM","Проверка доступных обновлений...","Информация"]
["10/23/2014  1:40:17 PM","Нет доступных обновлений для шаблона с кодом INVEST.EE.FACT!","Информация"]
["10/23/2014  2:52:02 PM","Проверка доступных обновлений...","Информация"]
["10/23/2014  2:52:03 PM","Версия шаблона 1.4 актуальна, обновление не требуется","Информация"]
["10/23/2014  3:06:24 PM","Проверка доступных обновлений...","Информация"]
["10/23/2014  3:06:25 PM","Версия шаблона 1.4 актуальна, обновление не требуется","Информация"]
["11/5/2014  11:18:17 AM","Проверка доступных обновлений...","Информация"]
["11/5/2014  11:18:39 AM","Нет доступных обновлений для шаблона с кодом INVEST.EE.FACT!","Информация"]
["11/6/2014  8:56:46 AM","Проверка доступных обновлений...","Информация"]
["11/6/2014  8:57:08 AM","Нет доступных обновлений для шаблона с кодом INVEST.EE.FACT!","Информация"]
["11/6/2014  11:11:33 AM","Проверка доступных обновлений...","Информация"]
["11/6/2014  11:11:55 AM","Нет доступных обновлений для шаблона с кодом INVEST.EE.FACT!","Информация"]
["11/28/2014  9:29:52 AM","Проверка доступных обновлений...","Информация"]
["11/28/2014  9:30:14 AM","Нет доступных обновлений для шаблона с кодом INVEST.EE.FACT!","Информация"]
["11/28/2014  10:38:53 AM","Проверка доступных обновлений...","Информация"]
["11/28/2014  10:39:15 AM","Нет доступных обновлений для шаблона с кодом INVEST.EE.FACT!","Информация"]
["2/11/2015  2:35:39 PM","Проверка доступных обновлений...","Информация"]
["2/11/2015  2:35:40 PM","Версия шаблона 1.4 актуальна, обновление не требуется","Информация"]
["2/12/2015  12:47:36 PM","Проверка доступных обновлений...","Информация"]
["2/12/2015  12:47:58 PM","Нет доступных обновлений для шаблона с кодом INVEST.EE.FACT!","Информация"]
["2/12/2015  2:02:22 PM","Проверка доступных обновлений...","Информация"]
["2/12/2015  2:02:44 PM","Нет доступных обновлений для шаблона с кодом INVEST.EE.FACT!","Информация"]
["2/12/2015  3:09:42 PM","Проверка доступных обновлений...","Информация"]
["2/12/2015  3:10:04 PM","Нет доступных обновлений для шаблона с кодом INVEST.EE.FACT!","Информация"]
["2/12/2015  3:24:47 PM","Проверка доступных обновлений...","Информация"]
["2/12/2015  3:25:09 PM","Нет доступных обновлений для шаблона с кодом INVEST.EE.FACT!","Информация"]
["2/12/2015  4:15:17 PM","Проверка доступных обновлений...","Информация"]
["2/12/2015  4:15:39 PM","Нет доступных обновлений для шаблона с кодом INVEST.EE.FACT!","Информация"]
["2/12/2015  4:28:52 PM","Проверка доступных обновлений...","Информация"]
["2/12/2015  4:29:14 PM","Нет доступных обновлений для шаблона с кодом INVEST.EE.FACT!","Информация"]
["5/7/2015  9:38:52 AM","Проверка доступных обновлений...","Информация"]
["5/7/2015  9:39:00 AM","Версия шаблона 1.4 актуальна, обновление не требуется","Информация"]
["5/7/2015  10:25:01 AM","Проверка доступных обновлений...","Информация"]
["5/7/2015  10:25:02 AM","Версия шаблона 1.4 актуальна, обновление не требуется","Информация"]
["5/7/2015  10:46:18 AM","Проверка доступных обновлений...","Информация"]
["5/7/2015  10:46:19 AM","Версия шаблона 1.4 актуальна, обновление не требуется","Информация"]
["5/12/2015  8:03:37 AM","Проверка доступных обновлений...","Информация"]
["5/12/2015  8:04:00 AM","Нет доступных обновлений для шаблона с кодом INVEST.EE.FACT!","Информация"]
["5/12/2015  10:30:51 AM","Проверка доступных обновлений...","Информация"]
["5/12/2015  10:31:13 AM","Нет доступных обновлений для шаблона с кодом INVEST.EE.FACT!","Информация"]
["5/12/2015  4:51:30 PM","Проверка доступных обновлений...","Информация"]
["5/12/2015  4:51:52 PM","Нет доступных обновлений для шаблона с кодом INVEST.EE.FACT!","Информация"]
["5/13/2015  8:23:57 AM","Проверка доступных обновлений...","Информация"]
["5/13/2015  8:23:58 AM","Версия шаблона 1.4 актуальна, обновление не требуется","Информация"]
["7/13/2015  1:34:33 PM","Проверка доступных обновлений...","Информация"]
["7/13/2015  1:34:38 PM","Версия шаблона 1.4 актуальна, обновление не требуется","Информация"]
["7/21/2015  7:04:54 PM","Проверка доступных обновлений...","Информация"]
["7/21/2015  7:04:58 PM","Версия шаблона 1.4 актуальна, обновление не требуется","Информация"]
["7/21/2015  7:19:03 PM","Проверка доступных обновлений...","Информация"]
["7/21/2015  7:19:04 PM","Версия шаблона 1.4 актуальна, обновление не требуется","Информация"]
["8/3/2015  2:16:01 PM","Проверка доступных обновлений...","Информация"]
["8/3/2015  2:16:03 PM","Версия шаблона 1.4 актуальна, обновление не требуется","Информация"]
["8/4/2015  2:03:02 PM","Проверка доступных обновлений...","Информация"]
["8/4/2015  2:03:03 PM","Версия шаблона 1.4 актуальна, обновление не требуется","Информация"]
["10/21/2015  2:46:07 PM","Проверка доступных обновлений...","Информация"]
["10/21/2015  2:46:10 PM","Версия шаблона 1.4 актуальна, обновление не требуется","Информация"]
["10/22/2015  12:51:36 PM","Проверка доступных обновлений...","Информация"]
["10/22/2015  12:51:37 PM","Версия шаблона 1.4 актуальна, обновление не требуется","Информация"]
["10/23/2015  9:34:43 AM","Проверка доступных обновлений...","Информация"]
["10/23/2015  9:34:44 AM","Версия шаблона 1.4 актуальна, обновление не требуется","Информация"]
["11/3/2015  10:28:32 AM","Проверка доступных обновлений...","Информация"]
["11/3/2015  10:28:54 AM","Нет доступных обновлений для шаблона с кодом INVEST.EE.FACT!","Информация"]
["11/4/2015  11:41:01 AM","Проверка доступных обновлений...","Информация"]
["11/4/2015  11:41:23 AM","Нет доступных обновлений для шаблона с кодом INVEST.EE.FACT!","Информация"]
["11/5/2015  9:51:16 AM","Проверка доступных обновлений...","Информация"]
["11/5/2015  9:51:38 AM","Нет доступных обновлений для шаблона с кодом INVEST.EE.FACT!","Информация"]
["11/5/2015  9:59:57 AM","Проверка доступных обновлений...","Информация"]
["11/5/2015  10:00:19 AM","Нет доступных обновлений для шаблона с кодом INVEST.EE.FACT!","Информация"]
["11/5/2015  10:12:35 AM","Проверка доступных обновлений...","Информация"]
["11/5/2015  10:12:58 AM","Нет доступных обновлений для шаблона с кодом INVEST.EE.FACT!","Информация"]
["2/3/2016  2:44:27 PM","Проверка доступных обновлений...","Информация"]
["2/3/2016  2:44:33 PM","Версия шаблона 1.4 актуальна, обновление не требуется","Информация"]
["2/9/2016  10:46:32 AM","Проверка доступных обновлений...","Информация"]
["2/9/2016  10:46:52 AM","Версия шаблона 1.4 актуальна, обновление не требуется","Информация"]
["2/9/2016  2:07:52 PM","Проверка доступных обновлений...","Информация"]
["2/9/2016  2:08:08 PM","Версия шаблона 1.4 актуальна, обновление не требуется","Информация"]
["2/9/2016  2:37:46 PM","Проверка доступных обновлений...","Информация"]
["2/9/2016  2:38:02 PM","Версия шаблона 1.4 актуальна, обновление не требуется","Информация"]
["2/11/2016  9:07:53 AM","Проверка доступных обновлений...","Информация"]
["2/11/2016  9:08:10 AM","Версия шаблона 1.4 актуальна, обновление не требуется","Информация"]
["2/11/2016  4:13:22 PM","Проверка доступных обновлений...","Информация"]
["2/11/2016  4:13:24 PM","Версия шаблона 1.4 актуальна, обновление не требуется","Информация"]
["2/11/2016  5:34:46 PM","Проверка доступных обновлений...","Информация"]
["2/11/2016  5:35:07 PM","Нет доступных обновлений для шаблона с кодом INVEST.EE.FACT!","Информация"]
["2/12/2016  8:36:17 AM","Проверка доступных обновлений...","Информация"]
["2/12/2016  8:36:39 AM","Нет доступных обновлений для шаблона с кодом INVEST.EE.FACT!","Информация"]
["2/12/2016  10:26:55 AM","Проверка доступных обновлений...","Информация"]
["2/12/2016  10:27:16 AM","Нет доступных обновлений для шаблона с кодом INVEST.EE.FACT!","Информация"]
["2/12/2016  12:28:17 PM","Проверка доступных обновлений...","Информация"]
["2/12/2016  12:28:18 PM","Версия шаблона 1.4 актуальна, обновление не требуется","Информация"]
["2/12/2016  12:58:55 PM","Проверка доступных обновлений...","Информация"]
["2/12/2016  12:58:56 PM","Версия шаблона 1.4 актуальна, обновление не требуется","Информация"]
["2/19/2016  11:19:25 AM","Проверка доступных обновлений...","Информация"]
["2/19/2016  11:19:31 AM","Версия шаблона 1.4 актуальна, обновление не требуется","Информация"]
["2/19/2016  3:49:40 PM","Проверка доступных обновлений...","Информация"]
["2/19/2016  3:50:02 PM","Нет доступных обновлений для шаблона с кодом INVEST.EE.FACT!","Информация"]
["5/11/2016  11:57:06 AM","Проверка доступных обновлений...","Информация"]
["5/11/2016  11:57:09 AM","Версия шаблона 1.4 актуальна, обновление не требуется","Информация"]
["5/11/2016  2:53:10 PM","Проверка доступных обновлений...","Информация"]
["5/11/2016  2:53:32 PM","Нет доступных обновлений для шаблона с кодом INVEST.EE.FACT!","Информация"]
["5/12/2016  10:09:22 AM","Проверка доступных обновлений...","Информация"]
["5/12/2016  10:09:27 AM","Версия шаблона 1.4 актуальна, обновление не требуется","Информация"]
["5/12/2016  2:28:36 PM","Проверка доступных обновлений...","Информация"]
["5/12/2016  2:28:58 PM","Нет доступных обновлений для шаблона с кодом INVEST.EE.FACT!","Информация"]
["5/16/2016  9:31:24 AM","Проверка доступных обновлений...","Информация"]
["5/16/2016  9:31:25 AM","Версия шаблона 1.4 актуальна, обновление не требуется","Информация"]
["7/27/2016  11:49:33 AM","Проверка доступных обновлений...","Информация"]
["7/27/2016  11:49:35 AM","Версия шаблона 1.4 актуальна, обновление не требуется","Информация"]
["7/28/2016  11:46:20 AM","Проверка доступных обновлений...","Информация"]
["7/28/2016  11:46:21 AM","Версия шаблона 1.4 актуальна, обновление не требуется","Информация"]
["10/25/2016  3:40:51 PM","Проверка доступных обновлений...","Информация"]
["10/25/2016  3:40:56 PM","Версия шаблона 1.4 актуальна, обновление не требуется","Информация"]
["10/25/2016  4:50:44 PM","Проверка доступных обновлений...","Информация"]
["10/25/2016  4:50:45 PM","Версия шаблона 1.4 актуальна, обновление не требуется","Информация"]
["10/26/2016  8:23:19 AM","Проверка доступных обновлений...","Информация"]
["10/26/2016  8:23:20 AM","Версия шаблона 1.4 актуальна, обновление не требуется","Информация"]
["10/26/2016  11:39:26 AM","Проверка доступных обновлений...","Информация"]
["10/26/2016  11:39:27 AM","Версия шаблона 1.4 актуальна, обновление не требуется","Информация"]
["1/24/2017  9:02:42 AM","Проверка доступных обновлений...","Информация"]
["1/24/2017  9:02:45 AM","Версия шаблона 1.4 актуальна, обновление не требуется","Информация"]
["1/25/2017  12:02:50 PM","Проверка доступных обновлений...","Информация"]
["1/25/2017  12:02:52 PM","Версия шаблона 1.4 актуальна, обновление не требуется","Информация"]
["1/30/2017  1:32:28 PM","Проверка доступных обновлений...","Информация"]
["1/30/2017  1:32:30 PM","Версия шаблона 1.4 актуальна, обновление не требуется","Информация"]
["2/14/2017  8:02:04 AM","Проверка доступных обновлений...","Информация"]
["2/14/2017  8:02:09 AM","Версия шаблона 1.4 актуальна, обновление не требуется","Информация"]
["2/14/2017  2:27:12 PM","Проверка доступных обновлений...","Информация"]
["2/14/2017  2:27:15 PM","Версия шаблона 1.4 актуальна, обновление не требуется","Информация"]
["2/15/2017  9:04:49 AM","Проверка доступных обновлений...","Информация"]
["2/15/2017  9:04:50 AM","Версия шаблона 1.4 актуальна, обновление не требуется","Информация"]
["2/15/2017  2:09:14 PM","Проверка доступных обновлений...","Информация"]
["2/15/2017  2:09:15 PM","Версия шаблона 1.4 актуальна, обновление не требуется","Информация"]

{"sheet":"Титульный","index":5,"n_rows":49,"n_cols":7,"rows_kept":49,"cut":false,"hidden":false,"merged":[[44,4,44,5],[4,3,4,6],[32,4,32,5],[36,4,36,5],[40,4,40,5],[15,4,16,4]]}
[]
[]
[null,null,null,null,null,null,{"$f":"version","v":"Версия 1.4"}]
[]
[null,null,null,"Инвестиционные проекты"]
[]
[]
[null,null,null,null,"Субъект РФ","Красноярский край"]
[]
[null,null,null,null,"Тип данных","Факт"]
[]
[null,null,null,null,"Год начала реализации инвестиционной программы","2012"]
[]
[null,null,null,null,"Период реализации","5 лет"]
[]
[null,null,null,null,"Отчетный период","2016","Год"]
[null,null,null,null,null,"IV квартал","Квартал"]
[null,null,null,null,null,"Дата последнего обновления реестра организаций: 24.01.2017 9:22:37"]
[null,null,null,null,"Наименование организации","ООО \"Красноярский жилищно-коммунальный комплекс\""]
[]
[null,null,null,null,"ИНН","2466114215"]
[null,null,null,null,"КПП","246750001"]
[]
[null,null,null,null,"Вид деятельности","Сетевая компания"]
[]
[null,null,null,null,"Проекты, финансируемые полностью или частично за счет средств федерального бюджета, и/или включенные в федеральные целевые программы.","Нет"]
[null,null,null,null,"Объекты выдачи мощности ТЭС, ГЭС, АЭС.","Нет"]
[null,null,null,null,"Генерирующие объекты мощностью свыше 100 МВт.","Нет"]
[null,null,null,null,"Проекты, имеющие федеральное значение (объекты энергоснабжения Олимпиады в г. Сочи, саммита АТЭС в г. Владивосток, ВСТО и др.).","Нет"]
[null,null,null,null,"Проекты сметной стоимостью свыше 3 млрд. руб. (в текущих ценах с НДС).","Нет"]
[null,null,null,null,"Объекты, предусмотренные Генеральной схемой размещения объектов электроэнергетики до 2020 года.","Нет"]
[]
[null,null,null,null,"Адрес организации"]
["L8.1","Юридический адрес",null,null,"Юридический адрес:","Россия, 660049, г. Красноярск                                               ул. Парижской коммуны, 41"]
["L8.2","Почтовый адрес",null,null,"Почтовый адрес:","Россия, 660049, г. Красноярск                                               ул. Парижской коммуны, 41"]
[]
[null,null,null,null,"Руководитель"]
["L9.1","Руководитель.ФИО",null,null,"Фамилия, имя, отчество:","Гончеров Олег Васильевич"]
["L9.2","Руководитель.Телефон",null,null,"Контактный телефон:","8-391-252-87-79"]
[]
[null,null,null,null,"Главный бухгалтер"]
["L10.1","Гл.бухгалтер.ФИО",null,null,"Фамилия, имя, отчество:","Балашова Елена Владимировна"]
["L10.2","Гл.бухгалтер.Телефон",null,null,"Контактный телефон:","8-391-252-87-12"]
[]
[null,null,null,null,"Должностное лицо, ответственное за составление формы"]
["L11.1","Ответственный.ФИО",null,null,"Фамилия, имя, отчество:","Князев Олег Викторович; Русецкий Александр Николаевич"]
["L11.2","Ответственный.Должность",null,null,"Должность:","Начальник УКС; Зам. главного энергетика"]
["L11.3","Ответственный.Телефон",null,null,"Контактный телефон:","8-391-226-78-91; 8-391-226-74-90"]
["L11.4","Ответственный. E-Mail",null,null,"e-mail:","KniazevOV@sibgenco.ru; rusetskiy@kraskom.com"]

{"sheet":"Список листов","index":6,"n_rows":11,"n_cols":4,"rows_kept":11,"cut":false,"hidden":false,"merged":[]}
[]
[null,"Лист","Заголовок листа","Ссылка"]
[null,"Ф.7.1",{"$f":"Ф.7.1!D12","v":"Отчет об исполнении инвестиционной программы, млн. рублей с НДС (представляется ежеквартально)"},"Перейти на лист"]
[null,"Ф.7.2",{"$f":"Ф.7.2!D12","v":"Отчет об исполнении основных этапов работ по реализации инвестиционной программы компании в 2016 году (представляется ежеквартально)"},"Перейти на лист"]
[null,"Ф.8",{"$f":"Ф.8!D12","v":"Отчет об источниках финансирования инвестиционных программ, млн. рублей (представляется ежеквартально)"},"Перейти на лист"]
[null,"Ф.9",{"$f":"Ф.9!D12","v":"Отчет о вводах/выводах объектов (представляется ежеквартально)"},"Перейти на лист"]
[null,"Ф.10",{"$f":"Ф.10!D12","v":"Отчет о ходе реализации проектов (заполняется для наиболее значимых проектов *) (представляется ежеквартально)"},"Перейти на лист"]
[null,"Ф.11.1",{"$f":"Ф.11.1!D12","v":"Отчет об исполнении сетевых графиков строительства проектов (представляется ежеквартально)"},"Перейти на лист"]
[null,"Ф.11.2","Контрольные этапы реализации инвестиционного проекта","Перейти на лист"]
[null,"Ф.12",{"$f":"Ф.12!D12","v":"Форма представления показателей финансовой отчетности (представляется ежеквартально)"},"Перейти на лист"]
[null,"Ф.13",{"$f":"Ф.13!D13","v":"Отчет о техническом состоянии объекта (представляется ежеквартально)"},"Перейти на лист"]

{"sheet":"Ф.7.1","index":7,"n_rows":255,"n_cols":29,"rows_kept":255,"cut":false,"hidden":false,"merged":[[245,3,245,4],[14,6,16,6],[14,7,14,16],[15,7,15,8],[15,9,15,10],[14,3,16,3],[15,11,15,12],[14,4,16,4],[14,5,16,5],[11,3,11,26],[14,17,15,18],[12,3,12,26],[15,13,15,14],[14,22,14,25],[14,19,15,20],[14,26,16,26],[15,22,16,22],[15,15,15,16],[15,24,15,25],[15,23,16,23],[14,21,16,21]]}
[null,null,null,null,null,null,null,null,null,null,null,2,2,3,3,4,4]
[]
[]
[]
[]
[null,null,"Список листов",null,null,null,null,null,null,null,null,null,null,null,null,null,null,null,null,null,null,null,null,null,null,null,"Приложение № 7.1\nк Приказу Минэнерго России\nот 24.03.2010 № 114"]
[null,null,null,null,null,null,null,null,null,null,null,null,null,null,null,null,null,null,null,null,null,null,null,null,null,null,"Утверждаю\nруководитель организации"]
[]
[null,null,null,null,null,null,null,null,null,null,null,null,null,null,null,null,null,null,null,null,null,null,null,null,null,null,"(подпись)"]
[null,null,null,null,null,null,null,null,null,null,null,null,null,null,null,null,null,null,null,null,null,null,null,null,null,null,"\"___\" _____________ 20__ года"]
[null,null,null,null,null,null,null,null,null,null,null,null,null,null,null,null,null,null,null,null,null,null,null,null,null,null,"М.П."]
[null,null,null,"Отчет об исполнении инвестиционной программы, млн. рублей с НДС (представляется ежеквартально)"]
[null,null,null,{"$f":"org & \", Факт за \" & otchet_god & \" г. \" & kvartal","v":"ООО \"Красноярский жилищно-коммунальный комплекс\", Факт за 2016 г. IV квартал"}]
[]
[null,null,null,"№ п/п","Наименование объекта","Примечание","Остаток стоимости\nна начало\nгода *",{"$f":"\"Объем финансирования (\"& otchet_god &\" год)\"","v":"Объем финансирования (2016 год)"},null,null,null,null,null,null,null,null,null,"Освоено (закрыто актами выполненных работ),\nмлн. рублей",null,"Введено (оформлено актами ввода\nв эксплуатацию),\nмлн. рублей",null,"Осталось профинанси-\nровать по ре-\nзультатам отчетного периода *","Отклонение ***",null,null,null,"Причины отклонений"]
[null,null,null,null,null,null,null,"Всего",null,"I кв.",null,"II кв.",null,"III кв.",null,"IV кв.",null,null,null,null,null,null,"млн. рублей","%","в том числе за счет"]
[null,null,null,null,null,null,null,"План **","Факт ***","План","Факт","План","Факт","План","Факт","План","Факт","Всего ***","за отчетный период","Всего ***","за отчетный период",null,null,null,"уточнения стоимости по результатам утвержденной ПСД","уточнения стоимости по результатам закупочных процедур"]
[null,null,null,1,2,3,4,5,6,7,8,9,10,11,12,13,14,15,16,17,18,19,20,21,22,23,24]
[null,null,null,null,"ВСЕГО",null,{"$f":"nerr(G20+G159)","v":34.758000000000003},34.758000000000003,0,0,0,0,0,0,0,34.758000000000003,0,0,0,0,0,34.758000000000003,34.758000000000003,{"$f":"nerr(W19/H19*100)","v":100},{"$f":"nerr(Y20+Y159)","v":0},{"$f":"nerr(Z20+Z159)","v":0}]
[null,null,null,"1","Техническое перевооружение и реконструкция",null,{"$f":"G21+G62+G109+G112+G115+G118","v":34.758000000000003},34.758000000000003,0,0,0,0,0,0,0,34.758000000000003,0,0,0,0,0,34.758000000000003,34.758000000000003,100,{"$f":"Y21+Y62+Y109+Y112+Y115+Y118","v":0},{"$f":"Z21+Z62+Z109+Z112+Z115+Z118","v":0}]
[null,null,"+","1.1","Реконструкция",null,{"$f":"G22+G49+G59","v":0},0,0,0,0,0,0,0,0,0,0,0,0,0,0,0,0,0,{"$f":"Y22+Y49+Y59","v":0},{"$f":"Z22+Z49+Z59","v":0}]
[null,null,"+","1.1.1","Электрические линии",null,{"$f":"G23+G36","v":0},0,0,0,0,0,0,0,0,0,0,0,0,0,0,0,0,0,{"$f":"Y23+Y36","v":0},{"$f":"Z23+Z36","v":0}]
[null,null,"+","1.1.1.1","Воздушные линии",null,{"$f":"G24+G27+G30+G33","v":0},0,0,0,0,0,0,0,0,0,0,0,0,0,0,0,0,0,{"$f":"Y24+Y27+Y30+Y33","v":0},{"$f":"Z24+Z27+Z30+Z33","v":0}]
[null,null,"+","1.1.1.1.1","ВЛЭП 110-220 кВ (ВН)",null,{"$f":"nerr(SUM(G25:G26)-G25)","v":0},0,0,0,0,0,0,0,0,0,0,0,0,0,0,0,0,0,{"$f":"nerr(SUM(Y25:Y26)-Y25)","v":0},{"$f":"nerr(SUM(Z25:Z26)-Z25)","v":0}]
[null,null,null,"1.1.1.1.1.0",null,"",null,{"$f":"nerr(J25+L25+N25+P25)","v":0},{"$f":"nerr(K25+M25+O25+Q25)","v":0},null,null,null,null,null,null,null,null,null,null,null,null,null,{"$f":"H25-I25","v":0},0]
[null,null,null,null,"Добавить"]
[null,null,"+","1.1.1.1.2","ВЛЭП 35 кВ (СН1)",null,{"$f":"nerr(SUM(G28:G29)-G28)","v":0},0,0,0,0,0,0,0,0,0,0,0,0,0,0,0,0,{"$f":"nerr(W27/H27*100)","v":0},{"$f":"nerr(SUM(Y28:Y29)-Y28)","v":0},{"$f":"nerr(SUM(Z28:Z29)-Z28)","v":0}]
[null,null,null,"1.1.1.1.2.0",null,"",null,{"$f":"nerr(J28+L28+N28+P28)","v":0},{"$f":"nerr(K28+M28+O28+Q28)","v":0},null,null,null,null,null,null,null,null,null,null,null,null,null,{"$f":"H28-I28","v":0},{"$f":"nerr(W28/H28*100)","v":0}]
[null,null,null,null,"Добавить"]
[null,null,"+","1.1.1.1.3","ВЛЭП 1-20 кВ (СН2)",null,{"$f":"nerr(SUM(G31:G32)-G31)","v":0},0,0,0,0,0,0,0,0,0,0,0,0,0,0,0,0,{"$f":"nerr(W30/H30*100)","v":0},{"$f":"nerr(SUM(Y31:Y32)-Y31)","v":0},{"$f":"nerr(SUM(Z31:Z32)-Z31)","v":0}]
[null,null,null,"1.1.1.1.3.0",null,"",null,{"$f":"nerr(J31+L31+N31+P31)","v":0},{"$f":"nerr(K31+M31+O31+Q31)","v":0},null,null,null,null,null,null,null,null,null,null,null,null,null,{"$f":"H31-I31","v":0},{"$f":"nerr(W31/H31*100)","v":0}]
[null,null,null,null,"Добавить"]
[null,null,"+","1.1.1.1.4","ВЛЭП 0,4 кВ (НН)",null,{"$f":"nerr(SUM(G34:G35)-G34)","v":0},0,0,0,0,0,0,0,0,0,0,0,0,0,0,0,0,{"$f":"nerr(W33/H33*100)","v":0},{"$f":"nerr(SUM(Y34:Y35)-Y34)","v":0},{"$f":"nerr(SUM(Z34:Z35)-Z34)","v":0}]
[null,null,null,"1.1.1.1.4.0",null,"",null,{"$f":"nerr(J34+L34+N34+P34)","v":0},{"$f":"nerr(K34+M34+O34+Q34)","v":0},null,null,null,null,null,null,null,null,null,null,null,null,null,{"$f":"H34-I34","v":0},{"$f":"nerr(W34/H34*100)","v":0}]
[null,null,null,null,"Добавить"]
[null,null,"+","1.1.1.2","Кабельные линии",null,{"$f":"G37+G40+G43+G46","v":0},0,0,0,0,0,0,0,0,0,0,0,0,0,0,0,0,{"$f":"nerr(W36/H36*100)","v":0},{"$f":"Y37+Y40+Y43+Y46","v":0},{"$f":"Z37+Z40+Z43+Z46","v":0}]
[null,null,"+","1.1.1.2.1","КЛЭП 110 кВ (ВН)",null,{"$f":"nerr(SUM(G38:G39)-G38)","v":0},0,0,0,0,0,0,0,0,0,0,0,0,0,0,0,0,{"$f":"nerr(W37/H37*100)","v":0},{"$f":"nerr(SUM(Y38:Y39)-Y38)","v":0},{"$f":"nerr(SUM(Z38:Z39)-Z38)","v":0}]
[null,null,null,"1.1.1.2.1.0",null,"",null,{"$f":"nerr(J38+L38+N38+P38)","v":0},{"$f":"nerr(K38+M38+O38+Q38)","v":0},null,null,null,null,null,null,null,null,null,null,null,null,null,{"$f":"H38-I38","v":0},{"$f":"nerr(W38/H38*100)","v":0}]
[null,null,null,null,"Добавить"]
[null,null,"+","1.1.1.2.2","КЛЭП 20-35 кВ (СН1)",null,{"$f":"nerr(SUM(G41:G42)-G41)","v":0},0,0,0,0,0,0,0,0,0,0,0,0,0,0,0,0,{"$f":"nerr(W40/H40*100)","v":0},{"$f":"nerr(SUM(Y41:Y42)-Y41)","v":0},{"$f":"nerr(SUM(Z41:Z42)-Z41)","v":0}]
[null,null,null,"1.1.1.2.2.0",null,"",null,{"$f":"nerr(J41+L41+N41+P41)","v":0},{"$f":"nerr(K41+M41+O41+Q41)","v":0},null,null,null,null,null,null,null,null,null,null,null,null,null,{"$f":"H41-I41","v":0},{"$f":"nerr(W41/H41*100)","v":0}]
[null,null,null,null,"Добавить"]
[null,null,"+","1.1.1.2.3","КЛЭП 3-10 кВ (СН2)",null,{"$f":"nerr(SUM(G44:G45)-G44)","v":0},0,0,0,0,0,0,0,0,0,0,0,0,0,0,0,0,{"$f":"nerr(W43/H43*100)","v":0},{"$f":"nerr(SUM(Y44:Y45)-Y44)","v":0},{"$f":"nerr(SUM(Z44:Z45)-Z44)","v":0}]
[null,null,null,"1.1.1.2.3.0",null,"",null,{"$f":"nerr(J44+L44+N44+P44)","v":0},{"$f":"nerr(K44+M44+O44+Q44)","v":0},null,null,null,null,null,null,null,null,null,null,null,null,null,{"$f":"H44-I44","v":0},{"$f":"nerr(W44/H44*100)","v":0}]
[null,null,null,null,"Добавить"]
[null,null,"+","1.1.1.2.4","КЛЭП до 1 кВ (НН)",null,{"$f":"nerr(SUM(G47:G48)-G47)","v":0},0,0,0,0,0,0,0,0,0,0,0,0,0,0,0,0,{"$f":"nerr(W46/H46*100)","v":0},{"$f":"nerr(SUM(Y47:Y48)-Y47)","v":0},{"$f":"nerr(SUM(Z47:Z48)-Z47)","v":0}]
[null,null,null,"1.1.1.2.4.0",null,"",null,{"$f":"nerr(J47+L47+N47+P47)","v":0},{"$f":"nerr(K47+M47+O47+Q47)","v":0},null,null,null,null,null,null,null,null,null,null,null,null,null,{"$f":"H47-I47","v":0},{"$f":"nerr(W47/H47*100)","v":0}]
[null,null,null,null,"Добавить"]
[null,null,"+","1.1.2","Подстанции",null,{"$f":"G50+G53+G56","v":0},0,0,0,0,0,0,0,0,0,0,0,0,0,0,0,0,{"$f":"nerr(W49/H49*100)","v":0},{"$f":"Y50+Y53+Y56","v":0},{"$f":"Z50+Z53+Z56","v":0}]
[null,null,"+","1.1.2.1","Уровень входящего напряжения ВН",null,{"$f":"nerr(SUM(G51:G52)-G51)","v":0},0,0,0,0,0,0,0,0,0,0,0,0,0,0,0,0,{"$f":"nerr(W50/H50*100)","v":0},{"$f":"nerr(SUM(Y51:Y52)-Y51)","v":0},{"$f":"nerr(SUM(Z51:Z52)-Z51)","v":0}]
[null,null,null,"1.1.2.1.0",null,"",null,{"$f":"nerr(J51+L51+N51+P51)","v":0},{"$f":"nerr(K51+M51+O51+Q51)","v":0},null,null,null,null,null,null,null,null,null,null,null,null,null,{"$f":"H51-I51","v":0},{"$f":"nerr(W51/H51*100)","v":0}]
[null,null,null,null,"Добавить"]
[null,null,"+","1.1.2.2","Уровень входящего напряжения СН1",null,{"$f":"nerr(SUM(G54:G55)-G54)","v":0},0,0,0,0,0,0,0,0,0,0,0,0,0,0,0,0,{"$f":"nerr(W53/H53*100)","v":0},{"$f":"nerr(SUM(Y54:Y55)-Y54)","v":0},{"$f":"nerr(SUM(Z54:Z55)-Z54)","v":0}]
[null,null,null,"1.1.2.2.0",null,"",null,{"$f":"nerr(J54+L54+N54+P54)","v":0},{"$f":"nerr(K54+M54+O54+Q54)","v":0},null,null,null,null,null,null,null,null,null,null,null,null,null,{"$f":"H54-I54","v":0},{"$f":"nerr(W54/H54*100)","v":0}]
[null,null,null,null,"Добавить"]
[null,null,"+","1.1.2.3","Уровень входящего напряжения СН2",null,{"$f":"nerr(SUM(G57:G58)-G57)","v":0},0,0,0,0,0,0,0,0,0,0,0,0,0,0,0,0,{"$f":"nerr(W56/H56*100)","v":0},{"$f":"nerr(SUM(Y57:Y58)-Y57)","v":0},{"$f":"nerr(SUM(Z57:Z58)-Z57)","v":0}]
[null,null,null,"1.1.2.3.0",null,"",null,{"$f":"nerr(J57+L57+N57+P57)","v":0},{"$f":"nerr(K57+M57+O57+Q57)","v":0},null,null,null,null,null,null,null,null,null,null,null,null,null,{"$f":"H57-I57","v":0},{"$f":"nerr(W57/H57*100)","v":0}]
[null,null,null,null,"Добавить"]
[null,null,"+","1.1.3","Прочие электросетевые объекты",null,{"$f":"nerr(SUM(G60:G61)-G60)","v":0},0,0,0,0,0,0,0,0,0,0,0,0,0,0,0,0,{"$f":"nerr(W59/H59*100)","v":0},{"$f":"nerr(SUM(Y60:Y61)-Y60)","v":0},{"$f":"nerr(SUM(Z60:Z61)-Z60)","v":0}]
[null,null,null,"1.1.3.0",null,"",null,{"$f":"nerr(J60+L60+N60+P60)","v":0},{"$f":"nerr(K60+M60+O60+Q60)","v":0},null,null,null,null,null,null,null,null,null,null,null,null,null,{"$f":"H60-I60","v":0},{"$f":"nerr(W60/H60*100)","v":0}]
[null,null,null,null,"Добавить"]
[null,null,"+","1.2","Энергосбережение и повышение энергетической эффективности",null,{"$f":"G63+G90+G106","v":34.758000000000003},34.758000000000003,0,0,0,0,0,0,0,34.758000000000003,0,0,0,0,0,34.758000000000003,34.758000000000003,{"$f":"nerr(W62/H62*100)","v":100},{"$f":"Y63+Y90+Y106","v":0},{"$f":"Z63+Z90+Z106","v":0}]
[null,null,"+","1.2.1","Электрические линии",null,{"$f":"G64+G77","v":0},0,0,0,0,0,0,0,0,0,0,0,0,0,0,0,0,{"$f":"nerr(W63/H63*100)","v":0},{"$f":"Y64+Y77","v":0},{"$f":"Z64+Z77","v":0}]
[null,null,"+","1.2.1.1","Воздушные линии",null,{"$f":"G65+G68+G71+G74","v":0},0,0,0,0,0,0,0,0,0,0,0,0,0,0,0,0,{"$f":"nerr(W64/H64*100)","v":0},{"$f":"Y65+Y68+Y71+Y74","v":0},{"$f":"Z65+Z68+Z71+Z74","v":0}]
[null,null,"+","1.2.1.1.1","ВЛЭП 110-220 кВ (ВН)",null,{"$f":"nerr(SUM(G66:G67)-G66)","v":0},0,0,0,0,0,0,0,0,0,0,0,0,0,0,0,{"$f":"nerr(SUM(W66:W67)-W66)","v":0},{"$f":"nerr(W65/H65*100)","v":0},{"$f":"nerr(SUM(Y66:Y67)-Y66)","v":0},{"$f":"nerr(SUM(Z66:Z67)-Z66)","v":0}]
[null,null,null,"1.2.1.1.1.0",null,"",null,{"$f":"nerr(J66+L66+N66+P66)","v":0},{"$f":"nerr(K66+M66+O66+Q66)","v":0},null,null,null,null,null,null,null,null,null,null,null,null,null,{"$f":"H66-I66","v":0},{"$f":"nerr(W66/H66*100)","v":0}]
[null,null,null,null,"Добавить"]
[null,null,"+","1.2.1.1.2","ВЛЭП 35 кВ (СН1)",null,{"$f":"nerr(SUM(G69:G70)-G69)","v":0},0,0,0,0,0,0,0,0,0,0,0,0,0,0,0,0,{"$f":"nerr(W68/H68*100)","v":0},{"$f":"nerr(SUM(Y69:Y70)-Y69)","v":0},{"$f":"nerr(SUM(Z69:Z70)-Z69)","v":0}]
[null,null,null,"1.2.1.1.2.0",null,"",null,{"$f":"nerr(J69+L69+N69+P69)","v":0},{"$f":"nerr(K69+M69+O69+Q69)","v":0},null,null,null,null,null,null,null,null,null,null,null,null,null,{"$f":"H69-I69","v":0},{"$f":"nerr(W69/H69*100)","v":0}]
[null,null,null,null,"Добавить"]
[null,null,"+","1.2.1.1.3","ВЛЭП 1-20 кВ (СН2)",null,{"$f":"nerr(SUM(G72:G73)-G72)","v":0},0,0,0,0,0,0,0,0,0,0,0,0,0,0,0,0,{"$f":"nerr(W71/H71*100)","v":0},{"$f":"nerr(SUM(Y72:Y73)-Y72)","v":0},{"$f":"nerr(SUM(Z72:Z73)-Z72)","v":0}]
[null,null,null,"1.2.1.1.3.0",null,"",null,{"$f":"nerr(J72+L72+N72+P72)","v":0},{"$f":"nerr(K72+M72+O72+Q72)","v":0},null,null,null,null,null,null,null,null,null,null,null,null,null,{"$f":"H72-I72","v":0},{"$f":"nerr(W72/H72*100)","v":0}]
[null,null,null,null,"Добавить"]
[null,null,"+","1.2.1.1.4","ВЛЭП 0,4 кВ (НН)",null,{"$f":"nerr(SUM(G75:G76)-G75)","v":0},0,0,0,0,0,0,0,0,0,0,0,0,0,0,0,0,{"$f":"nerr(W74/H74*100)","v":0},{"$f":"nerr(SUM(Y75:Y76)-Y75)","v":0},{"$f":"nerr(SUM(Z75:Z76)-Z75)","v":0}]
[null,null,null,"1.2.1.1.4.0",null,"",null,{"$f":"nerr(J75+L75+N75+P75)","v":0},{"$f":"nerr(K75+M75+O75+Q75)","v":0},null,null,null,null,null,null,null,null,null,null,null,null,null,{"$f":"H75-I75","v":0},{"$f":"nerr(W75/H75*100)","v":0}]
[null,null,null,null,"Добавить"]
[null,null,"+","1.2.1.2","Кабельные линии",null,{"$f":"G78+G81+G84+G87","v":0},0,0,0,0,0,0,0,0,0,0,0,0,0,0,0,0,{"$f":"nerr(W77/H77*100)","v":0},{"$f":"Y78+Y81+Y84+Y87","v":0},{"$f":"Z78+Z81+Z84+Z87","v":0}]
[null,null,"+","1.2.1.2.1","КЛЭП 110 кВ (ВН)",null,{"$f":"nerr(SUM(G79:G80)-G79)","v":0},0,0,0,0,0,0,0,0,0,0,0,0,0,0,0,0,{"$f":"nerr(W78/H78*100)","v":0},{"$f":"nerr(SUM(Y79:Y80)-Y79)","v":0},{"$f":"nerr(SUM(Z79:Z80)-Z79)","v":0}]
[null,null,null,"1.2.1.2.1.0",null,"",null,{"$f":"nerr(J79+L79+N79+P79)","v":0},{"$f":"nerr(K79+M79+O79+Q79)","v":0},null,null,null,null,null,null,null,null,null,null,null,null,null,{"$f":"H79-I79","v":0},{"$f":"nerr(W79/H79*100)","v":0}]
[null,null,null,null,"Добавить"]
[null,null,"+","1.2.1.2.2","КЛЭП 20-35 кВ (СН1)",null,{"$f":"nerr(SUM(G82:G83)-G82)","v":0},0,0,0,0,0,0,0,0,0,0,0,0,0,0,0,0,{"$f":"nerr(W81/H81*100)","v":0},{"$f":"nerr(SUM(Y82:Y83)-Y82)","v":0},{"$f":"nerr(SUM(Z82:Z83)-Z82)","v":0}]
[null,null,null,"1.2.1.2.2.0",null,"",null,{"$f":"nerr(J82+L82+N82+P82)","v":0},{"$f":"nerr(K82+M82+O82+Q82)","v":0},null,null,null,null,null,null,null,null,null,null,null,null,null,{"$f":"H82-I82","v":0},{"$f":"nerr(W82/H82*100)","v":0}]
[null,null,null,null,"Добавить"]
[null,null,"+","1.2.1.2.3","КЛЭП 3-10 кВ (СН2)",null,{"$f":"nerr(SUM(G85:G86)-G85)","v":0},0,0,0,0,0,0,0,0,0,0,0,0,0,0,0,0,{"$f":"nerr(W84/H84*100)","v":0},{"$f":"nerr(SUM(Y85:Y86)-Y85)","v":0},{"$f":"nerr(SUM(Z85:Z86)-Z85)","v":0}]
[null,null,null,"1.2.1.2.3.0","Замена двух кабельных линий электропередачи марки АСБ напряжением 6 кВ, сечением 3х120кв.мм от главного распределительного устройства 6 кВ, находящегося на территории ТЭЦ-1, до распределительной подстанции №128, находящейся по ул. 26 Бакинских комиссаров, 50а, на кабельные линии электропередачи марки АСБ большего сечения, с установкой двух приборов учета электрической энергии","",null,{"$f":"nerr(J85+L85+N85+P85)","v":0},{"$f":"nerr(K85+M85+O85+Q85)","v":0},null,null,null,null,null,null,null,null,null,null,null,null,null,{"$f":"H85-I85","v":0},{"$f":"nerr(W85/H85*100)","v":0}]
[null,null,null,null,"Добавить"]
[null,null,"+","1.2.1.2.4","КЛЭП до 1 кВ (НН)",null,{"$f":"nerr(SUM(G88:G89)-G88)","v":0},0,0,0,0,0,0,0,0,0,0,0,0,0,0,0,0,{"$f":"nerr(W87/H87*100)","v":0},{"$f":"nerr(SUM(Y88:Y89)-Y88)","v":0},{"$f":"nerr(SUM(Z88:Z89)-Z88)","v":0}]
[null,null,null,"1.2.1.2.4.0",null,"",null,{"$f":"nerr(J88+L88+N88+P88)","v":0},{"$f":"nerr(K88+M88+O88+Q88)","v":0},null,null,null,null,null,null,null,null,null,null,null,null,null,{"$f":"H88-I88","v":0},{"$f":"nerr(W88/H88*100)","v":0}]
[null,null,null,null,"Добавить"]
[null,null,"+","1.2.2","Подстанции",null,{"$f":"G91+G94+G97","v":34.758000000000003},34.758000000000003,0,0,0,0,0,0,0,34.758000000000003,0,0,0,0,0,34.758000000000003,34.758000000000003,{"$f":"nerr(W90/H90*100)","v":100},{"$f":"Y91+Y94+Y97","v":0},{"$f":"Z91+Z94+Z97","v":0}]
[null,null,"+","1.2.2.1","Уровень входящего напряжения ВН",null,{"$f":"nerr(SUM(G92:G93)-G92)","v":0},0,0,0,0,0,0,0,0,0,0,0,0,0,0,0,0,{"$f":"nerr(W91/H91*100)","v":0},{"$f":"nerr(SUM(Y92:Y93)-Y92)","v":0},{"$f":"nerr(SUM(Z92:Z93)-Z92)","v":0}]
[null,null,null,"1.2.2.1.0",null,"",null,{"$f":"nerr(J92+L92+N92+P92)","v":0},{"$f":"nerr(K92+M92+O92+Q92)","v":0},null,null,null,null,null,null,null,null,null,null,null,null,null,{"$f":"H92-I92","v":0},{"$f":"nerr(W92/H92*100)","v":0}]
[null,null,null,null,"Добавить"]
[null,null,"+","1.2.2.2","Уровень входящего напряжения СН1",null,{"$f":"nerr(SUM(G95:G96)-G95)","v":0},0,0,0,0,0,0,0,0,0,0,0,0,0,0,0,0,{"$f":"nerr(W94/H94*100)","v":0},{"$f":"nerr(SUM(Y95:Y96)-Y95)","v":0},{"$f":"nerr(SUM(Z95:Z96)-Z95)","v":0}]
[null,null,null,"1.2.2.2.0",null,"",null,{"$f":"nerr(J95+L95+N95+P95)","v":0},{"$f":"nerr(K95+M95+O95+Q95)","v":0},null,null,null,null,null,null,null,null,null,null,null,null,null,{"$f":"H95-I95","v":0},{"$f":"nerr(W95/H95*100)","v":0}]
[null,null,null,null,"Добавить"]
[null,null,"+","1.2.2.3","Уровень входящего напряжения СН2",null,{"$f":"nerr(SUM(G98:G105)-G98)","v":34.758000000000003},34.758000000000003,0,0,0,0,0,0,0,34.758000000000003,0,0,0,0,0,34.758000000000003,34.758000000000003,{"$f":"nerr(W97/H97*100)","v":100},{"$f":"nerr(SUM(Y98:Y105)-Y98)","v":0},{"$f":"nerr(SUM(Z98:Z105)-Z98)","v":0}]
[null,null,null,"1.2.2.3.0",null,"",null,{"$f":"nerr(J98+L98+N98+P98)","v":0},0,null,null,null,null,null,null,null,null,null,null,null,null,null,{"$f":"H98-I98","v":0},0]
[null,null,"Удалить","1.2.2.3.1","Модернизация оборудования трансформаторной подстанции № 685, находящейся по ул. Глинки, 13г","",3.593,{"$f":"nerr(J99+L99+N99+P99)","v":3.593},0,0,0,0,0,0,0,{"$f":"G99","v":3.593},0,{"$f":"K99+M99+O99+Q99","v":0},{"$f":"Q99","v":0},{"$f":"K99+M99+O99+Q99","v":0},{"$f":"S99","v":0},{"$f":"H99-I99","v":3.593},3.593,100,null,null,"",null,45]
[null,null,"Удалить","1.2.2.3.2","Модернизация оборудования трансформаторной подстанции № 783, находящейся по ул. Парковая, 10 а","",6.952,6.952,0,0,0,0,0,0,0,{"$f":"G100","v":6.952},0,0,0,0,0,6.952,6.952,100,null,null,"",null,46]
[null,null,"Удалить","1.2.2.3.3","Модернизация распределительного устройства напряжением 6 кВ в распределительной подстанции № 127, находящейся по ул. Пограничников, 7 д","",9.6370000000000005,9.6370000000000005,0,0,0,0,0,0,0,9.6370000000000005,0,0,0,0,0,9.6370000000000005,{"$f":"H101-I101","v":9.6370000000000005},{"$f":"nerr(W101/H101*100)","v":100},null,null,"",null,50]
[null,null,"Удалить","1.2.2.3.4","Модернизация оборудования трансформаторной подстанции № 508, находящейся по ул. Армейская, 21 г","",7.39,7.39,0,0,0,0,0,0,0,7.39,0,0,0,0,0,7.39,7.39,100,null,null,"",null,51]
[null,null,"Удалить","1.2.2.3.5","Модернизация оборудования трансформаторной подстанции № 686, находящейся по ул. Глинки, 7г","",3.593,{"$f":"nerr(J103+L103+N103+P103)","v":3.593},{"$f":"nerr(K103+M103+O103+Q103)","v":0},0,0,0,0,0,0,3.593,0,{"$f":"K103+M103+O103+Q103","v":0},{"$f":"Q103","v":0},{"$f":"K103+M103+O103+Q103","v":0},{"$f":"S103","v":0},{"$f":"H103-I103","v":3.593},3.593,100,null,null,"",null,52]
[null,null,"Удалить","1.2.2.3.6","Модернизация оборудования трансформаторной подстанции № 581, находящейся по ул. Малиновского, 4г","",3.593,{"$f":"nerr(J104+L104+N104+P104)","v":3.593},{"$f":"nerr(K104+M104+O104+Q104)","v":0},0,0,0,0,0,0,3.593,0,{"$f":"K104+M104+O104+Q104","v":0},{"$f":"Q104","v":0},{"$f":"K104+M104+O104+Q104","v":0},{"$f":"S104","v":0},{"$f":"H104-I104","v":3.593},3.593,100,null,null,"",null,53]
[null,null,null,null,"Добавить"]
[null,null,"+","1.2.3","Прочие электросетевые объекты",null,{"$f":"nerr(SUM(G107:G108)-G107)","v":0},0,0,0,0,0,0,0,0,0,0,0,0,0,0,0,0,{"$f":"nerr(W106/H106*100)","v":0},{"$f":"nerr(SUM(Y107:Y108)-Y107)","v":0},{"$f":"nerr(SUM(Z107:Z108)-Z107)","v":0}]
[null,null,null,"1.2.3.0",null,"",null,{"$f":"nerr(J107+L107+N107+P107)","v":0},{"$f":"nerr(K107+M107+O107+Q107)","v":0},null,null,null,null,null,null,null,null,null,null,null,null,null,{"$f":"H107-I107","v":0},{"$f":"nerr(W107/H107*100)","v":0}]
[null,null,null,null,"Добавить"]
[null,null,"+","1.3","Создание систем противоаварийной и режимной автоматики",null,{"$f":"nerr(SUM(G110:G111)-G110)","v":0},0,0,0,0,0,0,0,0,0,0,0,0,0,0,0,0,{"$f":"nerr(W109/H109*100)","v":0},{"$f":"nerr(SUM(Y110:Y111)-Y110)","v":0},{"$f":"nerr(SUM(Z110:Z111)-Z110)","v":0}]
[null,null,null,"1.3.0",null,"",null,{"$f":"nerr(J110+L110+N110+P110)","v":0},{"$f":"nerr(K110+M110+O110+Q110)","v":0},null,null,null,null,null,null,null,null,null,null,null,null,null,{"$f":"H110-I110","v":0},{"$f":"nerr(W110/H110*100)","v":0}]
[null,null,null,null,"Добавить"]
[null,null,"+","1.4","Создание систем телемеханики и связи",null,{"$f":"nerr(SUM(G113:G114)-G113)","v":0},0,0,0,0,0,0,0,0,0,0,0,0,0,0,0,0,{"$f":"nerr(W112/H112*100)","v":0},{"$f":"nerr(SUM(Y113:Y114)-Y113)","v":0},{"$f":"nerr(SUM(Z113:Z114)-Z113)","v":0}]
[null,null,null,"1.4.0",null,"",null,{"$f":"nerr(J113+L113+N113+P113)","v":0},{"$f":"nerr(K113+M113+O113+Q113)","v":0},0,0,null,null,null,null,null,null,0,0,0,0,{"$f":"G113-K113","v":0},{"$f":"H113-I113","v":0},{"$f":"nerr(W113/H113*100)","v":0}]
[null,null,null,null,"Добавить"]
[null,null,"+","1.5","Установка устройств регулирования напряжения и компенсации реактивной мощности",null,{"$f":"nerr(SUM(G116:G117)-G116)","v":0},0,0,0,0,0,0,0,0,0,0,0,0,0,0,0,0,{"$f":"nerr(W115/H115*100)","v":0},{"$f":"nerr(SUM(Y116:Y117)-Y116)","v":0},{"$f":"nerr(SUM(Z116:Z117)-Z116)","v":0}]
[null,null,null,"1.5.0",null,"",null,{"$f":"nerr(J116+L116+N116+P116)","v":0},{"$f":"nerr(K116+M116+O116+Q116)","v":0},null,null,null,null,null,null,null,null,null,null,null,null,null,{"$f":"H116-I116","v":0},{"$f":"nerr(W116/H116*100)","v":0}]
[null,null,null,null,"Добавить"]
[null,null,"+","1.6","Исполнение договоров технологического присоединения",null,{"$f":"G119+G146+G156","v":0},0,0,0,0,0,0,0,0,0,0,0,0,0,0,0,{"$f":"W119+W146+W156","v":0},{"$f":"nerr(W118/H118*100)","v":0},{"$f":"Y119+Y146+Y156","v":0},{"$f":"Z119+Z146+Z156","v":0}]
[null,null,"+","1.6.1","Электрические линии",null,{"$f":"G120+G133","v":0},0,0,0,0,0,0,0,0,0,0,0,0,0,0,0,{"$f":"W120+W133","v":0},{"$f":"nerr(W119/H119*100)","v":0},{"$f":"Y120+Y133","v":0},{"$f":"Z120+Z133","v":0}]
[null,null,"+","1.6.1.1","Воздушные линии",null,{"$f":"G121+G124+G127+G130","v":0},0,0,0,0,0,0,0,0,0,0,0,0,0,0,0,{"$f":"W121+W124+W127+W130","v":0},{"$f":"nerr(W120/H120*100)","v":0},{"$f":"Y121+Y124+Y127+Y130","v":0},{"$f":"Z121+Z124+Z127+Z130","v":0}]
[null,null,"+","1.6.1.1.1","ВЛЭП 110-220 кВ (ВН)",null,{"$f":"nerr(SUM(G122:G123)-G122)","v":0},0,0,0,0,0,0,0,0,0,0,0,0,0,0,0,{"$f":"nerr(SUM(W122:W123)-W122)","v":0},{"$f":"nerr(W121/H121*100)","v":0},{"$f":"nerr(SUM(Y122:Y123)-Y122)","v":0},{"$f":"nerr(SUM(Z122:Z123)-Z122)","v":0}]
[null,null,null,"1.6.1.1.1.0",null,"",null,{"$f":"nerr(J122+L122+N122+P122)","v":0},{"$f":"nerr(K122+M122+O122+Q122)","v":0},null,null,null,null,null,null,null,null,null,null,null,null,null,{"$f":"H122-I122","v":0},{"$f":"nerr(W122/H122*100)","v":0}]
[null,null,null,null,"Добавить"]
[null,null,"+","1.6.1.1.2","ВЛЭП 35 кВ (СН1)",null,{"$f":"nerr(SUM(G125:G126)-G125)","v":0},0,0,0,0,0,0,0,0,0,0,0,0,0,0,0,0,{"$f":"nerr(W124/H124*100)","v":0},{"$f":"nerr(SUM(Y125:Y126)-Y125)","v":0},{"$f":"nerr(SUM(Z125:Z126)-Z125)","v":0}]
[null,null,null,"1.6.1.1.2.0",null,"",null,{"$f":"nerr(J125+L125+N125+P125)","v":0},{"$f":"nerr(K125+M125+O125+Q125)","v":0},null,null,null,null,null,null,null,null,null,null,null,null,null,{"$f":"H125-I125","v":0},{"$f":"nerr(W125/H125*100)","v":0}]
[null,null,null,null,"Добавить"]
[null,null,"+","1.6.1.1.3","ВЛЭП 1-20 кВ (СН2)",null,{"$f":"nerr(SUM(G128:G129)-G128)","v":0},0,0,0,0,0,0,0,0,0,0,0,0,0,0,0,0,{"$f":"nerr(W127/H127*100)","v":0},{"$f":"nerr(SUM(Y128:Y129)-Y128)","v":0},{"$f":"nerr(SUM(Z128:Z129)-Z128)","v":0}]
[null,null,null,"1.6.1.1.3.0",null,"",null,{"$f":"nerr(J128+L128+N128+P128)","v":0},{"$f":"nerr(K128+M128+O128+Q128)","v":0},null,null,null,null,null,null,null,null,null,null,null,null,null,{"$f":"H128-I128","v":0},{"$f":"nerr(W128/H128*100)","v":0}]
[null,null,null,null,"Добавить"]
[null,null,"+","1.6.1.1.4","ВЛЭП 0,4 кВ (НН)",null,{"$f":"nerr(SUM(G131:G132)-G131)","v":0},0,0,0,0,0,0,0,0,0,0,0,0,0,0,0,0,{"$f":"nerr(W130/H130*100)","v":0},{"$f":"nerr(SUM(Y131:Y132)-Y131)","v":0},{"$f":"nerr(SUM(Z131:Z132)-Z131)","v":0}]
[null,null,null,"1.6.1.1.4.0",null,"",null,{"$f":"nerr(J131+L131+N131+P131)","v":0},{"$f":"nerr(K131+M131+O131+Q131)","v":0},null,null,null,null,null,null,null,null,null,null,null,null,null,{"$f":"H131-I131","v":0},{"$f":"nerr(W131/H131*100)","v":0}]
[null,null,null,null,"Добавить"]
[null,null,"+","1.6.1.2","Кабельные линии",null,{"$f":"G134+G137+G140+G143","v":0},0,0,0,0,0,0,0,0,0,0,0,0,0,0,0,0,{"$f":"nerr(W133/H133*100)","v":0},{"$f":"Y134+Y137+Y140+Y143","v":0},{"$f":"Z134+Z137+Z140+Z143","v":0}]
[null,null,"+","1.6.1.2.1","КЛЭП 110 кВ (ВН)",null,{"$f":"nerr(SUM(G135:G136)-G135)","v":0},0,0,0,0,0,0,0,0,0,0,0,0,0,0,0,0,{"$f":"nerr(W134/H134*100)","v":0},{"$f":"nerr(SUM(Y135:Y136)-Y135)","v":0},{"$f":"nerr(SUM(Z135:Z136)-Z135)","v":0}]
[null,null,null,"1.6.1.2.1.0",null,"",null,{"$f":"nerr(J135+L135+N135+P135)","v":0},{"$f":"nerr(K135+M135+O135+Q135)","v":0},null,null,null,null,null,null,null,null,null,null,null,null,null,{"$f":"H135-I135","v":0},{"$f":"nerr(W135/H135*100)","v":0}]
[null,null,null,null,"Добавить"]
[null,null,"+","1.6.1.2.2","КЛЭП 20-35 кВ (СН1)",null,{"$f":"nerr(SUM(G138:G139)-G138)","v":0},0,0,0,0,0,0,0,0,0,0,0,0,0,0,0,0,{"$f":"nerr(W137/H137*100)","v":0},{"$f":"nerr(SUM(Y138:Y139)-Y138)","v":0},{"$f":"nerr(SUM(Z138:Z139)-Z138)","v":0}]
[null,null,null,"1.6.1.2.2.0",null,"",null,{"$f":"nerr(J138+L138+N138+P138)","v":0},{"$f":"nerr(K138+M138+O138+Q138)","v":0},null,null,null,null,null,null,null,null,null,null,null,null,null,{"$f":"H138-I138","v":0},{"$f":"nerr(W138/H138*100)","v":0}]
[null,null,null,null,"Добавить"]
[null,null,"+","1.6.1.2.3","КЛЭП 3-10 кВ (СН2)",null,{"$f":"nerr(SUM(G141:G142)-G141)","v":0},0,0,0,0,0,0,0,0,0,0,0,0,0,0,0,0,{"$f":"nerr(W140/H140*100)","v":0},{"$f":"nerr(SUM(Y141:Y142)-Y141)","v":0},{"$f":"nerr(SUM(Z141:Z142)-Z141)","v":0}]
[null,null,null,"1.6.1.2.3.0",null,"",null,{"$f":"nerr(J141+L141+N141+P141)","v":0},{"$f":"nerr(K141+M141+O141+Q141)","v":0},null,null,null,null,null,null,null,null,null,null,null,null,null,{"$f":"H141-I141","v":0},{"$f":"nerr(W141/H141*100)","v":0}]
[null,null,null,null,"Добавить"]
[null,null,"+","1.6.1.2.4","КЛЭП до 1 кВ (НН)",null,{"$f":"nerr(SUM(G144:G145)-G144)","v":0},0,0,0,0,0,0,0,0,0,0,0,0,0,0,0,0,{"$f":"nerr(W143/H143*100)","v":0},{"$f":"nerr(SUM(Y144:Y145)-Y144)","v":0},{"$f":"nerr(SUM(Z144:Z145)-Z144)","v":0}]
[null,null,null,"1.6.1.2.4.0",null,"",null,{"$f":"nerr(J144+L144+N144+P144)","v":0},{"$f":"nerr(K144+M144+O144+Q144)","v":0},null,null,null,null,null,null,null,null,null,null,null,null,null,{"$f":"H144-I144","v":0},{"$f":"nerr(W144/H144*100)","v":0}]
[null,null,null,null,"Добавить"]
[null,null,"+","1.6.2","Подстанции",null,{"$f":"G147+G150+G153","v":0},0,0,0,0,0,0,0,0,0,0,0,0,0,0,0,0,{"$f":"nerr(W146/H146*100)","v":0},{"$f":"Y147+Y150+Y153","v":0},{"$f":"Z147+Z150+Z153","v":0}]
[null,null,"+","1.6.2.1","Уровень входящего напряжения ВН",null,{"$f":"nerr(SUM(G148:G149)-G148)","v":0},0,0,0,0,0,0,0,0,0,0,0,0,0,0,0,0,{"$f":"nerr(W147/H147*100)","v":0},{"$f":"nerr(SUM(Y148:Y149)-Y148)","v":0},{"$f":"nerr(SUM(Z148:Z149)-Z148)","v":0}]
[null,null,null,"1.6.2.1.0",null,"",null,{"$f":"nerr(J148+L148+N148+P148)","v":0},{"$f":"nerr(K148+M148+O148+Q148)","v":0},null,null,null,null,null,null,null,null,null,null,null,null,null,{"$f":"H148-I148","v":0},{"$f":"nerr(W148/H148*100)","v":0}]
[null,null,null,null,"Добавить"]
[null,null,"+","1.6.2.2","Уровень входящего напряжения СН1",null,{"$f":"nerr(SUM(G151:G152)-G151)","v":0},0,0,0,0,0,0,0,0,0,0,0,0,0,0,0,0,{"$f":"nerr(W150/H150*100)","v":0},{"$f":"nerr(SUM(Y151:Y152)-Y151)","v":0},{"$f":"nerr(SUM(Z151:Z152)-Z151)","v":0}]
[null,null,null,"1.6.2.2.0",null,"",null,{"$f":"nerr(J151+L151+N151+P151)","v":0},{"$f":"nerr(K151+M151+O151+Q151)","v":0},null,null,null,null,null,null,null,null,null,null,null,null,null,{"$f":"H151-I151","v":0},{"$f":"nerr(W151/H151*100)","v":0}]
[null,null,null,null,"Добавить"]
[null,null,"+","1.6.2.3","Уровень входящего напряжения СН2",null,{"$f":"nerr(SUM(G154:G155)-G154)","v":0},0,0,0,0,0,0,0,0,0,0,0,0,0,0,0,0,{"$f":"nerr(W153/H153*100)","v":0},{"$f":"nerr(SUM(Y154:Y155)-Y154)","v":0},{"$f":"nerr(SUM(Z154:Z155)-Z154)","v":0}]
[null,null,null,"1.6.2.3.0",null,"",null,{"$f":"nerr(J154+L154+N154+P154)","v":0},{"$f":"nerr(K154+M154+O154+Q154)","v":0},null,null,null,null,null,null,null,null,null,null,null,null,null,{"$f":"H154-I154","v":0},{"$f":"nerr(W154/H154*100)","v":0}]
[null,null,null,null,"Добавить"]
[null,null,"+","1.6.3","Прочие электросетевые объекты",null,{"$f":"nerr(SUM(G157:G158)-G157)","v":0},0,0,0,0,0,0,0,0,0,0,0,0,0,0,0,0,{"$f":"nerr(W156/H156*100)","v":0},{"$f":"nerr(SUM(Y157:Y158)-Y157)","v":0},{"$f":"nerr(SUM(Z157:Z158)-Z157)","v":0}]
[null,null,null,"1.6.3.0",null,"",null,{"$f":"nerr(J157+L157+N157+P157)","v":0},{"$f":"nerr(K157+M157+O157+Q157)","v":0},null,null,null,null,null,null,null,null,null,null,null,null,null,{"$f":"H157-I157","v":0},{"$f":"nerr(W157/H157*100)","v":0}]
[null,null,null,null,"Добавить"]
[null,null,null,"2","Новое строительство",null,{"$f":"G160+G201+G242","v":0},0,0,0,0,0,0,0,0,0,0,0,0,0,0,0,0,{"$f":"nerr(W159/H159*100)","v":0},{"$f":"Y160+Y201+Y242","v":0},{"$f":"Z160+Z201+Z242","v":0}]
[null,null,"+","2.1","Энергосбережение и повышение энергетической эффективности",null,{"$f":"G161+G188+G198","v":0},0,0,0,0,0,0,0,0,0,0,0,0,0,0,0,{"$f":"W161+W188+W198","v":0},0,{"$f":"Y161+Y188+Y198","v":0},{"$f":"Z161+Z188+Z198","v":0}]
[null,null,"+","2.1.1","Электрические линии",null,{"$f":"G162+G175","v":0},0,0,0,0,0,0,0,0,0,0,0,0,0,0,0,{"$f":"W162+W175","v":0},0,{"$f":"Y162+Y175","v":0},{"$f":"Z162+Z175","v":0}]
[null,null,"+","2.1.1.1","Воздушные линии",null,{"$f":"G163+G166+G169+G172","v":0},0,0,0,0,0,0,0,0,0,0,0,0,0,0,0,{"$f":"W163+W166+W169+W172","v":0},0,{"$f":"Y163+Y166+Y169+Y172","v":0},{"$f":"Z163+Z166+Z169+Z172","v":0}]
[null,null,"+","2.1.1.1.1","ВЛЭП 110-220 кВ (ВН)",null,{"$f":"nerr(SUM(G164:G165)-G164)","v":0},0,0,0,0,0,0,0,0,0,0,0,0,0,0,0,{"$f":"nerr(SUM(W164:W165)-W164)","v":0},0,{"$f":"nerr(SUM(Y164:Y165)-Y164)","v":0},{"$f":"nerr(SUM(Z164:Z165)-Z164)","v":0}]
[null,null,null,"2.1.1.1.1.0",null,"",null,{"$f":"nerr(J164+L164+N164+P164)","v":0},{"$f":"nerr(K164+M164+O164+Q164)","v":0},null,null,null,null,null,null,null,null,null,null,null,null,null,{"$f":"H164-I164","v":0},0]
[null,null,null,null,"Добавить"]
[null,null,"+","2.1.1.1.2","ВЛЭП 35 кВ (СН1)",null,{"$f":"nerr(SUM(G167:G168)-G167)","v":0},0,0,0,0,0,0,0,0,0,0,0,0,0,0,0,0,{"$f":"nerr(W166/H166*100)","v":0},{"$f":"nerr(SUM(Y167:Y168)-Y167)","v":0},{"$f":"nerr(SUM(Z167:Z168)-Z167)","v":0}]
[null,null,null,"2.1.1.1.2.0",null,"",null,{"$f":"nerr(J167+L167+N167+P167)","v":0},{"$f":"nerr(K167+M167+O167+Q167)","v":0},null,null,null,null,null,null,null,null,null,null,null,null,null,{"$f":"H167-I167","v":0},{"$f":"nerr(W167/H167*100)","v":0}]
[null,null,null,null,"Добавить"]
[null,null,"+","2.1.1.1.3","ВЛЭП 1-20 кВ (СН2)",null,{"$f":"nerr(SUM(G170:G171)-G170)","v":0},0,0,0,0,0,0,0,0,0,0,0,0,0,0,0,0,{"$f":"nerr(W169/H169*100)","v":0},{"$f":"nerr(SUM(Y170:Y171)-Y170)","v":0},{"$f":"nerr(SUM(Z170:Z171)-Z170)","v":0}]
[null,null,null,"2.1.1.1.3.0",null,"",null,{"$f":"nerr(J170+L170+N170+P170)","v":0},{"$f":"nerr(K170+M170+O170+Q170)","v":0},null,null,null,null,null,null,null,null,null,null,null,null,null,{"$f":"H170-I170","v":0},{"$f":"nerr(W170/H170*100)","v":0}]
[null,null,null,null,"Добавить"]
[null,null,"+","2.1.1.1.4","ВЛЭП 0,4 кВ (НН)",null,{"$f":"nerr(SUM(G173:G174)-G173)","v":0},0,0,0,0,0,0,0,0,0,0,0,0,0,0,0,0,{"$f":"nerr(W172/H172*100)","v":0},{"$f":"nerr(SUM(Y173:Y174)-Y173)","v":0},{"$f":"nerr(SUM(Z173:Z174)-Z173)","v":0}]
[null,null,null,"2.1.1.1.4.0",null,"",null,{"$f":"nerr(J173+L173+N173+P173)","v":0},{"$f":"nerr(K173+M173+O173+Q173)","v":0},null,null,null,null,null,null,null,null,null,null,null,null,null,{"$f":"H173-I173","v":0},{"$f":"nerr(W173/H173*100)","v":0}]
[null,null,null,null,"Добавить"]
[null,null,"+","2.1.1.2","Кабельные линии",null,{"$f":"G176+G179+G182+G185","v":0},0,0,0,0,0,0,0,0,0,0,0,0,0,0,0,0,{"$f":"nerr(W175/H175*100)","v":0},{"$f":"Y176+Y179+Y182+Y185","v":0},{"$f":"Z176+Z179+Z182+Z185","v":0}]
[null,null,"+","2.1.1.2.1","КЛЭП 110 кВ (ВН)",null,{"$f":"nerr(SUM(G177:G178)-G177)","v":0},0,0,0,0,0,0,0,0,0,0,0,0,0,0,0,0,{"$f":"nerr(W176/H176*100)","v":0},{"$f":"nerr(SUM(Y177:Y178)-Y177)","v":0},{"$f":"nerr(SUM(Z177:Z178)-Z177)","v":0}]
[null,null,null,"2.1.1.2.1.0",null,"",null,{"$f":"nerr(J177+L177+N177+P177)","v":0},{"$f":"nerr(K177+M177+O177+Q177)","v":0},null,null,null,null,null,null,null,null,null,null,null,null,null,{"$f":"H177-I177","v":0},{"$f":"nerr(W177/H177*100)","v":0}]
[null,null,null,null,"Добавить"]
[null,null,"+","2.1.1.2.2","КЛЭП 20-35 кВ (СН1)",null,{"$f":"nerr(SUM(G180:G181)-G180)","v":0},0,0,0,0,0,0,0,0,0,0,0,0,0,0,0,0,{"$f":"nerr(W179/H179*100)","v":0},{"$f":"nerr(SUM(Y180:Y181)-Y180)","v":0},{"$f":"nerr(SUM(Z180:Z181)-Z180)","v":0}]
[null,null,null,"2.1.1.2.2.0",null,"",null,{"$f":"nerr(J180+L180+N180+P180)","v":0},{"$f":"nerr(K180+M180+O180+Q180)","v":0},null,null,null,null,null,null,null,null,null,null,null,null,null,{"$f":"H180-I180","v":0},{"$f":"nerr(W180/H180*100)","v":0}]
[null,null,null,null,"Добавить"]
[null,null,"+","2.1.1.2.3","КЛЭП 3-10 кВ (СН2)",null,{"$f":"nerr(SUM(G183:G184)-G183)","v":0},0,0,0,0,0,0,0,0,0,0,0,0,0,0,0,0,{"$f":"nerr(W182/H182*100)","v":0},{"$f":"nerr(SUM(Y183:Y184)-Y183)","v":0},{"$f":"nerr(SUM(Z183:Z184)-Z183)","v":0}]
[null,null,null,"2.1.1.2.3.0",null,"",null,{"$f":"nerr(J183+L183+N183+P183)","v":0},{"$f":"nerr(K183+M183+O183+Q183)","v":0},null,null,null,null,null,null,null,null,null,null,null,null,null,{"$f":"H183-I183","v":0},{"$f":"nerr(W183/H183*100)","v":0}]
[null,null,null,null,"Добавить"]
[null,null,"+","2.1.1.2.4","КЛЭП до 1 кВ (НН)",null,{"$f":"nerr(SUM(G186:G187)-G186)","v":0},0,0,0,0,0,0,0,0,0,0,0,0,0,0,0,0,{"$f":"nerr(W185/H185*100)","v":0},{"$f":"nerr(SUM(Y186:Y187)-Y186)","v":0},{"$f":"nerr(SUM(Z186:Z187)-Z186)","v":0}]
[null,null,null,"2.1.1.2.4.0",null,"",null,{"$f":"nerr(J186+L186+N186+P186)","v":0},{"$f":"nerr(K186+M186+O186+Q186)","v":0},null,null,null,null,null,null,null,null,null,null,null,null,null,{"$f":"H186-I186","v":0},{"$f":"nerr(W186/H186*100)","v":0}]
[null,null,null,null,"Добавить"]
[null,null,"+","2.1.2","Подстанции",null,{"$f":"G189+G192+G195","v":0},0,0,0,0,0,0,0,0,0,0,0,0,0,0,0,0,{"$f":"nerr(W188/H188*100)","v":0},{"$f":"Y189+Y192+Y195","v":0},{"$f":"Z189+Z192+Z195","v":0}]
[null,null,"+","2.1.2.1","Уровень входящего напряжения ВН",null,{"$f":"nerr(SUM(G190:G191)-G190)","v":0},0,0,0,0,0,0,0,0,0,0,0,0,0,0,0,0,{"$f":"nerr(W189/H189*100)","v":0},{"$f":"nerr(SUM(Y190:Y191)-Y190)","v":0},{"$f":"nerr(SUM(Z190:Z191)-Z190)","v":0}]
[null,null,null,"2.1.2.1.0",null,"",null,{"$f":"nerr(J190+L190+N190+P190)","v":0},{"$f":"nerr(K190+M190+O190+Q190)","v":0},null,null,null,null,null,null,null,null,null,null,null,null,null,{"$f":"H190-I190","v":0},{"$f":"nerr(W190/H190*100)","v":0}]
[null,null,null,null,"Добавить"]
[null,null,"+","2.1.2.2","Уровень входящего напряжения СН1",null,{"$f":"nerr(SUM(G193:G194)-G193)","v":0},0,0,0,0,0,0,0,0,0,0,0,0,0,0,0,0,{"$f":"nerr(W192/H192*100)","v":0},{"$f":"nerr(SUM(Y193:Y194)-Y193)","v":0},{"$f":"nerr(SUM(Z193:Z194)-Z193)","v":0}]
[null,null,null,"2.1.2.2.0",null,"",null,{"$f":"nerr(J193+L193+N193+P193)","v":0},{"$f":"nerr(K193+M193+O193+Q193)","v":0},null,null,null,null,null,null,null,null,null,null,null,null,null,{"$f":"H193-I193","v":0},{"$f":"nerr(W193/H193*100)","v":0}]
[null,null,null,null,"Добавить"]
[null,null,"+","2.1.2.3","Уровень входящего напряжения СН2",null,{"$f":"nerr(SUM(G196:G197)-G196)","v":0},0,0,0,0,0,0,0,0,0,0,0,0,0,0,0,0,{"$f":"nerr(W195/H195*100)","v":0},{"$f":"nerr(SUM(Y196:Y197)-Y196)","v":0},{"$f":"nerr(SUM(Z196:Z197)-Z196)","v":0}]
[null,null,null,"2.1.2.3.0",null,"",null,{"$f":"nerr(J196+L196+N196+P196)","v":0},{"$f":"nerr(K196+M196+O196+Q196)","v":0},null,null,null,null,null,null,null,null,null,null,null,null,null,{"$f":"H196-I196","v":0},{"$f":"nerr(W196/H196*100)","v":0}]
[null,null,null,null,"Добавить"]
[null,null,"+","2.1.3","Прочие электросетевые объекты",null,{"$f":"nerr(SUM(G199:G200)-G199)","v":0},0,0,0,0,0,0,0,0,0,0,0,0,0,0,0,0,{"$f":"nerr(W198/H198*100)","v":0},{"$f":"nerr(SUM(Y199:Y200)-Y199)","v":0},{"$f":"nerr(SUM(Z199:Z200)-Z199)","v":0}]
[null,null,null,"2.1.3.0",null,"",null,{"$f":"nerr(J199+L199+N199+P199)","v":0},{"$f":"nerr(K199+M199+O199+Q199)","v":0},null,null,null,null,null,null,null,null,null,null,null,null,null,{"$f":"H199-I199","v":0},{"$f":"nerr(W199/H199*100)","v":0}]
[null,null,null,null,"Добавить"]
[null,null,"+","2.2","Исполнение договоров технологического присоединения",null,{"$f":"G202+G229+G239","v":0},0,0,0,0,0,0,0,0,0,0,0,0,0,0,0,{"$f":"W202+W229+W239","v":0},{"$f":"nerr(W201/H201*100)","v":0},{"$f":"Y202+Y229+Y239","v":0},{"$f":"Z202+Z229+Z239","v":0}]
[null,null,"+","2.2.1","Электрические линии",null,{"$f":"G203+G216","v":0},0,0,0,0,0,0,0,0,0,0,0,0,0,0,0,{"$f":"W203+W216","v":0},{"$f":"nerr(W202/H202*100)","v":0},{"$f":"Y203+Y216","v":0},{"$f":"Z203+Z216","v":0}]
[null,null,"+","2.2.1.1","Воздушные линии",null,{"$f":"G204+G207+G210+G213","v":0},0,0,0,0,0,0,0,0,0,0,0,0,0,0,0,{"$f":"W204+W207+W210+W213","v":0},{"$f":"nerr(W203/H203*100)","v":0},{"$f":"Y204+Y207+Y210+Y213","v":0},{"$f":"Z204+Z207+Z210+Z213","v":0}]
[null,null,"+","2.2.1.1.1","ВЛЭП 110-220 кВ (ВН)",null,{"$f":"nerr(SUM(G205:G206)-G205)","v":0},0,0,0,0,0,0,0,0,0,0,0,0,0,0,0,{"$f":"nerr(SUM(W205:W206)-W205)","v":0},{"$f":"nerr(W204/H204*100)","v":0},{"$f":"nerr(SUM(Y205:Y206)-Y205)","v":0},{"$f":"nerr(SUM(Z205:Z206)-Z205)","v":0}]
[null,null,null,"2.2.1.1.1.0",null,"",null,{"$f":"nerr(J205+L205+N205+P205)","v":0},{"$f":"nerr(K205+M205+O205+Q205)","v":0},null,null,null,null,null,null,null,null,null,null,null,null,null,{"$f":"H205-I205","v":0},{"$f":"nerr(W205/H205*100)","v":0}]
[null,null,null,null,"Добавить"]
[null,null,"+","2.2.1.1.2","ВЛЭП 35 кВ (СН1)",null,{"$f":"nerr(SUM(G208:G209)-G208)","v":0},0,0,0,0,0,0,0,0,0,0,0,0,0,0,0,0,{"$f":"nerr(W207/H207*100)","v":0},{"$f":"nerr(SUM(Y208:Y209)-Y208)","v":0},{"$f":"nerr(SUM(Z208:Z209)-Z208)","v":0}]
[null,null,null,"2.2.1.1.2.0",null,"",null,{"$f":"nerr(J208+L208+N208+P208)","v":0},{"$f":"nerr(K208+M208+O208+Q208)","v":0},null,null,null,null,null,null,null,null,null,null,null,null,null,{"$f":"H208-I208","v":0},{"$f":"nerr(W208/H208*100)","v":0}]
[null,null,null,null,"Добавить"]
[null,null,"+","2.2.1.1.3","ВЛЭП 1-20 кВ (СН2)",null,{"$f":"nerr(SUM(G211:G212)-G211)","v":0},0,0,0,0,0,0,0,0,0,0,0,0,0,0,0,0,{"$f":"nerr(W210/H210*100)","v":0},{"$f":"nerr(SUM(Y211:Y212)-Y211)","v":0},{"$f":"nerr(SUM(Z211:Z212)-Z211)","v":0}]
[null,null,null,"2.2.1.1.3.0",null,"",null,{"$f":"nerr(J211+L211+N211+P211)","v":0},{"$f":"nerr(K211+M211+O211+Q211)","v":0},null,null,null,null,null,null,null,null,null,null,null,null,null,{"$f":"H211-I211","v":0},{"$f":"nerr(W211/H211*100)","v":0}]
[null,null,null,null,"Добавить"]
[null,null,"+","2.2.1.1.4","ВЛЭП 0,4 кВ (НН)",null,{"$f":"nerr(SUM(G214:G215)-G214)","v":0},0,0,0,0,0,0,0,0,0,0,0,0,0,0,0,0,{"$f":"nerr(W213/H213*100)","v":0},{"$f":"nerr(SUM(Y214:Y215)-Y214)","v":0},{"$f":"nerr(SUM(Z214:Z215)-Z214)","v":0}]
[null,null,null,"2.2.1.1.4.0",null,"",null,{"$f":"nerr(J214+L214+N214+P214)","v":0},{"$f":"nerr(K214+M214+O214+Q214)","v":0},null,null,null,null,null,null,null,null,null,null,null,null,null,{"$f":"H214-I214","v":0},{"$f":"nerr(W214/H214*100)","v":0}]
[null,null,null,null,"Добавить"]
[null,null,"+","2.2.1.2","Кабельные линии",null,{"$f":"G217+G220+G223+G226","v":0},0,0,0,0,0,0,0,0,0,0,0,0,0,0,0,0,{"$f":"nerr(W216/H216*100)","v":0},{"$f":"Y217+Y220+Y223+Y226","v":0},{"$f":"Z217+Z220+Z223+Z226","v":0}]
[null,null,"+","2.2.1.2.1","КЛЭП 110 кВ (ВН)",null,{"$f":"nerr(SUM(G218:G219)-G218)","v":0},0,0,0,0,0,0,0,0,0,0,0,0,0,0,0,0,{"$f":"nerr(W217/H217*100)","v":0},{"$f":"nerr(SUM(Y218:Y219)-Y218)","v":0},{"$f":"nerr(SUM(Z218:Z219)-Z218)","v":0}]
[null,null,null,"2.2.1.2.1.0",null,"",null,{"$f":"nerr(J218+L218+N218+P218)","v":0},{"$f":"nerr(K218+M218+O218+Q218)","v":0},null,null,null,null,null,null,null,null,null,null,null,null,null,{"$f":"H218-I218","v":0},{"$f":"nerr(W218/H218*100)","v":0}]
[null,null,null,null,"Добавить"]
[null,null,"+","2.2.1.2.2","КЛЭП 20-35 кВ (СН1)",null,{"$f":"nerr(SUM(G221:G222)-G221)","v":0},0,0,0,0,0,0,0,0,0,0,0,0,0,0,0,0,{"$f":"nerr(W220/H220*100)","v":0},{"$f":"nerr(SUM(Y221:Y222)-Y221)","v":0},{"$f":"nerr(SUM(Z221:Z222)-Z221)","v":0}]
[null,null,null,"2.2.1.2.2.0",null,"",null,{"$f":"nerr(J221+L221+N221+P221)","v":0},{"$f":"nerr(K221+M221+O221+Q221)","v":0},null,null,null,null,null,null,null,null,null,null,null,null,null,{"$f":"H221-I221","v":0},{"$f":"nerr(W221/H221*100)","v":0}]
[null,null,null,null,"Добавить"]
[null,null,"+","2.2.1.2.3","КЛЭП 3-10 кВ (СН2)",null,{"$f":"nerr(SUM(G224:G225)-G224)","v":0},0,0,0,0,0,0,0,0,0,0,0,0,0,0,0,0,{"$f":"nerr(W223/H223*100)","v":0},{"$f":"nerr(SUM(Y224:Y225)-Y224)","v":0},{"$f":"nerr(SUM(Z224:Z225)-Z224)","v":0}]
[null,null,null,"2.2.1.2.3.0",null,"",null,{"$f":"nerr(J224+L224+N224+P224)","v":0},{"$f":"nerr(K224+M224+O224+Q224)","v":0},null,null,null,null,null,null,null,null,null,null,null,null,null,{"$f":"H224-I224","v":0},{"$f":"nerr(W224/H224*100)","v":0}]
[null,null,null,null,"Добавить"]
[null,null,"+","2.2.1.2.4","КЛЭП до 1 кВ (НН)",null,{"$f":"nerr(SUM(G227:G228)-G227)","v":0},0,0,0,0,0,0,0,0,0,0,0,0,0,0,0,0,{"$f":"nerr(W226/H226*100)","v":0},{"$f":"nerr(SUM(Y227:Y228)-Y227)","v":0},{"$f":"nerr(SUM(Z227:Z228)-Z227)","v":0}]
[null,null,null,"2.2.1.2.4.0",null,"",null,{"$f":"nerr(J227+L227+N227+P227)","v":0},{"$f":"nerr(K227+M227+O227+Q227)","v":0},null,null,null,null,null,null,null,null,null,null,null,null,null,{"$f":"H227-I227","v":0},{"$f":"nerr(W227/H227*100)","v":0}]
[null,null,null,null,"Добавить"]
[null,null,"+","2.2.2","Подстанции",null,{"$f":"G230+G233+G236","v":0},0,0,0,0,0,0,0,0,0,0,0,0,0,0,0,0,{"$f":"nerr(W229/H229*100)","v":0},{"$f":"Y230+Y233+Y236","v":0},{"$f":"Z230+Z233+Z236","v":0}]
[null,null,"+","2.2.2.1","Уровень входящего напряжения ВН",null,{"$f":"nerr(SUM(G231:G232)-G231)","v":0},0,0,0,0,0,0,0,0,0,0,0,0,0,0,0,0,{"$f":"nerr(W230/H230*100)","v":0},{"$f":"nerr(SUM(Y231:Y232)-Y231)","v":0},{"$f":"nerr(SUM(Z231:Z232)-Z231)","v":0}]
[null,null,null,"2.2.2.1.0",null,"",null,{"$f":"nerr(J231+L231+N231+P231)","v":0},{"$f":"nerr(K231+M231+O231+Q231)","v":0},null,null,null,null,null,null,null,null,null,null,null,null,null,{"$f":"H231-I231","v":0},{"$f":"nerr(W231/H231*100)","v":0}]
[null,null,null,null,"Добавить"]
[null,null,"+","2.2.2.2","Уровень входящего напряжения СН1",null,{"$f":"nerr(SUM(G234:G235)-G234)","v":0},0,0,0,0,0,0,0,0,0,0,0,0,0,0,0,0,{"$f":"nerr(W233/H233*100)","v":0},{"$f":"nerr(SUM(Y234:Y235)-Y234)","v":0},{"$f":"nerr(SUM(Z234:Z235)-Z234)","v":0}]
[null,null,null,"2.2.2.2.0",null,"",null,{"$f":"nerr(J234+L234+N234+P234)","v":0},{"$f":"nerr(K234+M234+O234+Q234)","v":0},null,null,null,null,null,null,null,null,null,null,null,null,null,{"$f":"H234-I234","v":0},{"$f":"nerr(W234/H234*100)","v":0}]
[null,null,null,null,"Добавить"]
[null,null,"+","2.2.2.3","Уровень входящего напряжения СН2",null,{"$f":"nerr(SUM(G237:G238)-G237)","v":0},0,0,0,0,0,0,0,0,0,0,0,0,0,0,0,0,{"$f":"nerr(W236/H236*100)","v":0},{"$f":"nerr(SUM(Y237:Y238)-Y237)","v":0},{"$f":"nerr(SUM(Z237:Z238)-Z237)","v":0}]
[null,null,null,"2.2.2.3.0",null,"",null,{"$f":"nerr(J237+L237+N237+P237)","v":0},{"$f":"nerr(K237+M237+O237+Q237)","v":0},null,null,null,null,null,null,null,null,null,null,null,null,null,{"$f":"H237-I237","v":0},{"$f":"nerr(W237/H237*100)","v":0}]
[null,null,null,null,"Добавить"]
[null,null,"+","2.2.3","Прочие электросетевые объекты",null,{"$f":"nerr(SUM(G240:G241)-G240)","v":0},0,0,0,0,0,0,0,0,0,0,0,0,0,0,0,0,{"$f":"nerr(W239/H239*100)","v":0},{"$f":"nerr(SUM(Y240:Y241)-Y240)","v":0},{"$f":"nerr(SUM(Z240:Z241)-Z240)","v":0}]
[null,null,null,"2.2.3.0",null,"",null,{"$f":"nerr(J240+L240+N240+P240)","v":0},{"$f":"nerr(K240+M240+O240+Q240)","v":0},null,null,null,null,null,null,null,null,null,null,null,null,null,{"$f":"H240-I240","v":0},{"$f":"nerr(W240/H240*100)","v":0}]
[null,null,null,null,"Добавить"]
[null,null,"+","2.3","Прочее новое строительство",null,{"$f":"nerr(SUMIF($AB243:$AB245,\"=I\",G243:G245)-G243)","v":0},0,0,0,0,0,0,0,0,0,0,0,0,0,0,0,0,{"$f":"nerr(W242/H242*100)","v":0},{"$f":"nerr(SUMIF($AB243:$AB245,\"=I\",Y243:Y245)-Y243)","v":0},{"$f":"nerr(SUMIF($AB243:$AB245,\"=I\",Z243:Z245)-Z243)","v":0}]
[null,null,null,"2.3.0",null,"",null,{"$f":"nerr(J243+L243+N243+P243)","v":0},{"$f":"nerr(K243+M243+O243+Q243)","v":0},null,null,null,null,null,null,null,null,null,null,null,null,null,{"$f":"H243-I243","v":0},{"$f":"nerr(W243/H243*100)","v":0},null,null,null,"I"]
[null,null,null,{"$f":"D243&\".1\"","v":"2.3.0.1"},"в том числе ПТП","",null,{"$f":"nerr(J244+L244+N244+P244)","v":0},{"$f":"nerr(K244+M244+O244+Q244)","v":0},null,null,null,null,null,null,null,null,null,null,null,null,null,{"$f":"H244-I244","v":0},{"$f":"nerr(W244/H244*100)","v":0}]
[null,null,null,null,"Добавить"]
[null,null,null,"Справочно:"]
[null,null,"+","3","Оплата процентов за привлеченные кредитные ресурсы",null,{"$f":"nerr(SUM(G248:G249)-G248)","v":0},0,0,0,0,0,0,0,0,0,0,0,0,0,0,0,0,{"$f":"nerr(W247/H247*100)","v":0},{"$f":"nerr(SUM(Y248:Y249)-Y248)","v":0},{"$f":"nerr(SUM(Z248:Z249)-Z248)","v":0}]
[null,null,null,"3.0",null,"",null,{"$f":"nerr(J248+L248+N248+P248)","v":0},{"$f":"nerr(K248+M248+O248+Q248)","v":0},null,null,null,null,null,null,null,null,null,null,null,null,null,{"$f":"H248-I248","v":0},{"$f":"nerr(W248/H248*100)","v":0}]
[null,null,null,null,"Добавить"]
[]
[null,null,null,null,"*","В ценах отчетного года."]
[null,null,null,null,"**","План согласно утвержденной инвестиционной программе."]
[null,null,null,null,"***","Накопленным итогом за год."]
[]
[null,null,null,null,null,"Примечание: для сетевых объектов с разделением объектов на ПС, ВЛ и КЛ."]

{"sheet":"Ф.7.2","index":8,"n_rows":252,"n_cols":40,"rows_kept":252,"cut":false,"hidden":false,"merged":[[10,37,10,38],[11,3,11,38],[12,3,12,38],[14,25,14,38],[15,25,15,28],[5,37,5,38],[6,37,6,38],[7,37,7,38],[8,37,8,38],[9,37,9,38],[245,3,245,4],[15,38,16,38],[14,3,16,3],[14,4,16,4],[15,29,15,32],[15,33,15,37],[14,5,15,9],[14,10,15,14],[14,15,15,19],[14,20,15,24]]}
[2]
[]
[]
[]
[]
[null,null,"Список листов",null,null,null,null,null,null,null,null,null,null,null,null,null,null,null,null,null,null,null,null,null,null,null,null,null,null,null,null,null,null,null,null,null,null,"Приложение № 7.2\nк Приказу Минэнерго России\nот 24.03.2010 № 114"]
[null,null,null,null,null,null,null,null,null,null,null,null,null,null,null,null,null,null,null,null,null,null,null,null,null,null,null,null,null,null,null,null,null,null,null,null,null,"Утверждаю\nруководитель организации"]
[]
[null,null,null,null,null,null,null,null,null,null,null,null,null,null,null,null,null,null,null,null,null,null,null,null,null,null,null,null,null,null,null,null,null,null,null,null,null,"(подпись)"]
[null,null,null,null,null,null,null,null,null,null,null,null,null,null,null,null,null,null,null,null,null,null,null,null,null,null,null,null,null,null,null,null,null,null,null,null,null,"\"___\" _____________ 20__ года"]
[null,null,null,null,null,null,null,null,null,null,null,null,null,null,null,null,null,null,null,null,null,null,null,null,null,null,null,null,null,null,null,null,null,null,null,null,null,"М.П."]
[null,null,null,{"$f":"\"Отчет об исполнении основных этапов работ по реализации инвестиционной программы компании в \" & otchet_god & \" году (представляется ежеквартально)\"","v":"Отчет об исполнении основных этапов работ по реализации инвестиционной программы компании в 2016 году (представляется ежеквартально)"}]
[null,null,null,{"$f":"org & \", Факт за \" & otchet_god & \" г. \" & kvartal","v":"ООО \"Красноярский жилищно-коммунальный комплекс\", Факт за 2016 г. IV квартал"}]
[]
[null,null,null,"№ п/п","Наименование объекта *","Плановой объем финансирования, млн. руб. *",null,null,null,null,"Фактически профинансировано, млн. руб.",null,null,null,null,"Отклонение фактической стоимости работ по плановой стоимости, млн. руб.",null,null,null,null,"Фактически освоено (закрыто актами выполненных работ), млн. руб.",null,null,null,null,"Технические характеристики созданных объектов"]
[null,null,null,null,null,null,null,null,null,null,null,null,null,null,null,null,null,null,null,null,null,null,null,null,null,"Генерирующие объекты",null,null,null,"Подстанции",null,null,null,"Линии электропередачи",null,null,null,null,"Иные объекты"]
[null,null,null,null,null,"Всего","ПИР","СМР","Оборудо-\nвание и мате-\nриалы","Прочие","Всего","ПИР","СМР","Оборудо-\nвание и мате-\nриалы","Прочие","Всего","ПИР","СМР","Оборудо-\nвание и мате-\nриалы","Прочие","Всего","ПИР","СМР","Оборудо-\nвание и мате-\nриалы","Прочие","Год ввода\nв эксплуа-\nтацию","Норма-\nтивный срок службы, лет","Мощность, МВт","Тепловая энергия, Гкал/час","Год ввода\nв эксплуа-\nтацию","Норма-\nтивный срок службы, лет","Количество\nи марка силовых трансформаторов","Мощность, МВА","Год ввода\nв эксплуа-\nтацию","Норма-\nтивный срок службы, лет","Тип опор","Марка кабеля","Протя-\nжен-\nность, км"]
[null,null,null,1,2,3,4,5,6,7,8,9,10,11,12,13,14,15,16,17,18,19,20,21,22,23,24,25,26,27,28,29,30,31,32,33,34,35,36]
[null,null,null,null,"ВСЕГО",{"$f":"nerr(F20+F159)","v":34.757000000000005},0,22.963000000000001,8.6140000000000008,3.1799999999999997,0,0,0,0,0,34.757000000000005,0,22.963000000000001,8.6140000000000008,3.1799999999999997,0,0,0,0,0,null,null,{"$f":"nerr(AB20+AB159)","v":0},{"$f":"nerr(AC20+AC159)","v":0},null,null,null,{"$f":"nerr(AG20+AG159)","v":0},null,null,null,null,{"$f":"nerr(AL20+AL159)","v":0}]
[null,null,null,"1","Техническое перевооружение и реконструкция",{"$f":"F21+F62+F109+F112+F115+F118","v":34.757000000000005},0,22.963000000000001,8.6140000000000008,3.1799999999999997,0,0,0,0,0,34.757000000000005,0,22.963000000000001,8.6140000000000008,3.1799999999999997,0,0,0,0,0,null,null,{"$f":"AB21+AB62+AB109+AB112+AB115+AB118","v":0},{"$f":"AC21+AC62+AC109+AC112+AC115+AC118","v":0},null,null,null,{"$f":"AG21+AG62+AG109+AG112+AG115+AG118","v":0},null,null,null,null,{"$f":"AL21+AL62+AL109+AL112+AL115+AL118","v":0}]
[null,null,"-","1.1","Реконструкция",{"$f":"F22+F49+F59","v":0},0,0,0,0,0,0,0,0,0,0,0,0,0,0,0,0,0,0,0,null,null,{"$f":"AB22+AB49+AB59","v":0},{"$f":"AC22+AC49+AC59","v":0},null,null,null,{"$f":"AG22+AG49+AG59","v":0},null,null,null,null,{"$f":"AL22+AL49+AL59","v":0}]
[null,null,"-","1.1.1","Электрические линии",{"$f":"F23+F36","v":0},0,0,0,0,0,0,0,0,0,0,0,0,0,0,0,0,0,0,0,null,null,{"$f":"AB23+AB36","v":0},{"$f":"AC23+AC36","v":0},null,null,null,{"$f":"AG23+AG36","v":0},null,null,null,null,{"$f":"AL23+AL36","v":0}]
[null,null,"-","1.1.1.1","Воздушные линии",{"$f":"F24+F27+F30+F33","v":0},0,0,0,0,0,0,0,0,0,0,0,0,0,0,0,0,0,0,0,null,null,{"$f":"AB24+AB27+AB30+AB33","v":0},{"$f":"AC24+AC27+AC30+AC33","v":0},null,null,null,{"$f":"AG24+AG27+AG30+AG33","v":0},null,null,null,null,{"$f":"AL24+AL27+AL30+AL33","v":0}]
[null,null,"-","1.1.1.1.1","ВЛЭП 110-220 кВ (ВН)",{"$f":"nerr(SUM(F25:F26)-F25)","v":0},0,0,0,0,0,0,0,0,0,0,0,0,0,0,0,0,0,0,0,null,null,{"$f":"nerr(SUM(AB25:AB26)-AB25)","v":0},{"$f":"nerr(SUM(AC25:AC26)-AC25)","v":0},null,null,null,{"$f":"nerr(SUM(AG25:AG26)-AG25)","v":0},null,null,null,null,{"$f":"nerr(SUM(AL25:AL26)-AL25)","v":0}]
[null,null,null,"1.1.1.1.1.0",null,{"$f":"nerr(SUM(G25:J25))","v":0},null,null,null,null,{"$f":"nerr(SUM(L25:O25))","v":0},null,null,null,null,{"$f":"nerr(SUM(Q25:T25))","v":0},null,null,null,null,{"$f":"nerr(SUM(V25:Y25))","v":0}]
[]
[null,null,"-","1.1.1.1.2","ВЛЭП 35 кВ (СН1)",{"$f":"nerr(SUM(F28:F29)-F28)","v":0},0,0,0,0,0,0,0,0,0,0,0,0,0,0,0,0,0,0,0,null,null,{"$f":"nerr(SUM(AB28:AB29)-AB28)","v":0},{"$f":"nerr(SUM(AC28:AC29)-AC28)","v":0},null,null,null,{"$f":"nerr(SUM(AG28:AG29)-AG28)","v":0},null,null,null,null,{"$f":"nerr(SUM(AL28:AL29)-AL28)","v":0}]
[null,null,null,"1.1.1.1.2.0",null,{"$f":"nerr(SUM(G28:J28))","v":0},null,null,null,null,{"$f":"nerr(SUM(L28:O28))","v":0},null,null,null,null,{"$f":"nerr(SUM(Q28:T28))","v":0},null,null,null,null,{"$f":"nerr(SUM(V28:Y28))","v":0}]
[]
[null,null,"-","1.1.1.1.3","ВЛЭП 1-20 кВ (СН2)",{"$f":"nerr(SUM(F31:F32)-F31)","v":0},0,0,0,0,0,0,0,0,0,0,0,0,0,0,0,0,0,0,0,null,null,{"$f":"nerr(SUM(AB31:AB32)-AB31)","v":0},{"$f":"nerr(SUM(AC31:AC32)-AC31)","v":0},null,null,null,{"$f":"nerr(SUM(AG31:AG32)-AG31)","v":0},null,null,null,null,{"$f":"nerr(SUM(AL31:AL32)-AL31)","v":0}]
[null,null,null,"1.1.1.1.3.0",null,{"$f":"nerr(SUM(G31:J31))","v":0},null,null,null,null,{"$f":"nerr(SUM(L31:O31))","v":0},null,null,null,null,{"$f":"nerr(SUM(Q31:T31))","v":0},null,null,null,null,{"$f":"nerr(SUM(V31:Y31))","v":0}]
[]
[null,null,"-","1.1.1.1.4","ВЛЭП 0,4 кВ (НН)",{"$f":"nerr(SUM(F34:F35)-F34)","v":0},0,0,0,0,0,0,0,0,0,0,0,0,0,0,0,0,0,0,0,null,null,{"$f":"nerr(SUM(AB34:AB35)-AB34)","v":0},{"$f":"nerr(SUM(AC34:AC35)-AC34)","v":0},null,null,null,{"$f":"nerr(SUM(AG34:AG35)-AG34)","v":0},null,null,null,null,{"$f":"nerr(SUM(AL34:AL35)-AL34)","v":0}]
[null,null,null,"1.1.1.1.4.0",null,{"$f":"nerr(SUM(G34:J34))","v":0},null,null,null,null,{"$f":"nerr(SUM(L34:O34))","v":0},null,null,null,null,{"$f":"nerr(SUM(Q34:T34))","v":0},null,null,null,null,{"$f":"nerr(SUM(V34:Y34))","v":0}]
[]
[null,null,"-","1.1.1.2","Кабельные линии",{"$f":"F37+F40+F43+F46","v":0},0,0,0,0,0,0,0,0,0,0,0,0,0,0,0,0,0,0,0,null,null,{"$f":"AB37+AB40+AB43+AB46","v":0},{"$f":"AC37+AC40+AC43+AC46","v":0},null,null,null,{"$f":"AG37+AG40+AG43+AG46","v":0},null,null,null,null,{"$f":"AL37+AL40+AL43+AL46","v":0}]
[null,null,"-","1.1.1.2.1","КЛЭП 110 кВ (ВН)",{"$f":"nerr(SUM(F38:F39)-F38)","v":0},0,0,0,0,0,0,0,0,0,0,0,0,0,0,0,0,0,0,0,null,null,{"$f":"nerr(SUM(AB38:AB39)-AB38)","v":0},{"$f":"nerr(SUM(AC38:AC39)-AC38)","v":0},null,null,null,{"$f":"nerr(SUM(AG38:AG39)-AG38)","v":0},null,null,null,null,{"$f":"nerr(SUM(AL38:AL39)-AL38)","v":0}]
[null,null,null,"1.1.1.2.1.0",null,{"$f":"nerr(SUM(G38:J38))","v":0},null,null,null,null,{"$f":"nerr(SUM(L38:O38))","v":0},null,null,null,null,{"$f":"nerr(SUM(Q38:T38))","v":0},null,null,null,null,{"$f":"nerr(SUM(V38:Y38))","v":0}]
[]
[null,null,"-","1.1.1.2.2","КЛЭП 20-35 кВ (СН1)",{"$f":"nerr(SUM(F41:F42)-F41)","v":0},0,0,0,0,0,0,0,0,0,0,0,0,0,0,0,0,0,0,0,null,null,{"$f":"nerr(SUM(AB41:AB42)-AB41)","v":0},{"$f":"nerr(SUM(AC41:AC42)-AC41)","v":0},null,null,null,{"$f":"nerr(SUM(AG41:AG42)-AG41)","v":0},null,null,null,null,{"$f":"nerr(SUM(AL41:AL42)-AL41)","v":0}]
[null,null,null,"1.1.1.2.2.0",null,{"$f":"nerr(SUM(G41:J41))","v":0},null,null,null,null,{"$f":"nerr(SUM(L41:O41))","v":0},null,null,null,null,{"$f":"nerr(SUM(Q41:T41))","v":0},null,null,null,null,{"$f":"nerr(SUM(V41:Y41))","v":0}]
[]
[null,null,"-","1.1.1.2.3","КЛЭП 3-10 кВ (СН2)",{"$f":"nerr(SUM(F44:F45)-F44)","v":0},0,0,0,0,0,0,0,0,0,0,0,0,0,0,0,0,0,0,0,null,null,{"$f":"nerr(SUM(AB44:AB45)-AB44)","v":0},{"$f":"nerr(SUM(AC44:AC45)-AC44)","v":0},null,null,null,{"$f":"nerr(SUM(AG44:AG45)-AG44)","v":0},null,null,null,null,{"$f":"nerr(SUM(AL44:AL45)-AL44)","v":0}]
[null,null,null,"1.1.1.2.3.0",null,{"$f":"nerr(SUM(G44:J44))","v":0},null,null,null,null,{"$f":"nerr(SUM(L44:O44))","v":0},null,null,null,null,{"$f":"nerr(SUM(Q44:T44))","v":0},null,null,null,null,{"$f":"nerr(SUM(V44:Y44))","v":0}]
[]
[null,null,"-","1.1.1.2.4","КЛЭП до 1 кВ (НН)",{"$f":"nerr(SUM(F47:F48)-F47)","v":0},0,0,0,0,0,0,0,0,0,0,0,0,0,0,0,0,0,0,0,null,null,{"$f":"nerr(SUM(AB47:AB48)-AB47)","v":0},{"$f":"nerr(SUM(AC47:AC48)-AC47)","v":0},null,null,null,{"$f":"nerr(SUM(AG47:AG48)-AG47)","v":0},null,null,null,null,{"$f":"nerr(SUM(AL47:AL48)-AL47)","v":0}]
[null,null,null,"1.1.1.2.4.0",null,{"$f":"nerr(SUM(G47:J47))","v":0},null,null,null,null,{"$f":"nerr(SUM(L47:O47))","v":0},null,null,null,null,{"$f":"nerr(SUM(Q47:T47))","v":0},null,null,null,null,{"$f":"nerr(SUM(V47:Y47))","v":0}]
[]
[null,null,"-","1.1.2","Подстанции",{"$f":"F50+F53+F56","v":0},0,0,0,0,0,0,0,0,0,0,0,0,0,0,0,0,0,0,0,null,null,{"$f":"AB50+AB53+AB56","v":0},{"$f":"AC50+AC53+AC56","v":0},null,null,null,{"$f":"AG50+AG53+AG56","v":0},null,null,null,null,{"$f":"AL50+AL53+AL56","v":0}]
[null,null,"-","1.1.2.1","Уровень входящего напряжения ВН",{"$f":"nerr(SUM(F51:F52)-F51)","v":0},0,0,0,0,0,0,0,0,0,0,0,0,0,0,0,0,0,0,0,null,null,{"$f":"nerr(SUM(AB51:AB52)-AB51)","v":0},{"$f":"nerr(SUM(AC51:AC52)-AC51)","v":0},null,null,null,{"$f":"nerr(SUM(AG51:AG52)-AG51)","v":0},null,null,null,null,{"$f":"nerr(SUM(AL51:AL52)-AL51)","v":0}]
[null,null,null,"1.1.2.1.0",null,{"$f":"nerr(SUM(G51:J51))","v":0},null,null,null,null,{"$f":"nerr(SUM(L51:O51))","v":0},null,null,null,null,{"$f":"nerr(SUM(Q51:T51))","v":0},null,null,null,null,{"$f":"nerr(SUM(V51:Y51))","v":0}]
[]
[null,null,"-","1.1.2.2","Уровень входящего напряжения СН1",{"$f":"nerr(SUM(F54:F55)-F54)","v":0},0,0,0,0,0,0,0,0,0,0,0,0,0,0,0,0,0,0,0,null,null,{"$f":"nerr(SUM(AB54:AB55)-AB54)","v":0},{"$f":"nerr(SUM(AC54:AC55)-AC54)","v":0},null,null,null,{"$f":"nerr(SUM(AG54:AG55)-AG54)","v":0},null,null,null,null,{"$f":"nerr(SUM(AL54:AL55)-AL54)","v":0}]
[null,null,null,"1.1.2.2.0",null,{"$f":"nerr(SUM(G54:J54))","v":0},null,null,null,null,{"$f":"nerr(SUM(L54:O54))","v":0},null,null,null,null,{"$f":"nerr(SUM(Q54:T54))","v":0},null,null,null,null,{"$f":"nerr(SUM(V54:Y54))","v":0}]
[]
[null,null,"-","1.1.2.3","Уровень входящего напряжения СН2",{"$f":"nerr(SUM(F57:F58)-F57)","v":0},0,0,0,0,0,0,0,0,0,0,0,0,0,0,0,0,0,0,0,null,null,{"$f":"nerr(SUM(AB57:AB58)-AB57)","v":0},{"$f":"nerr(SUM(AC57:AC58)-AC57)","v":0},null,null,null,{"$f":"nerr(SUM(AG57:AG58)-AG57)","v":0},null,null,null,null,{"$f":"nerr(SUM(AL57:AL58)-AL57)","v":0}]
[null,null,null,"1.1.2.3.0",null,{"$f":"nerr(SUM(G57:J57))","v":0},null,null,null,null,{"$f":"nerr(SUM(L57:O57))","v":0},null,null,null,null,{"$f":"nerr(SUM(Q57:T57))","v":0},null,null,null,null,{"$f":"nerr(SUM(V57:Y57))","v":0}]
[]
[null,null,"-","1.1.3","Прочие электросетевые объекты",{"$f":"nerr(SUM(F60:F61)-F60)","v":0},0,0,0,0,0,0,0,0,0,0,0,0,0,0,0,0,0,0,0,null,null,{"$f":"nerr(SUM(AB60:AB61)-AB60)","v":0},{"$f":"nerr(SUM(AC60:AC61)-AC60)","v":0},null,null,null,{"$f":"nerr(SUM(AG60:AG61)-AG60)","v":0},null,null,null,null,{"$f":"nerr(SUM(AL60:AL61)-AL60)","v":0}]
[null,null,null,"1.1.3.0",null,{"$f":"nerr(SUM(G60:J60))","v":0},null,null,null,null,{"$f":"nerr(SUM(L60:O60))","v":0},null,null,null,null,{"$f":"nerr(SUM(Q60:T60))","v":0},null,null,null,null,{"$f":"nerr(SUM(V60:Y60))","v":0}]
[]
[null,null,"-","1.2","Энергосбережение и повышение энергетической эффективности",{"$f":"F63+F90+F106","v":34.757000000000005},0,22.963000000000001,8.6140000000000008,3.1799999999999997,0,0,0,0,0,34.757000000000005,0,22.963000000000001,8.6140000000000008,3.1799999999999997,0,0,0,0,0,null,null,{"$f":"AB63+AB90+AB106","v":0},{"$f":"AC63+AC90+AC106","v":0},null,null,null,{"$f":"AG63+AG90+AG106","v":0},null,null,null,null,{"$f":"AL63+AL90+AL106","v":0}]
[null,null,"-","1.2.1","Электрические линии",{"$f":"F64+F77","v":0},0,0,0,0,0,0,0,0,0,0,0,0,0,0,0,0,0,0,0,null,null,{"$f":"AB64+AB77","v":0},{"$f":"AC64+AC77","v":0},null,null,null,{"$f":"AG64+AG77","v":0},null,null,null,null,{"$f":"AL64+AL77","v":0}]
[null,null,"-","1.2.1.1","Воздушные линии",{"$f":"F65+F68+F71+F74","v":0},0,0,0,0,0,0,0,0,0,0,0,0,0,0,0,0,0,0,0,null,null,{"$f":"AB65+AB68+AB71+AB74","v":0},{"$f":"AC65+AC68+AC71+AC74","v":0},null,null,null,{"$f":"AG65+AG68+AG71+AG74","v":0},null,null,null,null,{"$f":"AL65+AL68+AL71+AL74","v":0}]
[null,null,"-","1.2.1.1.1","ВЛЭП 110-220 кВ (ВН)",{"$f":"nerr(SUM(F66:F67)-F66)","v":0},0,0,0,0,0,0,0,0,0,0,0,0,0,0,0,0,0,0,0,null,null,{"$f":"nerr(SUM(AB66:AB67)-AB66)","v":0},{"$f":"nerr(SUM(AC66:AC67)-AC66)","v":0},null,null,null,{"$f":"nerr(SUM(AG66:AG67)-AG66)","v":0},null,null,null,null,{"$f":"nerr(SUM(AL66:AL67)-AL66)","v":0}]
[null,null,null,"1.2.1.1.1.0",null,{"$f":"nerr(SUM(G66:J66))","v":0},null,null,null,null,{"$f":"nerr(SUM(L66:O66))","v":0},null,null,null,null,{"$f":"nerr(SUM(Q66:T66))","v":0},null,null,null,null,{"$f":"nerr(SUM(V66:Y66))","v":0}]
[]
[null,null,"-","1.2.1.1.2","ВЛЭП 35 кВ (СН1)",{"$f":"nerr(SUM(F69:F70)-F69)","v":0},0,0,0,0,0,0,0,0,0,0,0,0,0,0,0,0,0,0,0,null,null,{"$f":"nerr(SUM(AB69:AB70)-AB69)","v":0},{"$f":"nerr(SUM(AC69:AC70)-AC69)","v":0},null,null,null,{"$f":"nerr(SUM(AG69:AG70)-AG69)","v":0},null,null,null,null,{"$f":"nerr(SUM(AL69:AL70)-AL69)","v":0}]
[null,null,null,"1.2.1.1.2.0",null,{"$f":"nerr(SUM(G69:J69))","v":0},null,null,null,null,{"$f":"nerr(SUM(L69:O69))","v":0},null,null,null,null,{"$f":"nerr(SUM(Q69:T69))","v":0},null,null,null,null,{"$f":"nerr(SUM(V69:Y69))","v":0}]
[]
[null,null,"-","1.2.1.1.3","ВЛЭП 1-20 кВ (СН2)",{"$f":"nerr(SUM(F72:F73)-F72)","v":0},0,0,0,0,0,0,0,0,0,0,0,0,0,0,0,0,0,0,0,null,null,{"$f":"nerr(SUM(AB72:AB73)-AB72)","v":0},{"$f":"nerr(SUM(AC72:AC73)-AC72)","v":0},null,null,null,{"$f":"nerr(SUM(AG72:AG73)-AG72)","v":0},null,null,null,null,{"$f":"nerr(SUM(AL72:AL73)-AL72)","v":0}]
[null,null,null,"1.2.1.1.3.0",null,{"$f":"nerr(SUM(G72:J72))","v":0},null,null,null,null,{"$f":"nerr(SUM(L72:O72))","v":0},null,null,null,null,{"$f":"nerr(SUM(Q72:T72))","v":0},null,null,null,null,{"$f":"nerr(SUM(V72:Y72))","v":0}]
[]
[null,null,"-","1.2.1.1.4","ВЛЭП 0,4 кВ (НН)",{"$f":"nerr(SUM(F75:F76)-F75)","v":0},0,0,0,0,0,0,0,0,0,0,0,0,0,0,0,0,0,0,0,null,null,{"$f":"nerr(SUM(AB75:AB76)-AB75)","v":0},{"$f":"nerr(SUM(AC75:AC76)-AC75)","v":0},null,null,null,{"$f":"nerr(SUM(AG75:AG76)-AG75)","v":0},null,null,null,null,{"$f":"nerr(SUM(AL75:AL76)-AL75)","v":0}]
[null,null,null,"1.2.1.1.4.0",null,{"$f":"nerr(SUM(G75:J75))","v":0},null,null,null,null,{"$f":"nerr(SUM(L75:O75))","v":0},null,null,null,null,{"$f":"nerr(SUM(Q75:T75))","v":0},null,null,null,null,{"$f":"nerr(SUM(V75:Y75))","v":0}]
[]
[null,null,"-","1.2.1.2","Кабельные линии",{"$f":"F78+F81+F84+F87","v":0},0,0,0,0,0,0,0,0,0,0,0,0,0,0,0,0,0,0,0,null,null,{"$f":"AB78+AB81+AB84+AB87","v":0},{"$f":"AC78+AC81+AC84+AC87","v":0},null,null,null,{"$f":"AG78+AG81+AG84+AG87","v":0},null,null,null,null,{"$f":"AL78+AL81+AL84+AL87","v":0}]
[null,null,"-","1.2.1.2.1","КЛЭП 110 кВ (ВН)",{"$f":"nerr(SUM(F79:F80)-F79)","v":0},0,0,0,0,0,0,0,0,0,0,0,0,0,0,0,0,0,0,0,null,null,{"$f":"nerr(SUM(AB79:AB80)-AB79)","v":0},{"$f":"nerr(SUM(AC79:AC80)-AC79)","v":0},null,null,null,{"$f":"nerr(SUM(AG79:AG80)-AG79)","v":0},null,null,null,null,{"$f":"nerr(SUM(AL79:AL80)-AL79)","v":0}]
[null,null,null,"1.2.1.2.1.0",null,{"$f":"nerr(SUM(G79:J79))","v":0},null,null,null,null,{"$f":"nerr(SUM(L79:O79))","v":0},null,null,null,null,{"$f":"nerr(SUM(Q79:T79))","v":0},null,null,null,null,{"$f":"nerr(SUM(V79:Y79))","v":0}]
[]
[null,null,"-","1.2.1.2.2","КЛЭП 20-35 кВ (СН1)",{"$f":"nerr(SUM(F82:F83)-F82)","v":0},0,0,0,0,0,0,0,0,0,0,0,0,0,0,0,0,0,0,0,null,null,{"$f":"nerr(SUM(AB82:AB83)-AB82)","v":0},{"$f":"nerr(SUM(AC82:AC83)-AC82)","v":0},null,null,null,{"$f":"nerr(SUM(AG82:AG83)-AG82)","v":0},null,null,null,null,{"$f":"nerr(SUM(AL82:AL83)-AL82)","v":0}]
[null,null,null,"1.2.1.2.2.0",null,{"$f":"nerr(SUM(G82:J82))","v":0},null,null,null,null,{"$f":"nerr(SUM(L82:O82))","v":0},null,null,null,null,{"$f":"nerr(SUM(Q82:T82))","v":0},null,null,null,null,{"$f":"nerr(SUM(V82:Y82))","v":0}]
[]
[null,null,"-","1.2.1.2.3","КЛЭП 3-10 кВ (СН2)",{"$f":"nerr(SUM(F85:F86)-F85)","v":0},0,0,0,0,0,0,0,0,0,0,0,0,0,0,0,0,0,0,0,null,null,{"$f":"nerr(SUM(AB85:AB86)-AB85)","v":0},{"$f":"nerr(SUM(AC85:AC86)-AC85)","v":0},null,null,null,{"$f":"nerr(SUM(AG85:AG86)-AG85)","v":0},null,null,null,null,{"$f":"nerr(SUM(AL85:AL86)-AL85)","v":0}]
[null,null,null,"1.2.1.2.3.0",null,{"$f":"nerr(SUM(G85:J85))","v":0},null,null,null,null,{"$f":"nerr(SUM(L85:O85))","v":0},null,null,null,null,{"$f":"nerr(SUM(Q85:T85))","v":0},null,null,null,null,{"$f":"nerr(SUM(V85:Y85))","v":0}]
[]
[null,null,"-","1.2.1.2.4","КЛЭП до 1 кВ (НН)",{"$f":"nerr(SUM(F88:F89)-F88)","v":0},0,0,0,0,0,0,0,0,0,0,0,0,0,0,0,0,0,0,0,null,null,{"$f":"nerr(SUM(AB88:AB89)-AB88)","v":0},{"$f":"nerr(SUM(AC88:AC89)-AC88)","v":0},null,null,null,{"$f":"nerr(SUM(AG88:AG89)-AG88)","v":0},null,null,null,null,{"$f":"nerr(SUM(AL88:AL89)-AL88)","v":0}]
[null,null,null,"1.2.1.2.4.0",null,{"$f":"nerr(SUM(G88:J88))","v":0},null,null,null,null,{"$f":"nerr(SUM(L88:O88))","v":0},null,null,null,null,{"$f":"nerr(SUM(Q88:T88))","v":0},null,null,null,null,{"$f":"nerr(SUM(V88:Y88))","v":0}]
[]
[null,null,"-","1.2.2","Подстанции",{"$f":"F91+F94+F97","v":34.757000000000005},0,22.963000000000001,8.6140000000000008,3.1799999999999997,0,0,0,0,0,34.757000000000005,0,22.963000000000001,8.6140000000000008,3.1799999999999997,0,0,0,0,0,null,null,{"$f":"AB91+AB94+AB97","v":0},{"$f":"AC91+AC94+AC97","v":0},null,null,null,{"$f":"AG91+AG94+AG97","v":0},null,null,null,null,{"$f":"AL91+AL94+AL97","v":0}]
[null,null,"-","1.2.2.1","Уровень входящего напряжения ВН",{"$f":"nerr(SUM(F92:F93)-F92)","v":0},0,0,0,0,0,0,0,0,0,0,0,0,0,0,0,0,0,0,0,null,null,{"$f":"nerr(SUM(AB92:AB93)-AB92)","v":0},{"$f":"nerr(SUM(AC92:AC93)-AC92)","v":0},null,null,null,{"$f":"nerr(SUM(AG92:AG93)-AG92)","v":0},null,null,null,null,{"$f":"nerr(SUM(AL92:AL93)-AL92)","v":0}]
[null,null,null,"1.2.2.1.0",null,{"$f":"nerr(SUM(G92:J92))","v":0},null,null,null,null,{"$f":"nerr(SUM(L92:O92))","v":0},null,null,null,null,{"$f":"nerr(SUM(Q92:T92))","v":0},null,null,null,null,{"$f":"nerr(SUM(V92:Y92))","v":0}]
[]
[null,null,"-","1.2.2.2","Уровень входящего напряжения СН1",{"$f":"nerr(SUM(F95:F96)-F95)","v":0},0,0,0,0,0,0,0,0,0,0,0,0,0,0,0,0,0,0,0,null,null,{"$f":"nerr(SUM(AB95:AB96)-AB95)","v":0},{"$f":"nerr(SUM(AC95:AC96)-AC95)","v":0},null,null,null,{"$f":"nerr(SUM(AG95:AG96)-AG95)","v":0},null,null,null,null,{"$f":"nerr(SUM(AL95:AL96)-AL95)","v":0}]
[null,null,null,"1.2.2.2.0",null,{"$f":"nerr(SUM(G95:J95))","v":0},null,null,null,null,{"$f":"nerr(SUM(L95:O95))","v":0},null,null,null,null,{"$f":"nerr(SUM(Q95:T95))","v":0},null,null,null,null,{"$f":"nerr(SUM(V95:Y95))","v":0}]
[]
[null,null,"-","1.2.2.3","Уровень входящего напряжения СН2",{"$f":"nerr(SUM(F98:F105)-F98)","v":34.757000000000005},0,22.963000000000001,8.6140000000000008,3.1799999999999997,0,0,0,0,0,34.757000000000005,0,22.963000000000001,8.6140000000000008,3.1799999999999997,0,0,0,0,0,null,null,{"$f":"nerr(SUM(AB98:AB105)-AB98)","v":0},{"$f":"nerr(SUM(AC98:AC105)-AC98)","v":0},null,null,null,{"$f":"nerr(SUM(AG98:AG105)-AG98)","v":0},null,null,null,null,{"$f":"nerr(SUM(AL98:AL105)-AL98)","v":0}]
[null,null,null,"1.2.2.3.0",null,{"$f":"nerr(SUM(G98:J98))","v":0},null,null,null,null,{"$f":"nerr(SUM(L98:O98))","v":0},null,null,null,null,{"$f":"nerr(SUM(Q98:T98))","v":0},null,null,null,null,{"$f":"nerr(SUM(V98:Y98))","v":0}]
[null,null,null,"1.2.2.3.1",{"$f":"Ф.7.1!$E$99","v":"Модернизация оборудования трансформаторной подстанции № 685, находящейся по ул. Глинки, 13г"},3.593,{"$f":"B99","v":0},2.4820000000000002,1.0980000000000001,1.2999999999999999E-2,0,0,0,0,0,3.593,{"$f":"G99-L99","v":0},{"$f":"H99-M99","v":2.4820000000000002},1.0980000000000001,1.2999999999999999E-2,0,{"$f":"L99","v":0},0,0,0]
[null,null,null,"1.2.2.3.2",{"$f":"Ф.7.1!$E$100","v":"Модернизация оборудования трансформаторной подстанции № 783, находящейся по ул. Парковая, 10 а"},6.952,{"$f":"B100","v":0},4.8079999999999998,2.1190000000000002,2.5000000000000001E-2,0,0,0,0,0,6.952,{"$f":"G100-L100","v":0},{"$f":"H100-M100","v":4.8079999999999998},{"$f":"I100-N100","v":2.1190000000000002},{"$f":"J100-O100","v":2.5000000000000001E-2},0,{"$f":"L100","v":0},0,0,0]
[null,null,null,"1.2.2.3.3",{"$f":"Ф.7.1!$E$101","v":"Модернизация распределительного устройства напряжением 6 кВ в распределительной подстанции № 127, находящейся по ул. Пограничников, 7 д"},{"$f":"nerr(SUM(G101:J101))","v":9.6370000000000005},0,5.6059999999999999,0.94,3.0910000000000002,{"$f":"nerr(SUM(L101:O101))","v":0},0,0,0,0,{"$f":"nerr(SUM(Q101:T101))","v":9.6370000000000005},0,5.6059999999999999,0.94,3.0910000000000002,{"$f":"nerr(SUM(V101:Y101))","v":0},0,0,0,0]
[null,null,null,"1.2.2.3.4",{"$f":"Ф.7.1!$E$102","v":"Модернизация оборудования трансформаторной подстанции № 508, находящейся по ул. Армейская, 21 г"},7.3890000000000002,0,5.1029999999999998,2.2610000000000001,2.5000000000000001E-2,0,0,0,0,0,7.3890000000000002,0,5.1029999999999998,2.2610000000000001,2.5000000000000001E-2,0,0,0,0,0]
[null,null,null,"1.2.2.3.5",{"$f":"Ф.7.1!$E$103","v":"Модернизация оборудования трансформаторной подстанции № 686, находящейся по ул. Глинки, 7г"},3.593,0,2.4820000000000002,1.0980000000000001,1.2999999999999999E-2,0,0,0,0,0,3.593,0,2.4820000000000002,1.0980000000000001,1.2999999999999999E-2,0,0,0,0,0]
[null,null,null,"1.2.2.3.6",{"$f":"Ф.7.1!$E$104","v":"Модернизация оборудования трансформаторной подстанции № 581, находящейся по ул. Малиновского, 4г"},3.593,0,2.4820000000000002,1.0980000000000001,1.2999999999999999E-2,0,0,0,0,0,3.593,0,2.4820000000000002,1.0980000000000001,1.2999999999999999E-2,0,0,0,0,0]
[]
[null,null,"-","1.2.3","Прочие электросетевые объекты",{"$f":"nerr(SUM(F107:F108)-F107)","v":0},0,0,0,0,0,0,0,0,0,0,0,0,0,0,0,0,0,0,0,null,null,{"$f":"nerr(SUM(AB107:AB108)-AB107)","v":0},{"$f":"nerr(SUM(AC107:AC108)-AC107)","v":0},null,null,null,{"$f":"nerr(SUM(AG107:AG108)-AG107)","v":0},null,null,null,null,{"$f":"nerr(SUM(AL107:AL108)-AL107)","v":0}]
[null,null,null,"1.2.3.0",null,{"$f":"nerr(SUM(G107:J107))","v":0},null,null,null,null,{"$f":"nerr(SUM(L107:O107))","v":0},null,null,null,null,{"$f":"nerr(SUM(Q107:T107))","v":0},null,null,null,null,{"$f":"nerr(SUM(V107:Y107))","v":0}]
[]
[null,null,"-","1.3","Создание систем противоаварийной и режимной автоматики",{"$f":"nerr(SUM(F110:F111)-F110)","v":0},0,0,0,0,0,0,0,0,0,0,0,0,0,0,0,0,0,0,0,null,null,{"$f":"nerr(SUM(AB110:AB111)-AB110)","v":0},{"$f":"nerr(SUM(AC110:AC111)-AC110)","v":0},null,null,null,{"$f":"nerr(SUM(AG110:AG111)-AG110)","v":0},null,null,null,null,{"$f":"nerr(SUM(AL110:AL111)-AL110)","v":0}]
[null,null,null,"1.3.0",null,{"$f":"nerr(SUM(G110:J110))","v":0},null,null,null,null,{"$f":"nerr(SUM(L110:O110))","v":0},null,null,null,null,{"$f":"nerr(SUM(Q110:T110))","v":0},null,null,null,null,{"$f":"nerr(SUM(V110:Y110))","v":0}]
[]
[null,null,"-","1.4","Создание систем телемеханики и связи",{"$f":"nerr(SUM(F113:F114)-F113)","v":0},0,0,0,0,0,0,0,0,0,0,0,0,0,0,0,0,0,0,0,null,null,{"$f":"nerr(SUM(AB113:AB114)-AB113)","v":0},{"$f":"nerr(SUM(AC113:AC114)-AC113)","v":0},null,null,null,{"$f":"nerr(SUM(AG113:AG114)-AG113)","v":0},null,null,null,null,{"$f":"nerr(SUM(AL113:AL114)-AL113)","v":0}]
[null,null,null,"1.4.0",null,{"$f":"nerr(SUM(G113:J113))","v":0},null,null,null,null,{"$f":"nerr(SUM(L113:O113))","v":0},null,null,null,null,{"$f":"nerr(SUM(Q113:T113))","v":0},null,null,null,null,{"$f":"nerr(SUM(V113:Y113))","v":0}]
[]
[null,null,"-","1.5","Установка устройств регулирования напряжения и компенсации реактивной мощности",{"$f":"nerr(SUM(F116:F117)-F116)","v":0},0,0,0,0,0,0,0,0,0,0,0,0,0,0,0,0,0,0,0,null,null,{"$f":"nerr(SUM(AB116:AB117)-AB116)","v":0},{"$f":"nerr(SUM(AC116:AC117)-AC116)","v":0},null,null,null,{"$f":"nerr(SUM(AG116:AG117)-AG116)","v":0},null,null,null,null,{"$f":"nerr(SUM(AL116:AL117)-AL116)","v":0}]
[null,null,null,"1.5.0",null,{"$f":"nerr(SUM(G116:J116))","v":0},null,null,null,null,{"$f":"nerr(SUM(L116:O116))","v":0},null,null,null,null,{"$f":"nerr(SUM(Q116:T116))","v":0},null,null,null,null,{"$f":"nerr(SUM(V116:Y116))","v":0}]
[]
[null,null,"-","1.6","Исполнение договоров технологического присоединения",{"$f":"F119+F146+F156","v":0},0,0,0,0,0,0,0,0,0,0,0,0,0,0,0,0,0,0,0,null,null,{"$f":"AB119+AB146+AB156","v":0},{"$f":"AC119+AC146+AC156","v":0},null,null,null,{"$f":"AG119+AG146+AG156","v":0},null,null,null,null,{"$f":"AL119+AL146+AL156","v":0}]
[null,null,"-","1.6.1","Электрические линии",{"$f":"F120+F133","v":0},0,0,0,0,0,0,0,0,0,0,0,0,0,0,0,0,0,0,0,null,null,{"$f":"AB120+AB133","v":0},{"$f":"AC120+AC133","v":0},null,null,null,{"$f":"AG120+AG133","v":0},null,null,null,null,{"$f":"AL120+AL133","v":0}]
[null,null,"-","1.6.1.1","Воздушные линии",{"$f":"F121+F124+F127+F130","v":0},0,0,0,0,0,0,0,0,0,0,0,0,0,0,0,0,0,0,0,null,null,{"$f":"AB121+AB124+AB127+AB130","v":0},{"$f":"AC121+AC124+AC127+AC130","v":0},null,null,null,{"$f":"AG121+AG124+AG127+AG130","v":0},null,null,null,null,{"$f":"AL121+AL124+AL127+AL130","v":0}]
[null,null,"-","1.6.1.1.1","ВЛЭП 110-220 кВ (ВН)",{"$f":"nerr(SUM(F122:F123)-F122)","v":0},0,0,0,0,0,0,0,0,0,0,0,0,0,0,0,0,0,0,0,null,null,{"$f":"nerr(SUM(AB122:AB123)-AB122)","v":0},{"$f":"nerr(SUM(AC122:AC123)-AC122)","v":0},null,null,null,{"$f":"nerr(SUM(AG122:AG123)-AG122)","v":0},null,null,null,null,{"$f":"nerr(SUM(AL122:AL123)-AL122)","v":0}]
[null,null,null,"1.6.1.1.1.0",null,{"$f":"nerr(SUM(G122:J122))","v":0},null,null,null,null,{"$f":"nerr(SUM(L122:O122))","v":0},null,null,null,null,{"$f":"nerr(SUM(Q122:T122))","v":0},null,null,null,null,{"$f":"nerr(SUM(V122:Y122))","v":0}]
[]
[null,null,"-","1.6.1.1.2","ВЛЭП 35 кВ (СН1)",{"$f":"nerr(SUM(F125:F126)-F125)","v":0},0,0,0,0,0,0,0,0,0,0,0,0,0,0,0,0,0,0,0,null,null,{"$f":"nerr(SUM(AB125:AB126)-AB125)","v":0},{"$f":"nerr(SUM(AC125:AC126)-AC125)","v":0},null,null,null,{"$f":"nerr(SUM(AG125:AG126)-AG125)","v":0},null,null,null,null,{"$f":"nerr(SUM(AL125:AL126)-AL125)","v":0}]
[null,null,null,"1.6.1.1.2.0",null,{"$f":"nerr(SUM(G125:J125))","v":0},null,null,null,null,{"$f":"nerr(SUM(L125:O125))","v":0},null,null,null,null,{"$f":"nerr(SUM(Q125:T125))","v":0},null,null,null,null,{"$f":"nerr(SUM(V125:Y125))","v":0}]
[]
[null,null,"-","1.6.1.1.3","ВЛЭП 1-20 кВ (СН2)",{"$f":"nerr(SUM(F128:F129)-F128)","v":0},0,0,0,0,0,0,0,0,0,0,0,0,0,0,0,0,0,0,0,null,null,{"$f":"nerr(SUM(AB128:AB129)-AB128)","v":0},{"$f":"nerr(SUM(AC128:AC129)-AC128)","v":0},null,null,null,{"$f":"nerr(SUM(AG128:AG129)-AG128)","v":0},null,null,null,null,{"$f":"nerr(SUM(AL128:AL129)-AL128)","v":0}]
[null,null,null,"1.6.1.1.3.0",null,{"$f":"nerr(SUM(G128:J128))","v":0},null,null,null,null,{"$f":"nerr(SUM(L128:O128))","v":0},null,null,null,null,{"$f":"nerr(SUM(Q128:T128))","v":0},null,null,null,null,{"$f":"nerr(SUM(V128:Y128))","v":0}]
[]
[null,null,"-","1.6.1.1.4","ВЛЭП 0,4 кВ (НН)",{"$f":"nerr(SUM(F131:F132)-F131)","v":0},0,0,0,0,0,0,0,0,0,0,0,0,0,0,0,0,0,0,0,null,null,{"$f":"nerr(SUM(AB131:AB132)-AB131)","v":0},{"$f":"nerr(SUM(AC131:AC132)-AC131)","v":0},null,null,null,{"$f":"nerr(SUM(AG131:AG132)-AG131)","v":0},null,null,null,null,{"$f":"nerr(SUM(AL131:AL132)-AL131)","v":0}]
[null,null,null,"1.6.1.1.4.0",null,{"$f":"nerr(SUM(G131:J131))","v":0},null,null,null,null,{"$f":"nerr(SUM(L131:O131))","v":0},null,null,null,null,{"$f":"nerr(SUM(Q131:T131))","v":0},null,null,null,null,{"$f":"nerr(SUM(V131:Y131))","v":0}]
[]
[null,null,"-","1.6.1.2","Кабельные линии",{"$f":"F134+F137+F140+F143","v":0},0,0,0,0,0,0,0,0,0,0,0,0,0,0,0,0,0,0,0,null,null,{"$f":"AB134+AB137+AB140+AB143","v":0},{"$f":"AC134+AC137+AC140+AC143","v":0},null,null,null,{"$f":"AG134+AG137+AG140+AG143","v":0},null,null,null,null,{"$f":"AL134+AL137+AL140+AL143","v":0}]
[null,null,"-","1.6.1.2.1","КЛЭП 110 кВ (ВН)",{"$f":"nerr(SUM(F135:F136)-F135)","v":0},0,0,0,0,0,0,0,0,0,0,0,0,0,0,0,0,0,0,0,null,null,{"$f":"nerr(SUM(AB135:AB136)-AB135)","v":0},{"$f":"nerr(SUM(AC135:AC136)-AC135)","v":0},null,null,null,{"$f":"nerr(SUM(AG135:AG136)-AG135)","v":0},null,null,null,null,{"$f":"nerr(SUM(AL135:AL136)-AL135)","v":0}]
[null,null,null,"1.6.1.2.1.0",null,{"$f":"nerr(SUM(G135:J135))","v":0},null,null,null,null,{"$f":"nerr(SUM(L135:O135))","v":0},null,null,null,null,{"$f":"nerr(SUM(Q135:T135))","v":0},null,null,null,null,{"$f":"nerr(SUM(V135:Y135))","v":0}]
[]
[null,null,"-","1.6.1.2.2","КЛЭП 20-35 кВ (СН1)",{"$f":"nerr(SUM(F138:F139)-F138)","v":0},0,0,0,0,0,0,0,0,0,0,0,0,0,0,0,0,0,0,0,null,null,{"$f":"nerr(SUM(AB138:AB139)-AB138)","v":0},{"$f":"nerr(SUM(AC138:AC139)-AC138)","v":0},null,null,null,{"$f":"nerr(SUM(AG138:AG139)-AG138)","v":0},null,null,null,null,{"$f":"nerr(SUM(AL138:AL139)-AL138)","v":0}]
[null,null,null,"1.6.1.2.2.0",null,{"$f":"nerr(SUM(G138:J138))","v":0},null,null,null,null,{"$f":"nerr(SUM(L138:O138))","v":0},null,null,null,null,{"$f":"nerr(SUM(Q138:T138))","v":0},null,null,null,null,{"$f":"nerr(SUM(V138:Y138))","v":0}]
[]
[null,null,"-","1.6.1.2.3","КЛЭП 3-10 кВ (СН2)",{"$f":"nerr(SUM(F141:F142)-F141)","v":0},0,0,0,0,0,0,0,0,0,0,0,0,0,0,0,0,0,0,0,null,null,{"$f":"nerr(SUM(AB141:AB142)-AB141)","v":0},{"$f":"nerr(SUM(AC141:AC142)-AC141)","v":0},null,null,null,{"$f":"nerr(SUM(AG141:AG142)-AG141)","v":0},null,null,null,null,{"$f":"nerr(SUM(AL141:AL142)-AL141)","v":0}]
[null,null,null,"1.6.1.2.3.0",null,{"$f":"nerr(SUM(G141:J141))","v":0},null,null,null,null,{"$f":"nerr(SUM(L141:O141))","v":0},null,null,null,null,{"$f":"nerr(SUM(Q141:T141))","v":0},null,null,null,null,{"$f":"nerr(SUM(V141:Y141))","v":0}]
[]
[null,null,"-","1.6.1.2.4","КЛЭП до 1 кВ (НН)",{"$f":"nerr(SUM(F144:F145)-F144)","v":0},0,0,0,0,0,0,0,0,0,0,0,0,0,0,0,0,0,0,0,null,null,{"$f":"nerr(SUM(AB144:AB145)-AB144)","v":0},{"$f":"nerr(SUM(AC144:AC145)-AC144)","v":0},null,null,null,{"$f":"nerr(SUM(AG144:AG145)-AG144)","v":0},null,null,null,null,{"$f":"nerr(SUM(AL144:AL145)-AL144)","v":0}]
[null,null,null,"1.6.1.2.4.0",null,{"$f":"nerr(SUM(G144:J144))","v":0},null,null,null,null,{"$f":"nerr(SUM(L144:O144))","v":0},null,null,null,null,{"$f":"nerr(SUM(Q144:T144))","v":0},null,null,null,null,{"$f":"nerr(SUM(V144:Y144))","v":0}]
[]
[null,null,"-","1.6.2","Подстанции",{"$f":"F147+F150+F153","v":0},0,0,0,0,0,0,0,0,0,0,0,0,0,0,0,0,0,0,0,null,null,{"$f":"AB147+AB150+AB153","v":0},{"$f":"AC147+AC150+AC153","v":0},null,null,null,{"$f":"AG147+AG150+AG153","v":0},null,null,null,null,{"$f":"AL147+AL150+AL153","v":0}]
[null,null,"-","1.6.2.1","Уровень входящего напряжения ВН",{"$f":"nerr(SUM(F148:F149)-F148)","v":0},0,0,0,0,0,0,0,0,0,0,0,0,0,0,0,0,0,0,0,null,null,{"$f":"nerr(SUM(AB148:AB149)-AB148)","v":0},{"$f":"nerr(SUM(AC148:AC149)-AC148)","v":0},null,null,null,{"$f":"nerr(SUM(AG148:AG149)-AG148)","v":0},null,null,null,null,{"$f":"nerr(SUM(AL148:AL149)-AL148)","v":0}]
[null,null,null,"1.6.2.1.0",null,{"$f":"nerr(SUM(G148:J148))","v":0},null,null,null,null,{"$f":"nerr(SUM(L148:O148))","v":0},null,null,null,null,{"$f":"nerr(SUM(Q148:T148))","v":0},null,null,null,null,{"$f":"nerr(SUM(V148:Y148))","v":0}]
[]
[null,null,"-","1.6.2.2","Уровень входящего напряжения СН1",{"$f":"nerr(SUM(F151:F152)-F151)","v":0},0,0,0,0,0,0,0,0,0,0,0,0,0,0,0,0,0,0,0,null,null,{"$f":"nerr(SUM(AB151:AB152)-AB151)","v":0},{"$f":"nerr(SUM(AC151:AC152)-AC151)","v":0},null,null,null,{"$f":"nerr(SUM(AG151:AG152)-AG151)","v":0},null,null,null,null,{"$f":"nerr(SUM(AL151:AL152)-AL151)","v":0}]
[null,null,null,"1.6.2.2.0",null,{"$f":"nerr(SUM(G151:J151))","v":0},null,null,null,null,{"$f":"nerr(SUM(L151:O151))","v":0},null,null,null,null,{"$f":"nerr(SUM(Q151:T151))","v":0},null,null,null,null,{"$f":"nerr(SUM(V151:Y151))","v":0}]
[]
[null,null,"-","1.6.2.3","Уровень входящего напряжения СН2",{"$f":"nerr(SUM(F154:F155)-F154)","v":0},0,0,0,0,0,0,0,0,0,0,0,0,0,0,0,0,0,0,0,null,null,{"$f":"nerr(SUM(AB154:AB155)-AB154)","v":0},{"$f":"nerr(SUM(AC154:AC155)-AC154)","v":0},null,null,null,{"$f":"nerr(SUM(AG154:AG155)-AG154)","v":0},null,null,null,null,{"$f":"nerr(SUM(AL154:AL155)-AL154)","v":0}]
[null,null,null,"1.6.2.3.0",null,{"$f":"nerr(SUM(G154:J154))","v":0},null,null,null,null,{"$f":"nerr(SUM(L154:O154))","v":0},null,null,null,null,{"$f":"nerr(SUM(Q154:T154))","v":0},null,null,null,null,{"$f":"nerr(SUM(V154:Y154))","v":0}]
[]
[null,null,"-","1.6.3","Прочие электросетевые объекты",{"$f":"nerr(SUM(F157:F158)-F157)","v":0},0,0,0,0,0,0,0,0,0,0,0,0,0,0,0,0,0,0,0,null,null,{"$f":"nerr(SUM(AB157:AB158)-AB157)","v":0},{"$f":"nerr(SUM(AC157:AC158)-AC157)","v":0},null,null,null,{"$f":"nerr(SUM(AG157:AG158)-AG157)","v":0},null,null,null,null,{"$f":"nerr(SUM(AL157:AL158)-AL157)","v":0}]
[null,null,null,"1.6.3.0",null,{"$f":"nerr(SUM(G157:J157))","v":0},null,null,null,null,{"$f":"nerr(SUM(L157:O157))","v":0},null,null,null,null,{"$f":"nerr(SUM(Q157:T157))","v":0},null,null,null,null,{"$f":"nerr(SUM(V157:Y157))","v":0}]
[]
[null,null,null,"2","Новое строительство",{"$f":"F160+F201+F242","v":0},0,0,0,0,0,0,0,0,0,0,0,0,0,0,0,0,0,0,0,null,null,{"$f":"AB160+AB201+AB242","v":0},{"$f":"AC160+AC201+AC242","v":0},null,null,null,{"$f":"AG160+AG201+AG242","v":0},null,null,null,null,{"$f":"AL160+AL201+AL242","v":0}]
[null,null,"-","2.1","Энергосбережение и повышение энергетической эффективности",{"$f":"F161+F188+F198","v":0},0,0,0,0,0,0,0,0,0,0,0,0,0,0,0,0,0,0,0,null,null,{"$f":"AB161+AB188+AB198","v":0},{"$f":"AC161+AC188+AC198","v":0},null,null,null,{"$f":"AG161+AG188+AG198","v":0},null,null,null,null,{"$f":"AL161+AL188+AL198","v":0}]
[null,null,"-","2.1.1","Электрические линии",{"$f":"F162+F175","v":0},0,0,0,0,0,0,0,0,0,0,0,0,0,0,0,0,0,0,0,null,null,{"$f":"AB162+AB175","v":0},{"$f":"AC162+AC175","v":0},null,null,null,{"$f":"AG162+AG175","v":0},null,null,null,null,{"$f":"AL162+AL175","v":0}]
[null,null,"-","2.1.1.1","Воздушные линии",{"$f":"F163+F166+F169+F172","v":0},0,0,0,0,0,0,0,0,0,0,0,0,0,0,0,0,0,0,0,null,null,{"$f":"AB163+AB166+AB169+AB172","v":0},{"$f":"AC163+AC166+AC169+AC172","v":0},null,null,null,{"$f":"AG163+AG166+AG169+AG172","v":0},null,null,null,null,{"$f":"AL163+AL166+AL169+AL172","v":0}]
[null,null,"-","2.1.1.1.1","ВЛЭП 110-220 кВ (ВН)",{"$f":"nerr(SUM(F164:F165)-F164)","v":0},0,0,0,0,0,0,0,0,0,0,0,0,0,0,0,0,0,0,0,null,null,{"$f":"nerr(SUM(AB164:AB165)-AB164)","v":0},{"$f":"nerr(SUM(AC164:AC165)-AC164)","v":0},null,null,null,{"$f":"nerr(SUM(AG164:AG165)-AG164)","v":0},null,null,null,null,{"$f":"nerr(SUM(AL164:AL165)-AL164)","v":0}]
[null,null,null,"2.1.1.1.1.0",null,{"$f":"nerr(SUM(G164:J164))","v":0},null,null,null,null,{"$f":"nerr(SUM(L164:O164))","v":0},null,null,null,null,{"$f":"nerr(SUM(Q164:T164))","v":0},null,null,null,null,{"$f":"nerr(SUM(V164:Y164))","v":0}]
[]
[null,null,"-","2.1.1.1.2","ВЛЭП 35 кВ (СН1)",{"$f":"nerr(SUM(F167:F168)-F167)","v":0},0,0,0,0,0,0,0,0,0,0,0,0,0,0,0,0,0,0,0,null,null,{"$f":"nerr(SUM(AB167:AB168)-AB167)","v":0},{"$f":"nerr(SUM(AC167:AC168)-AC167)","v":0},null,null,null,{"$f":"nerr(SUM(AG167:AG168)-AG167)","v":0},null,null,null,null,{"$f":"nerr(SUM(AL167:AL168)-AL167)","v":0}]
[null,null,null,"2.1.1.1.2.0",null,{"$f":"nerr(SUM(G167:J167))","v":0},null,null,null,null,{"$f":"nerr(SUM(L167:O167))","v":0},null,null,null,null,{"$f":"nerr(SUM(Q167:T167))","v":0},null,null,null,null,{"$f":"nerr(SUM(V167:Y167))","v":0}]
[]
[null,null,"-","2.1.1.1.3","ВЛЭП 1-20 кВ (СН2)",{"$f":"nerr(SUM(F170:F171)-F170)","v":0},0,0,0,0,0,0,0,0,0,0,0,0,0,0,0,0,0,0,0,null,null,{"$f":"nerr(SUM(AB170:AB171)-AB170)","v":0},{"$f":"nerr(SUM(AC170:AC171)-AC170)","v":0},null,null,null,{"$f":"nerr(SUM(AG170:AG171)-AG170)","v":0},null,null,null,null,{"$f":"nerr(SUM(AL170:AL171)-AL170)","v":0}]
[null,null,null,"2.1.1.1.3.0",null,{"$f":"nerr(SUM(G170:J170))","v":0},null,null,null,null,{"$f":"nerr(SUM(L170:O170))","v":0},null,null,null,null,{"$f":"nerr(SUM(Q170:T170))","v":0},null,null,null,null,{"$f":"nerr(SUM(V170:Y170))","v":0}]
[]
[null,null,"-","2.1.1.1.4","ВЛЭП 0,4 кВ (НН)",{"$f":"nerr(SUM(F173:F174)-F173)","v":0},0,0,0,0,0,0,0,0,0,0,0,0,0,0,0,0,0,0,0,null,null,{"$f":"nerr(SUM(AB173:AB174)-AB173)","v":0},{"$f":"nerr(SUM(AC173:AC174)-AC173)","v":0},null,null,null,{"$f":"nerr(SUM(AG173:AG174)-AG173)","v":0},null,null,null,null,{"$f":"nerr(SUM(AL173:AL174)-AL173)","v":0}]
[null,null,null,"2.1.1.1.4.0",null,{"$f":"nerr(SUM(G173:J173))","v":0},null,null,null,null,{"$f":"nerr(SUM(L173:O173))","v":0},null,null,null,null,{"$f":"nerr(SUM(Q173:T173))","v":0},null,null,null,null,{"$f":"nerr(SUM(V173:Y173))","v":0}]
[]
[null,null,"-","2.1.1.2","Кабельные линии",{"$f":"F176+F179+F182+F185","v":0},0,0,0,0,0,0,0,0,0,0,0,0,0,0,0,0,0,0,0,null,null,{"$f":"AB176+AB179+AB182+AB185","v":0},{"$f":"AC176+AC179+AC182+AC185","v":0},null,null,null,{"$f":"AG176+AG179+AG182+AG185","v":0},null,null,null,null,{"$f":"AL176+AL179+AL182+AL185","v":0}]
[null,null,"-","2.1.1.2.1","КЛЭП 110 кВ (ВН)",{"$f":"nerr(SUM(F177:F178)-F177)","v":0},0,0,0,0,0,0,0,0,0,0,0,0,0,0,0,0,0,0,0,null,null,{"$f":"nerr(SUM(AB177:AB178)-AB177)","v":0},{"$f":"nerr(SUM(AC177:AC178)-AC177)","v":0},null,null,null,{"$f":"nerr(SUM(AG177:AG178)-AG177)","v":0},null,null,null,null,{"$f":"nerr(SUM(AL177:AL178)-AL177)","v":0}]
[null,null,null,"2.1.1.2.1.0",null,{"$f":"nerr(SUM(G177:J177))","v":0},null,null,null,null,{"$f":"nerr(SUM(L177:O177))","v":0},null,null,null,null,{"$f":"nerr(SUM(Q177:T177))","v":0},null,null,null,null,{"$f":"nerr(SUM(V177:Y177))","v":0}]
[]
[null,null,"-","2.1.1.2.2","КЛЭП 20-35 кВ (СН1)",{"$f":"nerr(SUM(F180:F181)-F180)","v":0},0,0,0,0,0,0,0,0,0,0,0,0,0,0,0,0,0,0,0,null,null,{"$f":"nerr(SUM(AB180:AB181)-AB180)","v":0},{"$f":"nerr(SUM(AC180:AC181)-AC180)","v":0},null,null,null,{"$f":"nerr(SUM(AG180:AG181)-AG180)","v":0},null,null,null,null,{"$f":"nerr(SUM(AL180:AL181)-AL180)","v":0}]
[null,null,null,"2.1.1.2.2.0",null,{"$f":"nerr(SUM(G180:J180))","v":0},null,null,null,null,{"$f":"nerr(SUM(L180:O180))","v":0},null,null,null,null,{"$f":"nerr(SUM(Q180:T180))","v":0},null,null,null,null,{"$f":"nerr(SUM(V180:Y180))","v":0}]
[]
[null,null,"-","2.1.1.2.3","КЛЭП 3-10 кВ (СН2)",{"$f":"nerr(SUM(F183:F184)-F183)","v":0},0,0,0,0,0,0,0,0,0,0,0,0,0,0,0,0,0,0,0,null,null,{"$f":"nerr(SUM(AB183:AB184)-AB183)","v":0},{"$f":"nerr(SUM(AC183:AC184)-AC183)","v":0},null,null,null,{"$f":"nerr(SUM(AG183:AG184)-AG183)","v":0},null,null,null,null,{"$f":"nerr(SUM(AL183:AL184)-AL183)","v":0}]
[null,null,null,"2.1.1.2.3.0",null,{"$f":"nerr(SUM(G183:J183))","v":0},null,null,null,null,{"$f":"nerr(SUM(L183:O183))","v":0},null,null,null,null,{"$f":"nerr(SUM(Q183:T183))","v":0},null,null,null,null,{"$f":"nerr(SUM(V183:Y183))","v":0}]
[]
[null,null,"-","2.1.1.2.4","КЛЭП до 1 кВ (НН)",{"$f":"nerr(SUM(F186:F187)-F186)","v":0},0,0,0,0,0,0,0,0,0,0,0,0,0,0,0,0,0,0,0,null,null,{"$f":"nerr(SUM(AB186:AB187)-AB186)","v":0},{"$f":"nerr(SUM(AC186:AC187)-AC186)","v":0},null,null,null,{"$f":"nerr(SUM(AG186:AG187)-AG186)","v":0},null,null,null,null,{"$f":"nerr(SUM(AL186:AL187)-AL186)","v":0}]
[null,null,null,"2.1.1.2.4.0",null,{"$f":"nerr(SUM(G186:J186))","v":0},null,null,null,null,{"$f":"nerr(SUM(L186:O186))","v":0},null,null,null,null,{"$f":"nerr(SUM(Q186:T186))","v":0},null,null,null,null,{"$f":"nerr(SUM(V186:Y186))","v":0}]
[]
[null,null,"-","2.1.2","Подстанции",{"$f":"F189+F192+F195","v":0},0,0,0,0,0,0,0,0,0,0,0,0,0,0,0,0,0,0,0,null,null,{"$f":"AB189+AB192+AB195","v":0},{"$f":"AC189+AC192+AC195","v":0},null,null,null,{"$f":"AG189+AG192+AG195","v":0},null,null,null,null,{"$f":"AL189+AL192+AL195","v":0}]
[null,null,"-","2.1.2.1","Уровень входящего напряжения ВН",{"$f":"nerr(SUM(F190:F191)-F190)","v":0},0,0,0,0,0,0,0,0,0,0,0,0,0,0,0,0,0,0,0,null,null,{"$f":"nerr(SUM(AB190:AB191)-AB190)","v":0},{"$f":"nerr(SUM(AC190:AC191)-AC190)","v":0},null,null,null,{"$f":"nerr(SUM(AG190:AG191)-AG190)","v":0},null,null,null,null,{"$f":"nerr(SUM(AL190:AL191)-AL190)","v":0}]
[null,null,null,"2.1.2.1.0",null,{"$f":"nerr(SUM(G190:J190))","v":0},null,null,null,null,{"$f":"nerr(SUM(L190:O190))","v":0},null,null,null,null,{"$f":"nerr(SUM(Q190:T190))","v":0},null,null,null,null,{"$f":"nerr(SUM(V190:Y190))","v":0}]
[]
[null,null,"-","2.1.2.2","Уровень входящего напряжения СН1",{"$f":"nerr(SUM(F193:F194)-F193)","v":0},0,0,0,0,0,0,0,0,0,0,0,0,0,0,0,0,0,0,0,null,null,{"$f":"nerr(SUM(AB193:AB194)-AB193)","v":0},{"$f":"nerr(SUM(AC193:AC194)-AC193)","v":0},null,null,null,{"$f":"nerr(SUM(AG193:AG194)-AG193)","v":0},null,null,null,null,{"$f":"nerr(SUM(AL193:AL194)-AL193)","v":0}]
[null,null,null,"2.1.2.2.0",null,{"$f":"nerr(SUM(G193:J193))","v":0},null,null,null,null,{"$f":"nerr(SUM(L193:O193))","v":0},null,null,null,null,{"$f":"nerr(SUM(Q193:T193))","v":0},null,null,null,null,{"$f":"nerr(SUM(V193:Y193))","v":0}]
[]
[null,null,"-","2.1.2.3","Уровень входящего напряжения СН2",{"$f":"nerr(SUM(F196:F197)-F196)","v":0},0,0,0,0,0,0,0,0,0,0,0,0,0,0,0,0,0,0,0,null,null,{"$f":"nerr(SUM(AB196:AB197)-AB196)","v":0},{"$f":"nerr(SUM(AC196:AC197)-AC196)","v":0},null,null,null,{"$f":"nerr(SUM(AG196:AG197)-AG196)","v":0},null,null,null,null,{"$f":"nerr(SUM(AL196:AL197)-AL196)","v":0}]
[null,null,null,"2.1.2.3.0",null,{"$f":"nerr(SUM(G196:J196))","v":0},null,null,null,null,{"$f":"nerr(SUM(L196:O196))","v":0},null,null,null,null,{"$f":"nerr(SUM(Q196:T196))","v":0},null,null,null,null,{"$f":"nerr(SUM(V196:Y196))","v":0}]
[]
[null,null,"-","2.1.3","Прочие электросетевые объекты",{"$f":"nerr(SUM(F199:F200)-F199)","v":0},0,0,0,0,0,0,0,0,0,0,0,0,0,0,0,0,0,0,0,null,null,{"$f":"nerr(SUM(AB199:AB200)-AB199)","v":0},{"$f":"nerr(SUM(AC199:AC200)-AC199)","v":0},null,null,null,{"$f":"nerr(SUM(AG199:AG200)-AG199)","v":0},null,null,null,null,{"$f":"nerr(SUM(AL199:AL200)-AL199)","v":0}]
[null,null,null,"2.1.3.0",null,{"$f":"nerr(SUM(G199:J199))","v":0},null,null,null,null,{"$f":"nerr(SUM(L199:O199))","v":0},null,null,null,null,{"$f":"nerr(SUM(Q199:T199))","v":0},null,null,null,null,{"$f":"nerr(SUM(V199:Y199))","v":0}]
[]
[null,null,"-","2.2","Исполнение договоров технологического присоединения",{"$f":"F202+F229+F239","v":0},0,0,0,0,0,0,0,0,0,0,0,0,0,0,0,0,0,0,0,null,null,{"$f":"AB202+AB229+AB239","v":0},{"$f":"AC202+AC229+AC239","v":0},null,null,null,{"$f":"AG202+AG229+AG239","v":0},null,null,null,null,{"$f":"AL202+AL229+AL239","v":0}]
[null,null,"-","2.2.1","Электрические линии",{"$f":"F203+F216","v":0},0,0,0,0,0,0,0,0,0,0,0,0,0,0,0,0,0,0,0,null,null,{"$f":"AB203+AB216","v":0},{"$f":"AC203+AC216","v":0},null,null,null,{"$f":"AG203+AG216","v":0},null,null,null,null,{"$f":"AL203+AL216","v":0}]
[null,null,"-","2.2.1.1","Воздушные линии",{"$f":"F204+F207+F210+F213","v":0},0,0,0,0,0,0,0,0,0,0,0,0,0,0,0,0,0,0,0,null,null,{"$f":"AB204+AB207+AB210+AB213","v":0},{"$f":"AC204+AC207+AC210+AC213","v":0},null,null,null,{"$f":"AG204+AG207+AG210+AG213","v":0},null,null,null,null,{"$f":"AL204+AL207+AL210+AL213","v":0}]
[null,null,"-","2.2.1.1.1","ВЛЭП 110-220 кВ (ВН)",{"$f":"nerr(SUM(F205:F206)-F205)","v":0},0,0,0,0,0,0,0,0,0,0,0,0,0,0,0,0,0,0,0,null,null,{"$f":"nerr(SUM(AB205:AB206)-AB205)","v":0},{"$f":"nerr(SUM(AC205:AC206)-AC205)","v":0},null,null,null,{"$f":"nerr(SUM(AG205:AG206)-AG205)","v":0},null,null,null,null,{"$f":"nerr(SUM(AL205:AL206)-AL205)","v":0}]
[null,null,null,"2.2.1.1.1.0",null,{"$f":"nerr(SUM(G205:J205))","v":0},null,null,null,null,{"$f":"nerr(SUM(L205:O205))","v":0},null,null,null,null,{"$f":"nerr(SUM(Q205:T205))","v":0},null,null,null,null,{"$f":"nerr(SUM(V205:Y205))","v":0}]
[]
[null,null,"-","2.2.1.1.2","ВЛЭП 35 кВ (СН1)",{"$f":"nerr(SUM(F208:F209)-F208)","v":0},0,0,0,0,0,0,0,0,0,0,0,0,0,0,0,0,0,0,0,null,null,{"$f":"nerr(SUM(AB208:AB209)-AB208)","v":0},{"$f":"nerr(SUM(AC208:AC209)-AC208)","v":0},null,null,null,{"$f":"nerr(SUM(AG208:AG209)-AG208)","v":0},null,null,null,null,{"$f":"nerr(SUM(AL208:AL209)-AL208)","v":0}]
[null,null,null,"2.2.1.1.2.0",null,{"$f":"nerr(SUM(G208:J208))","v":0},null,null,null,null,{"$f":"nerr(SUM(L208:O208))","v":0},null,null,null,null,{"$f":"nerr(SUM(Q208:T208))","v":0},null,null,null,null,{"$f":"nerr(SUM(V208:Y208))","v":0}]
[]
[null,null,"-","2.2.1.1.3","ВЛЭП 1-20 кВ (СН2)",{"$f":"nerr(SUM(F211:F212)-F211)","v":0},0,0,0,0,0,0,0,0,0,0,0,0,0,0,0,0,0,0,0,null,null,{"$f":"nerr(SUM(AB211:AB212)-AB211)","v":0},{"$f":"nerr(SUM(AC211:AC212)-AC211)","v":0},null,null,null,{"$f":"nerr(SUM(AG211:AG212)-AG211)","v":0},null,null,null,null,{"$f":"nerr(SUM(AL211:AL212)-AL211)","v":0}]
[null,null,null,"2.2.1.1.3.0",null,{"$f":"nerr(SUM(G211:J211))","v":0},null,null,null,null,{"$f":"nerr(SUM(L211:O211))","v":0},null,null,null,null,{"$f":"nerr(SUM(Q211:T211))","v":0},null,null,null,null,{"$f":"nerr(SUM(V211:Y211))","v":0}]
[]
[null,null,"-","2.2.1.1.4","ВЛЭП 0,4 кВ (НН)",{"$f":"nerr(SUM(F214:F215)-F214)","v":0},0,0,0,0,0,0,0,0,0,0,0,0,0,0,0,0,0,0,0,null,null,{"$f":"nerr(SUM(AB214:AB215)-AB214)","v":0},{"$f":"nerr(SUM(AC214:AC215)-AC214)","v":0},null,null,null,{"$f":"nerr(SUM(AG214:AG215)-AG214)","v":0},null,null,null,null,{"$f":"nerr(SUM(AL214:AL215)-AL214)","v":0}]
[null,null,null,"2.2.1.1.4.0",null,{"$f":"nerr(SUM(G214:J214))","v":0},null,null,null,null,{"$f":"nerr(SUM(L214:O214))","v":0},null,null,null,null,{"$f":"nerr(SUM(Q214:T214))","v":0},null,null,null,null,{"$f":"nerr(SUM(V214:Y214))","v":0}]
[]
[null,null,"-","2.2.1.2","Кабельные линии",{"$f":"F217+F220+F223+F226","v":0},0,0,0,0,0,0,0,0,0,0,0,0,0,0,0,0,0,0,0,null,null,{"$f":"AB217+AB220+AB223+AB226","v":0},{"$f":"AC217+AC220+AC223+AC226","v":0},null,null,null,{"$f":"AG217+AG220+AG223+AG226","v":0},null,null,null,null,{"$f":"AL217+AL220+AL223+AL226","v":0}]
[null,null,"-","2.2.1.2.1","КЛЭП 110 кВ (ВН)",{"$f":"nerr(SUM(F218:F219)-F218)","v":0},0,0,0,0,0,0,0,0,0,0,0,0,0,0,0,0,0,0,0,null,null,{"$f":"nerr(SUM(AB218:AB219)-AB218)","v":0},{"$f":"nerr(SUM(AC218:AC219)-AC218)","v":0},null,null,null,{"$f":"nerr(SUM(AG218:AG219)-AG218)","v":0},null,null,null,null,{"$f":"nerr(SUM(AL218:AL219)-AL218)","v":0}]
[null,null,null,"2.2.1.2.1.0",null,{"$f":"nerr(SUM(G218:J218))","v":0},null,null,null,null,{"$f":"nerr(SUM(L218:O218))","v":0},null,null,null,null,{"$f":"nerr(SUM(Q218:T218))","v":0},null,null,null,null,{"$f":"nerr(SUM(V218:Y218))","v":0}]
[]
[null,null,"-","2.2.1.2.2","КЛЭП 20-35 кВ (СН1)",{"$f":"nerr(SUM(F221:F222)-F221)","v":0},0,0,0,0,0,0,0,0,0,0,0,0,0,0,0,0,0,0,0,null,null,{"$f":"nerr(SUM(AB221:AB222)-AB221)","v":0},{"$f":"nerr(SUM(AC221:AC222)-AC221)","v":0},null,null,null,{"$f":"nerr(SUM(AG221:AG222)-AG221)","v":0},null,null,null,null,{"$f":"nerr(SUM(AL221:AL222)-AL221)","v":0}]
[null,null,null,"2.2.1.2.2.0",null,{"$f":"nerr(SUM(G221:J221))","v":0},null,null,null,null,{"$f":"nerr(SUM(L221:O221))","v":0},null,null,null,null,{"$f":"nerr(SUM(Q221:T221))","v":0},null,null,null,null,{"$f":"nerr(SUM(V221:Y221))","v":0}]
[]
[null,null,"-","2.2.1.2.3","КЛЭП 3-10 кВ (СН2)",{"$f":"nerr(SUM(F224:F225)-F224)","v":0},0,0,0,0,0,0,0,0,0,0,0,0,0,0,0,0,0,0,0,null,null,{"$f":"nerr(SUM(AB224:AB225)-AB224)","v":0},{"$f":"nerr(SUM(AC224:AC225)-AC224)","v":0},null,null,null,{"$f":"nerr(SUM(AG224:AG225)-AG224)","v":0},null,null,null,null,{"$f":"nerr(SUM(AL224:AL225)-AL224)","v":0}]
[null,null,null,"2.2.1.2.3.0",null,{"$f":"nerr(SUM(G224:J224))","v":0},null,null,null,null,{"$f":"nerr(SUM(L224:O224))","v":0},null,null,null,null,{"$f":"nerr(SUM(Q224:T224))","v":0},null,null,null,null,{"$f":"nerr(SUM(V224:Y224))","v":0}]
[]
[null,null,"-","2.2.1.2.4","КЛЭП до 1 кВ (НН)",{"$f":"nerr(SUM(F227:F228)-F227)","v":0},0,0,0,0,0,0,0,0,0,0,0,0,0,0,0,0,0,0,0,null,null,{"$f":"nerr(SUM(AB227:AB228)-AB227)","v":0},{"$f":"nerr(SUM(AC227:AC228)-AC227)","v":0},null,null,null,{"$f":"nerr(SUM(AG227:AG228)-AG227)","v":0},null,null,null,null,{"$f":"nerr(SUM(AL227:AL228)-AL227)","v":0}]
[null,null,null,"2.2.1.2.4.0",null,{"$f":"nerr(SUM(G227:J227))","v":0},null,null,null,null,{"$f":"nerr(SUM(L227:O227))","v":0},null,null,null,null,{"$f":"nerr(SUM(Q227:T227))","v":0},null,null,null,null,{"$f":"nerr(SUM(V227:Y227))","v":0}]
[]
[null,null,"-","2.2.2","Подстанции",{"$f":"F230+F233+F236","v":0},0,0,0,0,0,0,0,0,0,0,0,0,0,0,0,0,0,0,0,null,null,{"$f":"AB230+AB233+AB236","v":0},{"$f":"AC230+AC233+AC236","v":0},null,null,null,{"$f":"AG230+AG233+AG236","v":0},null,null,null,null,{"$f":"AL230+AL233+AL236","v":0}]
[null,null,"-","2.2.2.1","Уровень входящего напряжения ВН",{"$f":"nerr(SUM(F231:F232)-F231)","v":0},0,0,0,0,0,0,0,0,0,0,0,0,0,0,0,0,0,0,0,null,null,{"$f":"nerr(SUM(AB231:AB232)-AB231)","v":0},{"$f":"nerr(SUM(AC231:AC232)-AC231)","v":0},null,null,null,{"$f":"nerr(SUM(AG231:AG232)-AG231)","v":0},null,null,null,null,{"$f":"nerr(SUM(AL231:AL232)-AL231)","v":0}]
[null,null,null,"2.2.2.1.0",null,{"$f":"nerr(SUM(G231:J231))","v":0},null,null,null,null,{"$f":"nerr(SUM(L231:O231))","v":0},null,null,null,null,{"$f":"nerr(SUM(Q231:T231))","v":0},null,null,null,null,{"$f":"nerr(SUM(V231:Y231))","v":0}]
[]
[null,null,"-","2.2.2.2","Уровень входящего напряжения СН1",{"$f":"nerr(SUM(F234:F235)-F234)","v":0},0,0,0,0,0,0,0,0,0,0,0,0,0,0,0,0,0,0,0,null,null,{"$f":"nerr(SUM(AB234:AB235)-AB234)","v":0},{"$f":"nerr(SUM(AC234:AC235)-AC234)","v":0},null,null,null,{"$f":"nerr(SUM(AG234:AG235)-AG234)","v":0},null,null,null,null,{"$f":"nerr(SUM(AL234:AL235)-AL234)","v":0}]
[null,null,null,"2.2.2.2.0",null,{"$f":"nerr(SUM(G234:J234))","v":0},null,null,null,null,{"$f":"nerr(SUM(L234:O234))","v":0},null,null,null,null,{"$f":"nerr(SUM(Q234:T234))","v":0},null,null,null,null,{"$f":"nerr(SUM(V234:Y234))","v":0}]
[]
[null,null,"-","2.2.2.3","Уровень входящего напряжения СН2",{"$f":"nerr(SUM(F237:F238)-F237)","v":0},0,0,0,0,0,0,0,0,0,0,0,0,0,0,0,0,0,0,0,null,null,{"$f":"nerr(SUM(AB237:AB238)-AB237)","v":0},{"$f":"nerr(SUM(AC237:AC238)-AC237)","v":0},null,null,null,{"$f":"nerr(SUM(AG237:AG238)-AG237)","v":0},null,null,null,null,{"$f":"nerr(SUM(AL237:AL238)-AL237)","v":0}]
[null,null,null,"2.2.2.3.0",null,{"$f":"nerr(SUM(G237:J237))","v":0},null,null,null,null,{"$f":"nerr(SUM(L237:O237))","v":0},null,null,null,null,{"$f":"nerr(SUM(Q237:T237))","v":0},null,null,null,null,{"$f":"nerr(SUM(V237:Y237))","v":0}]
[]
[null,null,"-","2.2.3","Прочие электросетевые объекты",{"$f":"nerr(SUM(F240:F241)-F240)","v":0},0,0,0,0,0,0,0,0,0,0,0,0,0,0,0,0,0,0,0,null,null,{"$f":"nerr(SUM(AB240:AB241)-AB240)","v":0},{"$f":"nerr(SUM(AC240:AC241)-AC240)","v":0},null,null,null,{"$f":"nerr(SUM(AG240:AG241)-AG240)","v":0},null,null,null,null,{"$f":"nerr(SUM(AL240:AL241)-AL240)","v":0}]
[null,null,null,"2.2.3.0",null,{"$f":"nerr(SUM(G240:J240))","v":0},null,null,null,null,{"$f":"nerr(SUM(L240:O240))","v":0},null,null,null,null,{"$f":"nerr(SUM(Q240:T240))","v":0},null,null,null,null,{"$f":"nerr(SUM(V240:Y240))","v":0}]
[]
[null,null,"-","2.3","Прочее новое строительство",{"$f":"nerr(SUMIF($AN243:$AN245,\"=I\",F243:F245)-F243)","v":0},0,0,0,0,0,0,0,0,0,0,0,0,0,0,0,0,0,0,0,null,null,{"$f":"nerr(SUMIF($AN243:$AN245,\"=I\",AB243:AB245)-AB243)","v":0},{"$f":"nerr(SUMIF($AN243:$AN245,\"=I\",AC243:AC245)-AC243)","v":0},null,null,null,{"$f":"nerr(SUMIF($AN243:$AN245,\"=I\",AG243:AG245)-AG243)","v":0},null,null,null,null,{"$f":"nerr(SUMIF($AN243:$AN245,\"=I\",AL243:AL245)-AL243)","v":0}]
[null,null,null,"2.3.0",null,{"$f":"nerr(SUM(G243:J243))","v":0},null,null,null,null,{"$f":"nerr(SUM(L243:O243))","v":0},null,null,null,null,{"$f":"nerr(SUM(Q243:T243))","v":0},null,null,null,null,{"$f":"nerr(SUM(V243:Y243))","v":0},null,null,null,null,null,null,null,null,null,null,null,null,null,null,null,null,null,null,"I"]
[null,null,null,{"$f":"D243&\".1\"","v":"2.3.0.1"},"в том числе ПТП",{"$f":"nerr(SUM(G244:J244))","v":0},null,null,null,null,{"$f":"nerr(SUM(L244:O244))","v":0},null,null,null,null,{"$f":"nerr(SUM(Q244:T244))","v":0},null,null,null,null,{"$f":"nerr(SUM(V244:Y244))","v":0}]
[]
[null,null,null,"Справочно:"]
[null,null,"-",3,"Оплата процентов за привлеченные кредитные ресурсы",{"$f":"nerr(SUM(F248:F249)-F248)","v":0},0,0,0,0,0,0,0,0,0,0,0,0,0,0,0,0,0,0,0,null,null,{"$f":"nerr(SUM(AB248:AB249)-AB248)","v":0},{"$f":"nerr(SUM(AC248:AC249)-AC248)","v":0},null,null,null,{"$f":"nerr(SUM(AG248:AG249)-AG248)","v":0},null,null,null,null,{"$f":"nerr(SUM(AL248:AL249)-AL248)","v":0}]
[null,null,null,"3.0",null,{"$f":"nerr(SUM(G248:J248))","v":0},null,null,null,null,{"$f":"nerr(SUM(L248:O248))","v":0},null,null,null,null,{"$f":"nerr(SUM(Q248:T248))","v":0},null,null,null,null,{"$f":"nerr(SUM(V248:Y248))","v":0}]
[]
[]
[null,null,null,null,"*","С разделением объектов на ПС, ВЛ и КЛ с указанием уровня напряжения."]
[null,null,null,null,"**","Согласно проектно-сметной документации с учетом перевода в прогнозные цены планируемого периода (с НДС)."]

{"sheet":"Ф.8","index":9,"n_rows":49,"n_cols":16,"rows_kept":49,"cut":false,"hidden":false,"merged":[[11,3,11,15],[12,3,12,15],[14,3,16,3],[14,4,16,4],[14,15,16,15],[14,5,14,14],[15,5,15,6],[15,7,15,8],[15,9,15,10],[15,11,15,12],[15,13,15,14]]}
[null,null,null,null,null,null,null,null,null,2,2,3,3,4,4]
[]
[]
[]
[]
[null,null,"Список листов",null,null,null,null,null,null,null,null,null,null,null,null,"Приложение № 8\nк Приказу Минэнерго России\nот 24.03.2010 № 114"]
[null,null,null,null,null,null,null,null,null,null,null,null,null,null,null,"Утверждаю\nруководитель организации"]
[]
[null,null,null,null,null,null,null,null,null,null,null,null,null,null,null,"(подпись)"]
[null,null,null,null,null,null,null,null,null,null,null,null,null,null,null,"\"___\" _____________ 20__ года"]
[null,null,null,null,null,null,null,null,null,null,null,null,null,null,null,"М.П."]
[null,null,null,"Отчет об источниках финансирования инвестиционных программ, млн. рублей (представляется ежеквартально)"]
[null,null,null,{"$f":"org & \", Факт за \" & otchet_god & \" г. \" & kvartal","v":"ООО \"Красноярский жилищно-коммунальный комплекс\", Факт за 2016 г. IV квартал"}]
[]
[null,null,null,"№ п/п","Источник финансирования",{"$f":"\"Объем финансирования (\"& otchet_god & \" год)\"","v":"Объем финансирования (2016 год)"},null,null,null,null,null,null,null,null,null,"Причины отклонений"]
[null,null,null,null,null,"Всего",null,"I кв.",null,"II кв.",null,"III кв.",null,"IV кв."]
[null,null,null,null,null,"План*","Факт**","План","Факт","План","Факт","План","Факт","План","Факт"]
[null,null,null,1,2,3,4,5,6,7,8,9,10,11,12,13]
[null,null,null,"1","Собственные средства",{"$f":"nerr(F20+F27+F31+F32+F34)","v":34.76},0,0,0,0,0,0,0,34.76,0]
[null,null,null,"1.1","Прибыль, направляемая на инвестиции:",{"$f":"nerr(F21+F22+F23+F26)","v":12.36},0,0,0,0,0,0,0,12.36,0]
[null,null,null,"1.1.1","в т.ч. инвестиционная составляющая в тарифе",{"$f":"nerr(H21+J21+L21+N21)","v":12.36},{"$f":"nerr(I21+K21+M21+O21)","v":0},0,0,0,0,0,0,12.36,0]
[null,null,null,"1.1.2","в т.ч. прибыль со свободного сектора",{"$f":"nerr(H22+J22+L22+N22)","v":0},{"$f":"nerr(I22+K22+M22+O22)","v":0}]
[null,null,null,"1.1.3","в т.ч. от технологического присоединения (для электросетевых компаний)",{"$f":"nerr(F24+F25)","v":0},0,0,0,0,0,0,0,0,0]
[null,null,null,"1.1.3.1","в т.ч. от технологического присоединения генерации",{"$f":"nerr(H24+J24+L24+N24)","v":0},0]
[null,null,null,"1.1.3.2","в т.ч. от технологического присоединения потребителей",0,0]
[null,null,null,"1.1.4","Прочая прибыль",0,0]
[null,null,null,"1.2","Амортизация",{"$f":"nerr(F28+F29+F30)","v":22.4},0,0,0,0,0,0,0,22.4,0]
[null,null,null,"1.2.1","Амортизация, учтенная в тарифе",{"$f":"nerr(H28+J28+L28+N28)","v":4.82},0,0,0,0,0,0,0,4.82,0]
[null,null,null,"1.2.2","Прочая амортизация",17.579999999999998,0,0,0,0,0,0,0,17.579999999999998,0]
[null,null,null,"1.2.3","Недоиспользованная амортизация прошлых лет",0,0]
[null,null,null,"1.3","Возврат НДС",0,0]
[null,null,null,"1.4","Прочие собственные средства",0,0]
[null,null,null,"1.4.1","в т.ч. средства допэмиссии",0,0]
[null,null,null,"1.5","Остаток собственных средств на начало года",0,0]
[null,null,null,"2","Привлеченные средства, в т.ч.:",{"$f":"nerr(SUM(F36:F42))","v":0},0,0,0,0,0,0,0,0,0]
[null,null,null,"2.1","Кредиты",{"$f":"nerr(H36+J36+L36+N36)","v":0},0]
[null,null,null,"2.2","Облигационные займы",0,0]
[null,null,null,"2.3","Займы организаций",0,0]
[null,null,null,"2.4","Бюджетное финансирование",0,0]
[null,null,null,"2.5","Средства внешних инвесторов",0,0]
[null,null,null,"2.6","Использование лизинга",0,0]
[null,null,null,"2.7","Прочие привлеченные средства",0,0]
[null,null,null,null,"ВСЕГО источников финансирования",{"$f":"nerr(F19+F35)","v":34.76},0,0,0,0,0,0,0,34.76,0]
[null,null,null,null,"для ОГК/ТГК, в том числе",{"$f":"nerr(F45+F46)","v":0},0,0,0,0,0,0,0,0,0]
[null,null,null,null,"ДПМ",{"$f":"nerr(H45+J45+L45+N45)","v":0},{"$f":"nerr(I45+K45+M45+O45)","v":0}]
[null,null,null,null,"вне ДПМ",{"$f":"nerr(H46+J46+L46+N46)","v":0},{"$f":"nerr(I46+K46+M46+O46)","v":0}]
[]
[null,null,null,"*","План в соответствии с утвержденной инвестиционной программой."]
[null,null,null,"**","Накопленным итогом за год."]

{"sheet":"Ф.9","index":10,"n_rows":94,"n_cols":86,"rows_kept":94,"cut":false,"hidden":false,"merged":[[14,4,16,4],[16,5,16,9],[16,45,16,49],[16,50,16,54],[15,5,15,24],[15,25,15,44],[16,25,16,29],[16,30,16,34],[16,35,16,39],[16,40,16,44],[11,3,11,84],[16,10,16,14],[16,15,16,19],[16,20,16,24],[14,45,14,84],[15,45,15,64],[15,65,15,84],[14,5,14,44],[12,3,12,84],[14,3,16,3],[16,55,16,59],[16,80,16,84],[16,60,16,64],[16,65,16,69],[16,70,16,74],[16,75,16,79]]}
[null,null,null,null,null,null,2,3,4,null,null,2,3,4,null,null,2,3,4,null,null,2,3,4,null,null,2,3,4,null,null,2,3,4,null,null,2,3,4,null,null,2,3,4,null,null,2,3,4,null,null,2,3,4,null,null,2,3,4,null,null,2,3,4,null,null,2,3,4,null,null,2,3,4,null,null,2,3,4,null,null,2,3,4]
[null,null,null,null,null,1,1,1,1,null,1,1,1,1,null,0,0,0,0,null,0,0,0,0,null,1,1,1,1,null,1,1,1,1,null,0,0,0,0,null,0,0,0,0,null,1,1,1,1,null,1,1,1,1,null,0,0,0,0,null,0,0,0,0,null,1,1,1,1,null,1,1,1,1,null,0,0,0,0,null,0,0,0,0]
[]
[]
[]
[null,null,"Список листов",null,null,null,null,null,null,null,null,null,null,null,null,null,null,null,null,null,null,null,null,null,null,null,null,null,null,null,null,null,null,null,null,null,null,null,null,null,null,null,null,null,null,null,null,null,null,null,null,null,null,null,null,null,null,null,null,null,null,null,null,null,null,null,null,null,null,null,null,null,null,null,null,null,null,null,null,null,null,null,null,null,null,"Приложение № 9\nк Приказу Минэнерго России\nот 24.03.2010 № 114"]
[null,null,null,null,null,null,null,null,null,null,null,null,null,null,null,null,null,null,null,null,null,null,null,null,null,null,null,null,null,null,null,null,null,null,null,null,null,null,null,null,null,null,null,null,null,null,null,null,null,null,null,null,null,null,null,null,null,null,null,null,null,null,null,null,null,null,null,null,null,null,null,null,null,null,null,null,null,null,null,null,null,null,null,null,null,"Утверждаю\nруководитель организации"]
[]
[null,null,null,null,null,null,null,null,null,null,null,null,null,null,null,null,null,null,null,null,null,null,null,null,null,null,null,null,null,null,null,null,null,null,null,null,null,null,null,null,null,null,null,null,null,null,null,null,null,null,null,null,null,null,null,null,null,null,null,null,null,null,null,null,null,null,null,null,null,null,null,null,null,null,null,null,null,null,null,null,null,null,null,null,null,"(подпись)"]
[null,null,null,null,null,null,null,null,null,null,null,null,null,null,null,null,null,null,null,null,null,null,null,null,null,null,null,null,null,null,null,null,null,null,null,null,null,null,null,null,null,null,null,null,null,null,null,null,null,null,null,null,null,null,null,null,null,null,null,null,null,null,null,null,null,null,null,null,null,null,null,null,null,null,null,null,null,null,null,null,null,null,null,null,null,"\"___\" _____________ 20__ года"]
[null,null,null,null,null,null,null,null,null,null,null,null,null,null,null,null,null,null,null,null,null,null,null,null,null,null,null,null,null,null,null,null,null,null,null,null,null,null,null,null,null,null,null,null,null,null,null,null,null,null,null,null,null,null,null,null,null,null,null,null,null,null,null,null,null,null,null,null,null,null,null,null,null,null,null,null,null,null,null,null,null,null,null,null,null,"М.П."]
[null,null,null,"Отчет о вводах/выводах объектов (представляется ежеквартально)"]
[null,null,null,{"$f":"org & \", Факт за \" & otchet_god & \" г. \" & kvartal","v":"ООО \"Красноярский жилищно-коммунальный комплекс\", Факт за 2016 г. IV квартал"}]
[]
[null,null,null,"№ п/п","Наименование проекта","Ввод мощностей",null,null,null,null,null,null,null,null,null,null,null,null,null,null,null,null,null,null,null,null,null,null,null,null,null,null,null,null,null,null,null,null,null,null,null,null,null,null,null,"Вывод мощностей"]
[null,null,null,null,null,"План*",null,null,null,null,null,null,null,null,null,null,null,null,null,null,null,null,null,null,null,"Факт",null,null,null,null,null,null,null,null,null,null,null,null,null,null,null,null,null,null,null,"План*",null,null,null,null,null,null,null,null,null,null,null,null,null,null,null,null,null,null,null,"Факт"]
[null,null,null,null,null,"МВт",null,null,null,null,"Гкал/ч",null,null,null,null,"км",null,null,null,null,"МВА",null,null,null,null,"МВт",null,null,null,null,"Гкал/ч",null,null,null,null,"км",null,null,null,null,"МВА",null,null,null,null,"МВт",null,null,null,null,"Гкал/ч",null,null,null,null,"км",null,null,null,null,"МВА",null,null,null,null,"МВт",null,null,null,null,"Гкал/ч",null,null,null,null,"км",null,null,null,null,"МВА"]
[null,null,null,null,null,"I кв.","II кв.","III кв.","IV кв.",{"$f":"otchet_god & \" г.\"","v":"2016 г."},"I кв.","II кв.","III кв.","IV кв.",{"$f":"otchet_god & \" г.\"","v":"2016 г."},"I кв.","II кв.","III кв.","IV кв.",{"$f":"otchet_god & \" г.\"","v":"2016 г."},"I кв.","II кв.","III кв.","IV кв.",{"$f":"otchet_god & \" г.\"","v":"2016 г."},"I кв.","II кв.","III кв.","IV кв.",{"$f":"otchet_god & \" г.\"","v":"2016 г."},"I кв.","II кв.","III кв.","IV кв.",{"$f":"otchet_god & \" г.\"","v":"2016 г."},"I кв.","II кв.","III кв.","IV кв.",{"$f":"otchet_god & \" г.\"","v":"2016 г."},"I кв.","II кв.","III кв.","IV кв.",{"$f":"otchet_god & \" г.\"","v":"2016 г."},"I кв.","II кв.","III кв.","IV кв.",{"$f":"otchet_god & \" г.\"","v":"2016 г."},"I кв.","II кв.","III кв.","IV кв.",{"$f":"otchet_god & \" г.\"","v":"2016 г."},"I кв.","II кв.","III кв.","IV кв.",{"$f":"otchet_god & \" г.\"","v":"2016 г."},"I кв.","II кв.","III кв.","IV кв.",{"$f":"otchet_god & \" г.\"","v":"2016 г."},"I кв.","II кв.","III кв.","IV кв.",{"$f":"otchet_god & \" г.\"","v":"2016 г."},"I кв.","II кв.","III кв.","IV кв.",{"$f":"otchet_god & \" г.\"","v":"2016 г."},"I кв.","II кв.","III кв.","IV кв.",{"$f":"otchet_god & \" г.\"","v":"2016 г."},"I кв.","II кв.","III кв.","IV кв.",{"$f":"otchet_god & \" г.\"","v":"2016 г."}]
[null,null,null,1,2,3,4,5,6,7,8,9,10,11,12,13,14,15,16,17,18,19,20,21,22,23,24,25,26,27,28,29,30,31,32,33,34,35,36,37,38,39,40,41,42,43,44,45,46,47,48,49,50,51,52,53,54,55,56,57,58,59,60,61,62,63,64,65,66,67,68,69,70,71,72,73,74,75,76,77,78,79,80,81,82]
["_1.1.1.1.1"]
["_1.1.1.1.2"]
["_1.1.1.1.3"]
["_1.1.1.1.4"]
["_1.1.1.2.1"]
["_1.1.1.2.2"]
["_1.1.1.2.3"]
["_1.1.1.2.4"]
["_1.1.2.1"]
["_1.1.2.2"]
["_1.1.2.3"]
["_1.1.3"]
["_1.2.1.1.1"]
["_1.2.1.1.2"]
["_1.2.1.1.3"]
["_1.2.1.1.4"]
["_1.2.1.2.1"]
["_1.2.1.2.2"]
["_1.2.1.2.3"]
["_1.2.1.2.4"]
["_1.2.2.1"]
["_1.2.2.2"]
[null,null,"Удалить",{"$f":"Ф.7.1!$D$99","v":"1.2.2.3.1"},{"$f":"Ф.7.1!$E$99","v":"Модернизация оборудования трансформаторной подстанции № 685, находящейся по ул. Глинки, 13г"},null,null,null,null,{"$f":"nerr(SUM(F42:I42))","v":0},null,null,null,null,{"$f":"nerr(SUM(K42:N42))","v":0},0,0,0,0,{"$f":"nerr(SUM(P42:S42))","v":0},0,0,0,0.63,{"$f":"nerr(SUM(U42:X42))","v":0.63},null,null,null,null,{"$f":"nerr(SUM(Z42:AC42))","v":0},null,null,null,null,{"$f":"nerr(SUM(AE42:AH42))","v":0},0,0,0,{"$f":"S42","v":0},{"$f":"nerr(SUM(AJ42:AM42))","v":0},0,0,0,0,{"$f":"nerr(SUM(AO42:AR42))","v":0},null,null,null,null,{"$f":"nerr(SUM(AT42:AW42))","v":0},null,null,null,null,{"$f":"nerr(SUM(AY42:BB42))","v":0},0,0,0,0,{"$f":"nerr(SUM(BD42:BG42))","v":0},0,0,0,0.32,{"$f":"nerr(SUM(BI42:BL42))","v":0.32},null,null,null,null,{"$f":"nerr(SUM(BN42:BQ42))","v":0},null,null,null,null,{"$f":"nerr(SUM(BS42:BV42))","v":0},0,0,0,{"$f":"BG42","v":0},{"$f":"nerr(SUM(BX42:CA42))","v":0},0,0,0,0,{"$f":"nerr(SUM(CC42:CF42))","v":0}]
[null,null,"Удалить",{"$f":"Ф.7.1!$D$100","v":"1.2.2.3.2"},{"$f":"Ф.7.1!$E$100","v":"Модернизация оборудования трансформаторной подстанции № 783, находящейся по ул. Парковая, 10 а"},null,null,null,null,0,null,null,null,null,0,0,0,0,0,0,0,0,0,0.8,0.8,null,null,null,null,0,null,null,null,null,0,0,0,0,{"$f":"S43","v":0},0,0,0,0,0,0,null,null,null,null,0,null,null,null,null,0,0,0,0,0,0,0,0,0,0.64,0.64,null,null,null,null,0,null,null,null,null,0,0,0,0,{"$f":"BG43","v":0},0,0,0,0,0,0]
[null,null,"Удалить",{"$f":"Ф.7.1!$D$101","v":"1.2.2.3.3"},{"$f":"Ф.7.1!$E$101","v":"Модернизация распределительного устройства напряжением 6 кВ в распределительной подстанции № 127, находящейся по ул. Пограничников, 7 д"},null,null,null,null,0,null,null,null,null,0,0,0,0,0,0,0,0,0,0,0,null,null,null,null,0,null,null,null,null,0,0,0,0,0,0,0,0,0,0,0,null,null,null,null,0,null,null,null,null,0,0,0,0,0,0,0,0,{"$f":"Ф.7.2!CD101","v":0},{"$f":"Ф.7.2!CE101","v":0},0,null,null,null,null,0,null,null,null,null,0,0,0,0,0,0,0,0,0,0,0]
[null,null,"Удалить",{"$f":"Ф.7.1!$D$102","v":"1.2.2.3.4"},{"$f":"Ф.7.1!$E$102","v":"Модернизация оборудования трансформаторной подстанции № 508, находящейся по ул. Армейская, 21 г"},null,null,null,null,0,null,null,null,null,0,0,0,0,0,0,0,0,0,0.8,0.8,null,null,null,null,0,null,null,null,null,0,0,0,0,0,0,0,0,0,0,0,null,null,null,null,0,null,null,null,null,0,0,0,0,0,0,0,0,0,0.64,0.64,null,null,null,null,0,null,null,null,null,0,0,0,0,0,0,0,0,0,0,0]
[null,null,"Удалить",{"$f":"Ф.7.1!$D$103","v":"1.2.2.3.5"},{"$f":"Ф.7.1!$E$103","v":"Модернизация оборудования трансформаторной подстанции № 686, находящейся по ул. Глинки, 7г"},null,null,null,null,{"$f":"nerr(SUM(F46:I46))","v":0},null,null,null,null,{"$f":"nerr(SUM(K46:N46))","v":0},0,0,0,0,{"$f":"nerr(SUM(P46:S46))","v":0},0,0,0,0.63,{"$f":"nerr(SUM(U46:X46))","v":0.63},null,null,null,null,{"$f":"nerr(SUM(Z46:AC46))","v":0},null,null,null,null,{"$f":"nerr(SUM(AE46:AH46))","v":0},0,0,0,0,{"$f":"nerr(SUM(AJ46:AM46))","v":0},0,0,0,0,{"$f":"nerr(SUM(AO46:AR46))","v":0},null,null,null,null,{"$f":"nerr(SUM(AT46:AW46))","v":0},null,null,null,null,{"$f":"nerr(SUM(AY46:BB46))","v":0},0,0,0,0,{"$f":"nerr(SUM(BD46:BG46))","v":0},0,0,0,0.4,{"$f":"nerr(SUM(BI46:BL46))","v":0.4},null,null,null,null,{"$f":"nerr(SUM(BN46:BQ46))","v":0},null,null,null,null,{"$f":"nerr(SUM(BS46:BV46))","v":0},0,0,0,0,{"$f":"nerr(SUM(BX46:CA46))","v":0},0,0,0,{"$f":"BL46","v":0.4},{"$f":"nerr(SUM(CC46:CF46))","v":0.4}]
[null,null,"Удалить",{"$f":"Ф.7.1!$D$104","v":"1.2.2.3.6"},{"$f":"Ф.7.1!$E$104","v":"Модернизация оборудования трансформаторной подстанции № 581, находящейся по ул. Малиновского, 4г"},null,null,null,null,0,null,null,null,null,0,0,0,0,0,0,0,0,0,0.63,0.63,null,null,null,null,0,null,null,null,null,0,0,0,0,0,0,0,0,0,0,0,null,null,null,null,0,null,null,null,null,0,0,0,0,0,0,0,0,0,0.4,0.4,null,null,null,null,0,null,null,null,null,0,0,0,0,0,0,0,0,0,{"$f":"BL47","v":0.4},0.4]
["_1.2.2.3"]
["_1.2.3"]
["_1.3"]
["_1.4"]
["_1.5"]
["_1.6.1.1.1"]
["_1.6.1.1.2"]
["_1.6.1.1.3"]
["_1.6.1.1.4"]
["_1.6.1.2.1"]
["_1.6.1.2.2"]
["_1.6.1.2.3"]
["_1.6.1.2.4"]
["_1.6.2.1"]
["_1.6.2.2"]
["_1.6.2.3"]
["_1.6.3"]
["_2.1.1.1.1"]
["_2.1.1.1.2"]
["_2.1.1.1.3"]
["_2.1.1.1.4"]
["_2.1.1.2.1"]
["_2.1.1.2.2"]
["_2.1.1.2.3"]
["_2.1.1.2.4"]
["_2.1.2.1"]
["_2.1.2.2"]
["_2.1.2.3"]
["_2.1.3"]
["_2.2.1.1.1"]
["_2.2.1.1.2"]
["_2.2.1.1.3"]
["_2.2.1.1.4"]
["_2.2.1.2.1"]
["_2.2.1.2.2"]
["_2.2.1.2.3"]
["_2.2.1.2.4"]
["_2.2.2.1"]
["_2.2.2.2"]
["_2.2.2.3"]
["_2.2.3"]
["_2.3"]
["_3"]
[]
[]
[]
[null,null,null,"* План в соответствии с утвержденной инвестиционной программой."]

{"sheet":"Ф.10","index":11,"n_rows":97,"n_cols":6,"rows_kept":97,"cut":false,"hidden":true,"merged":[[12,3,12,4],[11,3,11,4]]}
[4]
[]
[]
[]
[]
[null,null,"Список листов",null,null,"Приложение № 10\nк Приказу Минэнерго России\nот 24.03.2010 № 114"]
[null,null,null,null,null,"Утверждаю\nруководитель организации"]
[]
[null,null,null,null,null,"(подпись)"]
[null,null,null,null,null,"\"___\" _____________ 20__ года"]
[null,null,null,null,null,"М.П."]
[null,null,null,"Отчет о ходе реализации проектов (заполняется для наиболее значимых проектов *) (представляется ежеквартально)"]
[null,null,null,{"$f":"org & \", Факт за \" & otchet_god & \" г. \" & kvartal","v":"ООО \"Красноярский жилищно-коммунальный комплекс\", Факт за 2016 г. IV квартал"}]
[]
[null,null,null,"Наименование объекта",null,"Добавить объект"]
[null,null,null,"Местоположение объекта (субъект Российской Федерации, населенный пункт)"]
[null,null,null,"Тип проекта"]
[null,null,null,"Вводимая мощность (в том числе прирост)"]
[null,null,null,"Срок ввода объекта"]
[null,null,null,"Фактическая стадия реализации проекта на отчетную дату"]
[null,null,null,"Проектная документация"]
[null,null,null,"1. Кем, когда принято решение о строительстве объекта (реквизиты документа)"]
[null,null,null,"2. Кем, когда разработана проектная документация (разработана/не разработана (фактическое состояние), наименование проектной организации, утверждена/не утверждена, год утверждения, реквизиты документа)"]
[null,null,null,"3. Прохождение проектной документацией государственной экспертизы, утверждение документации (утверждена/не утверждена, наименование ведомства, проводящего экспертизу, когда выдано заключение, реквизиты документа **)"]
[null,null,null,"Землеотвод"]
[null,null,null,"- наличие землеотвода (кем, когда утверждено, реквизиты документа)"]
[null,null,null,"Исходно-разрешительная документация"]
[null,null,null,"- наличие разрешения на строительство (кем, когда выдано, реквизиты документа)"]
[null,null,null,"Прогнозное/проектное топливо (основное и резервное)"]
[null,null,null,"Прогнозный объем потребления топлива"]
[null,null,null,"Топливообеспечение"]
[null,null,null,"Технологическое присоединение объекта к электрической сети:"]
[null,null,null,"- заключение договоров на технологическое присоединение (с указанием даты технологического присоединения к электрическим сетям)"]
[null,null,null,"- разработка схемы выдачи мощности"]
[null,null,null,"- получение технических условий на технологическое присоединение"]
[null,null,null,"- договор на реализацию СВМ и график реализации СВМ"]
[null,null,null,{"$f":"\"Сметная стоимость проекта в ценах \"& otchet_god &\" года\"","v":"Сметная стоимость проекта в ценах 2016 года"}]
[null,null,null,"Документ, в соответствии с которым определена стоимость проекта"]
[null,null,null,"Стоимость по результатам проведенных закупок с НДС, млн. руб."]
[null,null,null,"Объем заключенных на отчетную дату договоров по проекту, млн. руб."]
[null,null,null,"в том числе"]
[null,null,null,"- по договорам подряда (в разбивке по каждому подрядчику и по договорам):"]
[null,null,null,{"$f":"\"объем заключенного договора в ценах \"& otchet_god &\" года\"","v":"объем заключенного договора в ценах 2016 года"}]
[null,null,null,"% от сметной стоимости проекта"]
[null,null,null,"оплачено по договору, млн. руб."]
[null,null,null,"освоено по договору, млн. руб."]
[null,null,null,"- по договорам поставки основного оборудования (в разбивке по каждому поставщику и по договорам):"]
[null,null,null,{"$f":"\"объем заключенного договора в ценах \"& otchet_god &\" года\"","v":"объем заключенного договора в ценах 2016 года"}]
[null,null,null,"% от сметной стоимости проекта"]
[null,null,null,"оплачено по договору, млн. руб."]
[null,null,null,"освоено по договору, млн. руб."]
[null,null,null,"- по прочим договорам (в разбивке по каждому контрагенту и по договорам)"]
[null,null,null,{"$f":"\"объем заключенного договора в ценах \"& otchet_god &\" года\"","v":"объем заключенного договора в ценах 2016 года"}]
[null,null,null,"% от сметной стоимости проекта"]
[null,null,null,"оплачено по договору, млн. руб."]
[null,null,null,"освоено по договору, млн. руб."]
[null,null,null,"% законтрактованности объекта непосредственно с изготовителями и поставщиками"]
[null,null,null,"в том числе"]
[null,null,null,"- СМР, %"]
[null,null,null,"- поставка основного оборудования, %"]
[null,null,null,"- разработка проектной документации и рабочей документации, %"]
[null,null,null,"% оплаты по объекту (предоплата)"]
[null,null,null,"всего оплачено по объекту"]
[null,null,null,"% освоения по объекту за отчетный период"]
[null,null,null,"всего оплачено по объекту"]
[null,null,null,"Участники реализации инвестиционного проекта:"]
[null,null,null,"- заказчик-застройщик"]
[null,null,null,"- проектно-изыскательские организации"]
[null,null,null,"- технические агенты"]
[null,null,null,"- подрядчики"]
[null,null,null,"- поставщики основного оборудования"]
[null,null,null,"Перечень субподрядных организаций, участвующих в строительстве объекта"]
[null,null,null,"Количество строительно-монтажного персонала на площадке\nстроительства энергообъекта"]
[null,null,null,"в том числе"]
[null,null,null,"- строительный персонал"]
[null,null,null,"- монтажный персонал"]
[null,null,null,"Основное оборудование"]
[null,null,null,"График поставки основного оборудования"]
[null,null,null,"- дата поставки"]
[null,null,null,"- задержки в поставке"]
[null,null,null,"- причины задержек"]
[null,null,null,"Фактическое состояние реализации инвестиционного проекта в срок"]
[null,null,null,"Факты и события, влияющие на ход реализации проекта, проблемные вопросы:"]
[null,null,null,"- выявленные нарушения договоров подряда,"]
[null,null,null,"- рекламации к заводам - изготовителям и поставщикам,"]
[null,null,null,"- предписания надзорных органов,"]
[null,null,null,"- дефицит источников финансирования и др.,"]
[null,null,null,"- другое (расшифровать)"]
[]
[null,null,"*","Если выполняется любой из нижеперечисленных критериев:"]
[null,null,null,"1. Проекты, финансируемые полностью или частично за счет средств федерального бюджета, и/или включенные в федеральные целевые программы."]
[null,null,null,"2. Объекты выдачи мощности ТЭС, ГЭС, АЭС."]
[null,null,null,"3. Генерирующие объекты мощностью свыше 100 МВт."]
[null,null,null,"4. Проекты, имеющие федеральное значение (объекты энергоснабжения Олимпиады в г. Сочи, саммита АТЭС в г. Владивосток, ВСТО и др.)."]
[null,null,null,"5. Проекты сметной стоимостью свыше 3 млрд. руб. (в текущих ценах с НДС)."]
[null,null,null,"6. Объекты, предусмотренные Генеральной схемой размещения объектов электроэнергетики до 2020 года."]
[null,null,"**","Копии положительного заключения Госэкспертизы по ПСД, сводного сметного расчета необходимо представить в Минэнерго России."]

{"sheet":"Ф.11.1","index":12,"n_rows":175,"n_cols":13,"rows_kept":175,"cut":false,"hidden":false,"merged":[[118,3,118,4],[118,5,118,6],[120,3,122,3],[120,4,122,4],[120,5,120,8],[120,9,122,9],[120,10,122,10],[120,11,122,11],[120,12,122,12],[121,5,121,6],[121,7,121,8],[116,3,116,4],[116,5,116,10],[100,3,100,4],[100,5,100,10],[102,3,102,4],[102,5,102,6],[104,3,106,3],[104,4,106,4],[104,5,104,8],[104,9,106,9],[104,10,106,10],[84,3,84,4],[84,5,84,10],[86,3,86,4],[86,5,86,6],[88,3,90,3],[88,4,90,4],[88,5,88,8],[88,9,90,9],[104,11,106,11],[104,12,106,12],[105,5,105,6],[105,7,105,8],[88,11,90,11],[88,12,90,12],[89,5,89,6],[89,7,89,8],[88,10,90,10],[56,4,58,4],[56,5,56,8],[68,3,68,4],[56,11,58,11],[56,12,58,12],[57,5,57,6],[68,5,68,10],[57,7,57,8],[56,9,58,9],[56,3,58,3],[36,3,36,4],[36,5,36,10],[54,3,54,4],[54,5,54,6],[38,3,38,4],[38,5,38,6],[40,3,42,3],[40,4,42,4],[40,5,40,8],[41,5,41,6],[41,7,41,8],[40,9,42,9],[40,10,42,10],[52,3,52,4],[52,5,52,10],[11,3,11,12],[12,3,12,12],[72,9,74,9],[73,5,73,6],[72,10,74,10],[72,11,74,11],[72,12,74,12],[56,10,58,10],[73,7,73,8],[40,12,42,12],[40,11,42,11],[70,3,70,4],[70,5,70,6],[72,3,74,3],[72,4,74,4],[72,5,72,8]]}
[2]
[]
[]
[]
[]
[null,null,"Список листов",null,null,null,null,null,null,null,null,null,"Приложение № 11.1\nк Приказу Минэнерго России\nот 24.03.2010 № 114"]
[null,null,null,null,null,null,null,null,null,null,null,null,"Утверждаю\nруководитель организации"]
[]
[null,null,null,null,null,null,null,null,null,null,null,null,"(подпись)"]
[null,null,null,null,null,null,null,null,null,null,null,null,"\"___\" _____________ 20__ года"]
[null,null,null,null,null,null,null,null,null,null,null,null,"М.П."]
[null,null,null,"Отчет об исполнении сетевых графиков строительства проектов (представляется ежеквартально)"]
[null,null,null,{"$f":"org & \", Факт за \" & otchet_god & \" г. \" & kvartal","v":"ООО \"Красноярский жилищно-коммунальный комплекс\", Факт за 2016 г. IV квартал"}]
[]
["_1.1.1.1.1"]
["_1.1.1.1.2"]
["_1.1.1.1.3"]
["_1.1.1.1.4"]
["_1.1.1.2.1"]
["_1.1.1.2.2"]
["_1.1.1.2.3"]
["_1.1.1.2.4"]
["_1.1.2.1"]
["_1.1.2.2"]
["_1.1.2.3"]
["_1.1.3"]
["_1.2.1.1.1"]
["_1.2.1.1.2"]
["_1.2.1.1.3"]
["_1.2.1.1.4"]
["_1.2.1.2.1"]
["_1.2.1.2.2"]
["_1.2.1.2.3"]
["_1.2.1.2.4"]
["_1.2.2.1"]
["_1.2.2.2"]
[null,null,null,"Наименование инвестиционного проекта",null,{"$f":"Ф.7.1!$E$99","v":"Модернизация оборудования трансформаторной подстанции № 685, находящейся по ул. Глинки, 13г"}]
[]
[null,null,null,"по состоянию на",null,"24.01.2017"]
[]
[null,null,null,"№ пункта укрупненного сетевого графика","Наименование этапов основных работ\n(с учетом подготовительного периода до начала строительства) по общему сетевому графику*","Сроки выполнения задач по укрупненному",null,null,null,"Процент исполнения работ за весь период (%)","Процент выполнения за отчетный период (%)","Причины невыполнения","Предложения по корректирующим мероприятиям по устранению отставания"]
[null,null,null,null,null,"План",null,"Факт"]
[null,null,null,null,null,"Начало","Окончание","Начало","Окончание"]
[null,null,null,1,2,3,4,5,6,7,8,9,10]
[null,null,"Удалить",2,"Организационный этап"]
[null,null,"Удалить","2.1","Заключение договора подряда (допсоглашения к договору)","2016-10-01","2016-12-31",null,null,0,0]
[null,null,"Удалить",3,"Сетевое строительство (реконструкция) и пусконаладочные работы"]
[null,null,"Удалить","3.2","Поставка основного оборудования","2016-10-01","2016-12-31",null,null,0,0]
[null,null,"Удалить","3.3","Монтаж основного оборудования","2016-10-01","2016-12-31",null,null,0,0]
[null,null,"Удалить","3.4","Пусконаладочные работы","2016-10-01","2016-12-31",null,null,0,0]
[null,null,null,null,"Добавить"]
[]
[null,null,null,"Наименование инвестиционного проекта",null,{"$f":"Ф.7.1!$E$100","v":"Модернизация оборудования трансформаторной подстанции № 783, находящейся по ул. Парковая, 10 а"}]
[]
[null,null,null,"по состоянию на",null,"24.01.2017"]
[]
[null,null,null,"№ пункта укрупненного сетевого графика","Наименование этапов основных работ\n(с учетом подготовительного периода до начала строительства) по общему сетевому графику*","Сроки выполнения задач по укрупненному",null,null,null,"Процент исполнения работ за весь период (%)","Процент выполнения за отчетный период (%)","Причины невыполнения","Предложения по корректирующим мероприятиям по устранению отставания"]
[null,null,null,null,null,"План",null,"Факт"]
[null,null,null,null,null,"Начало","Окончание","Начало","Окончание"]
[null,null,null,1,2,3,4,5,6,7,8,9,10]
[null,null,"Удалить",2,"Организационный этап"]
[null,null,"Удалить","2.1","Заключение договора подряда (допсоглашения к договору)","2016-10-01","2016-12-31",null,null,0,0]
[null,null,"Удалить",3,"Сетевое строительство (реконструкция) и пусконаладочные работы"]
[null,null,"Удалить","3.2","Поставка основного оборудования","2016-10-01","2016-12-31",null,null,0,0]
[null,null,"Удалить","3.3","Монтаж основного оборудования","2016-10-01","2016-12-31",null,null,0,0]
[null,null,"Удалить","3.4","Пусконаладочные работы","2016-10-01","2016-12-31",null,null,0,0]
[null,null,null,null,"Добавить"]
[]
[null,null,null,"Наименование инвестиционного проекта",null,{"$f":"Ф.7.1!$E$101","v":"Модернизация распределительного устройства напряжением 6 кВ в распределительной подстанции № 127, находящейся по ул. Пограничников, 7 д"}]
[]
[null,null,null,"по состоянию на",null,"24.01.2017"]
[]
[null,null,null,"№ пункта укрупненного сетевого графика","Наименование этапов основных работ\n(с учетом подготовительного периода до начала строительства) по общему сетевому графику*","Сроки выполнения задач по укрупненному",null,null,null,"Процент исполнения работ за весь период (%)","Процент выполнения за отчетный период (%)","Причины невыполнения","Предложения по корректирующим мероприятиям по устранению отставания"]
[null,null,null,null,null,"План",null,"Факт"]
[null,null,null,null,null,"Начало","Окончание","Начало","Окончание"]
[null,null,null,1,2,3,4,5,6,7,8,9,10]
[null,null,"Удалить",2,"Организационный этап"]
[null,null,"Удалить","2.1","Заключение договора подряда (допсоглашения к договору)","2016-10-01","2016-12-31",null,null,0,0]
[null,null,"Удалить",3,"Сетевое строительство (реконструкция) и пусконаладочные работы"]
[null,null,"Удалить","3.2","Поставка основного оборудования","2016-10-01","2016-12-31",null,null,0,0]
[null,null,"Удалить","3.3","Монтаж основного оборудования","2016-10-01","2016-12-31",null,null,0,0]
[null,null,"Удалить","3.4","Пусконаладочные работы","2016-10-01","2016-12-31",null,null,0,0]
[null,null,null,null,"Добавить"]
[]
[null,null,null,"Наименование инвестиционного проекта",null,{"$f":"Ф.7.1!$E$102","v":"Модернизация оборудования трансформаторной подстанции № 508, находящейся по ул. Армейская, 21 г"}]
[]
[null,null,null,"по состоянию на",null,"24.01.2017"]
[]
[null,null,null,"№ пункта укрупненного сетевого графика","Наименование этапов основных работ\n(с учетом подготовительного периода до начала строительства) по общему сетевому графику*","Сроки выполнения задач по укрупненному",null,null,null,"Процент исполнения работ за весь период (%)","Процент выполнения за отчетный период (%)","Причины невыполнения","Предложения по корректирующим мероприятиям по устранению отставания"]
[null,null,null,null,null,"План",null,"Факт"]
[null,null,null,null,null,"Начало","Окончание","Начало","Окончание"]
[null,null,null,1,2,3,4,5,6,7,8,9,10]
[null,null,"Удалить",2,"Организационный этап"]
[null,null,"Удалить","2.1","Заключение договора подряда (допсоглашения к договору)","2016-10-01","2016-12-31",null,null,0,0]
[null,null,"Удалить",3,"Сетевое строительство (реконструкция) и пусконаладочные работы"]
[null,null,"Удалить","3.2","Поставка основного оборудования","2016-10-01","2016-12-31",null,null,0,0]
[null,null,"Удалить","3.3","Монтаж основного оборудования","2016-10-01","2016-12-31",null,null,0,0]
[null,null,"Удалить","3.4","Пусконаладочные работы","2016-10-01","2016-12-31",null,null,0,0]
[null,null,null,null,"Добавить"]
[]
[null,null,null,"Наименование инвестиционного проекта",null,{"$f":"Ф.7.1!$E$103","v":"Модернизация оборудования трансформаторной подстанции № 686, находящейся по ул. Глинки, 7г"}]
[]
[null,null,null,"по состоянию на",null,"24.01.2017"]
[]
[null,null,null,"№ пункта укрупненного сетевого графика","Наименование этапов основных работ\n(с учетом подготовительного периода до начала строительства) по общему сетевому графику*","Сроки выполнения задач по укрупненному",null,null,null,"Процент исполнения работ за весь период (%)","Процент выполнения за отчетный период (%)","Причины невыполнения","Предложения по корректирующим мероприятиям по устранению отставания"]
[null,null,null,null,null,"План",null,"Факт"]
[null,null,null,null,null,"Начало","Окончание","Начало","Окончание"]
[null,null,null,1,2,3,4,5,6,7,8,9,10]
[null,null,"Удалить",2,"Организационный этап"]
[null,null,"Удалить","2.1","Заключение договора подряда (допсоглашения к договору)","2016-10-01","2016-12-31",null,null,0,0]
[null,null,"Удалить",3,"Сетевое строительство (реконструкция) и пусконаладочные работы"]
[null,null,"Удалить","3.2","Поставка основного оборудования","2016-10-01","2016-12-31",null,null,0,0]
[null,null,"Удалить","3.3","Монтаж основного оборудования","2016-10-01","2016-12-31",null,null,0,0]
[null,null,"Удалить","3.4","Пусконаладочные работы","2016-10-01","2016-12-31",null,null,0,0]
[null,null,null,null,"Добавить"]
[]
[null,null,null,"Наименование инвестиционного проекта",null,{"$f":"Ф.7.1!$E$104","v":"Модернизация оборудования трансформаторной подстанции № 581, находящейся по ул. Малиновского, 4г"}]
[]
[null,null,null,"по состоянию на",null,"24.01.2017"]
[]
[null,null,null,"№ пункта укрупненного сетевого графика","Наименование этапов основных работ\n(с учетом подготовительного периода до начала строительства) по общему сетевому графику*","Сроки выполнения задач по укрупненному",null,null,null,"Процент исполнения работ за весь период (%)","Процент выполнения за отчетный период (%)","Причины невыполнения","Предложения по корректирующим мероприятиям по устранению отставания"]
[null,null,null,null,null,"План",null,"Факт"]
[null,null,null,null,null,"Начало","Окончание","Начало","Окончание"]
[null,null,null,1,2,3,4,5,6,7,8,9,10]
[null,null,"Удалить",2,"Организационный этап"]
[null,null,"Удалить","2.1","Заключение договора подряда (допсоглашения к договору)","2016-10-01","2016-12-31",null,null,0,0]
[null,null,"Удалить",3,"Сетевое строительство (реконструкция) и пусконаладочные работы"]
[null,null,"Удалить","3.2","Поставка основного оборудования","2016-10-01","2016-12-31",null,null,0,0]
[null,null,"Удалить","3.3","Монтаж основного оборудования","2016-10-01","2016-12-31",null,null,0,0]
[null,null,"Удалить","3.4","Пусконаладочные работы","2016-10-01","2016-12-31",null,null,0,0]
[null,null,null,null,"Добавить"]
[]
["_1.2.2.3"]
["_1.2.3"]
["_1.3"]
["_1.4"]
["_1.5"]
["_1.6.1.1.1"]
["_1.6.1.1.2"]
["_1.6.1.1.3"]
["_1.6.1.1.4"]
["_1.6.1.2.1"]
["_1.6.1.2.2"]
["_1.6.1.2.3"]
["_1.6.1.2.4"]
["_1.6.2.1"]
["_1.6.2.2"]
["_1.6.2.3"]
["_1.6.3"]
["_2.1.1.1.1"]
["_2.1.1.1.2"]
["_2.1.1.1.3"]
["_2.1.1.1.4"]
["_2.1.1.2.1"]
["_2.1.1.2.2"]
["_2.1.1.2.3"]
["_2.1.1.2.4"]
["_2.1.2.1"]
["_2.1.2.2"]
["_2.1.2.3"]
["_2.1.3"]
["_2.2.1.1.1"]
["_2.2.1.1.2"]
["_2.2.1.1.3"]
["_2.2.1.1.4"]
["_2.2.1.2.1"]
["_2.2.1.2.2"]
["_2.2.1.2.3"]
["_2.2.1.2.4"]
["_2.2.2.1"]
["_2.2.2.2"]
["_2.2.2.3"]
["_2.2.3"]
["_2.3"]
["_3"]

{"sheet":"Ф.11.2","index":13,"n_rows":78,"n_cols":7,"rows_kept":78,"cut":false,"hidden":false,"merged":[[11,3,11,5],[19,4,19,5],[12,3,12,5],[16,4,16,5],[52,3,52,5],[26,4,26,5],[31,4,31,5],[38,4,38,5],[45,4,45,5]]}
[2]
[]
[]
[]
[]
[null,null,"Список листов",null,null,null,"Приложение № 11.2\nк Приказу Минэнерго России\nот 24.03.2010 № 114"]
[null,null,null,null,null,null,"Утверждаю\nруководитель организации"]
[]
[null,null,null,null,null,null,"(подпись)"]
[null,null,null,null,null,null,"\"___\" _____________ 20__ года"]
[null,null,null,null,null,null,"М.П."]
[null,null,null,"I. Контрольные этапы реализации инвестиционного проекта для генерирующих компаний (представляется ежеквартально)"]
[null,null,null,{"$f":"org & \", Факт за \" & otchet_god & \" г. \" & kvartal","v":"ООО \"Красноярский жилищно-коммунальный комплекс\", Факт за 2016 г. IV квартал"}]
[]
[null,null,null,"№ п/п","Наименование","Тип"]
[null,null,null,1,2,3]
[null,null,null,1,"Предпроектный этап "]
[null,null,null,"1.1","Выбор площадки строительства ","событие "]
[null,null,null,"1.2","Проведение инженерных изысканий на выбранной площадке строительства","работа"]
[null,null,null,"2","Проектный этап"]
[null,null,null,"2.1","Заключение договора на разработку ТЭО","событие"]
[null,null,null,"2.2","Заключение договора на разработку рабочего проекта","работа"]
[null,null,null,"2.3","Разработка и утверждение ТЭО","событие"]
[null,null,null,"2.4","Разработка рабочего проекта","работа"]
[null,null,null,"2.5","Получение положительного заключения государственной экспертизы на ТЭО","событие"]
[null,null,null,"2.6","Получение разрешения на строительство","событие"]
[null,null,null,3,"Организационный этап"]
[null,null,null,"3.1","Заключение договора с генеральным подрядчиком (EPC, EPCM) или договоров с основными подрядчиками","событие"]
[null,null,null,"3.2","Получение правоустанавливающих документов на земельный участк под строительство","событие"]
[null,null,null,"3.3","Заключение договоров на поставку основного оборудования ","событие"]
[null,null,null,"3.3.1","График поставки основного оборудования на объект","событие"]
[null,null,null,4,"Строительные работы"]
[null,null,null,"4.1","Подготовка площадки строительства","работа"]
[null,null,null,"4.2","Строительство основных сооружений (главного корпуса, гидротехнических сооружений, объектов топливного хозяйства, технического водоснабжения и др.) ","работа"]
[null,null,null,"4.3","Сдача основных сооружений под монтаж оборудования","событие"]
[null,null,null,"4.4","Монтаж и ввод в работу грузоподъёмных механизмов для монтажа основного оборудования","событие"]
[null,null,null,"4.5","Монтаж основного оборудования и трубопроводов","работа"]
[null,null,null,"4.6","Монтаж электротехнического оборудования и КиП","работа"]
[null,null,null,5,"Реализация схемы выдачи мощности (в объеме обязательств ГК)"]
[null,null,null,"5.1","Заявка в сетевую компанию на технологическое присоединение","событие"]
[null,null,null,"5.2","Заключение договора с сетевой компанией на ТП. Получение и согласование ТУ и ТП","событие"]
[null,null,null,"5.3","Разработка и согласование предпроектной внестадийной работы \"Схема выдачи мощности\"","работа"]
[null,null,null,"5.4","Заключение договора на реализацию схемы выдачи мощности с согласованием графика строительства","событие"]
[null,null,null,"5.5","Разработка рабочей документации сетевого строительства ГК (если таковое требуется для реализации СВМ)","работа"]
[null,null,null,"5.6","Реализация сетевого строительства ГК (если таковое требуется для реализации СВМ)","работа"]
[null,null,null,6,"Испытания и ввод в эксплуатацию"]
[null,null,null,"6.1","Индивидуальные испытания оборудования и функциональные испытания отдельных систем ","работа"]
[null,null,null,"6.2","Комплексное опробование оборудования","работа"]
[null,null,null,"6.3","Готовность оборудования (ОРУ, ЗРУ) для технологического присоединения к электрическим сетям","событие"]
[null,null,null,"6.4","Ввод объекта в эксплуатацию (получение разрешения на ввод объекта в эксплуатацию и подписание акта приемочной комиссии о приемке в эксплуатацию законченного строительством объекта).","событие"]
[]
[]
[null,null,null,"II. Контрольные этапы реализации инвестиционного проекта для сетевых компаний"]
[]
[null,null,null,"№ п/п","Наименование","Тип"]
[null,null,null,1,2,3]
[null,null,null,1,"Предпроектный и проектный этап"]
[null,null,null,"1.1","Получение заявки на ТП","событие"]
[null,null,null,"1.2","Разработка и выдача ТУ на ТП","событие"]
[null,null,null,"1.3","Заключение договора на разработку проектной документации","событие"]
[null,null,null,"1.4","Получение положительного заключения государственной экспертизы на проектную документацию","событие"]
[null,null,null,"1.5","Утверждение проектной документации","событие"]
[null,null,null,"1.6","Разработка рабочей документации","работа"]
[null,null,null,2,"Организационный этап"]
[null,null,null,"2.1","Заключение договора подряда (допсоглашения к договору)","событие"]
[null,null,null,"2.2","Получение правоустанавливающих документов для выделения земельного участка под строительство","событие"]
[null,null,null,"2.3","Получение разрешительной документации для реализации СВМ","событие"]
[null,null,null,3,"Сетевое строительство (реконструкция) и пусконаладочные работы"]
[null,null,null,"3.1","Подготовка площадки строительства для подстанций, трассы – для ЛЭП","работа"]
[null,null,null,"3.2","Поставка основного оборудования","событие"]
[null,null,null,"3.3","Монтаж основного оборудования","работа"]
[null,null,null,"3.4","Пусконаладочные работы","работа"]
[null,null,null,"3.5","Завершение строительства","событие"]
[null,null,null,4,"Испытания и ввод в эксплуатацию"]
[null,null,null,"4.1","Комплексное опробование оборудования ","работа"]
[null,null,null,"4.2","Оформление (подписание) актов об осуществлении технологического присоединения к электрическим сетям","событие"]
[null,null,null,"4.3","Получение разрешения на ввод объекта в эксплуатацию ","событие"]
[null,null,null,"4.4"," Ввод в эксплуатацию объекта сетевого строительства","событие"]

{"sheet":"Ф.12","index":14,"n_rows":55,"n_cols":7,"rows_kept":55,"cut":false,"hidden":false,"merged":[[11,3,11,6],[54,2,54,3],[12,3,12,6],[14,4,14,6],[15,3,16,3],[15,5,16,5],[15,6,16,6]]}
[2]
[]
[]
[]
[]
[null,null,"Список листов",null,null,null,"Приложение № 12\nк Приказу Минэнерго России\nот 24.03.2010 № 114"]
[null,null,null,null,null,null,"Утверждаю\nруководитель организации"]
[]
[null,null,null,null,null,null,"(подпись)"]
[null,null,null,null,null,null,"\"___\" _____________ 20__ года"]
[null,null,null,null,null,null,"М.П."]
[null,null,null,"Форма представления показателей финансовой отчетности (представляется ежеквартально)"]
[null,null,null,{"$f":"org & \", Факт за \" & otchet_god & \" г. \" & kvartal","v":"ООО \"Красноярский жилищно-коммунальный комплекс\", Факт за 2016 г. IV квартал"}]
[]
[null,null,null,null,{"$f":"\"Финансовые показатели за отчетный период (\"&kvartal & \" квартал \"& otchet_god & \" года/ \"&otchet_god&\" год)\"","v":"Финансовые показатели за отчетный период (IV квартал квартал 2016 года/ 2016 год)"}]
[null,null,null,"№ п/п","Наименование показателя","на конец отчетного квартала/за отчетный квартал",{"$f":"\"на конец \"& otchet_god-1 &\" года/за \"&otchet_god-1&\" год\"","v":"на конец 2015 года/за 2015 год"}]
[null,null,null,null,"место учета"]
[null,null,null,1,2,3,4]
[null,null,null,1,"Выручка",205.06428,243.37]
[null,null,null,2,"Чистая прибыль",62.317,113.34]
[null,null,null,3,"Направления распределения чистой прибыли:",62.317,113.34]
[null,null,null,"3.1","дивиденды"]
[null,null,null,"3.2","другое (расшифровать)",{"$f":"nerr(SUM(F24:F26)-F24)","v":62.317},{"$f":"nerr(SUM(G24:G26)-G24)","v":113.34}]
[null,null,null,"3.2.0"]
[null,null,"Удалить","3.2.1","капитальные вложения",62.317,113.34]
[null,null,null,null,"Добавить"]
[null,null,null,"4","EBITDA",87.623999999999995,145.96]
[null,null,null,"5","Дебиторская задолженность, в т.ч.:",null,0.04]
[null,null,null,"5.1","покупатели и заказчики",null,0.04]
[null,null,null,"5.2","авансы выданные"]
[null,null,null,"6","Собственный капитал"]
[null,null,null,"7","* Заемный капитал (долгосрочные обязательства), в т.ч.:",{"$f":"nerr(SUM(F33:F36))","v":0},{"$f":"nerr(SUM(G33:G36))","v":0}]
[null,null,null,"7.1","кредиты"]
[null,null,null,"7.2","облигационные займы"]
[null,null,null,"7.3","займы организаций"]
[null,null,null,"7.4","прочее"]
[null,null,null,"8","Краткосрочные обязательства, в т.ч.:",{"$f":"nerr(F38+F39)","v":0},{"$f":"nerr(G38+G39)","v":0}]
[null,null,null,"8.1","кредиты и займы*"]
[null,null,null,"8.2","кредиторская задолженность, в т.ч.:",{"$f":"nerr(SUM(F40:F42))","v":0},{"$f":"nerr(SUM(G40:G42))","v":0}]
[null,null,null,"8.2.1","по строительству"]
[null,null,null,"8.2.2","по ремонтам"]
[null,null,null,"8.2.3","по поставкам топлива"]
[null,null,null,"9","Сумма процентов, выплаченных по кредитам и займам"]
[null,null,null,null,"Оценка обеспеченности инвестиционных программ"]
[null,null,null,"1","Всего потребность в финансировании инвестиционной программы",29.46,18.579999999999998]
[null,null,null,"2","Профинансировано на отчетную дату",0,18.579999999999998]
[null,null,null,"3","Обеспеченность источниками финансирования",62.317,113.34]
[null,null,null,"4","Дефицит финансирования"]
[null,null,null,null,"Оценка кредитного потенциала"]
[null,null,null,"1","Собственная оценка кредитного потенциала:",150,450]
[null,null,null,"1.1",{"$f":"\"на \"& otchet_god&\" г.\"","v":"на 2016 г."},150,450]
[null,null,null,"1.2",{"$f":"\"на период \" &otchet_god&\" - \" &otchet_god+1&\" гг.\"","v":"на период 2016 - 2017 гг."}]
[null,null,null,"2","Пояснения по расчету кредитного потенциала"]
[]
[null,null,"*",null,"По кредитам и займам необходимо указать сумму открытых кредитных линий и сумму реально выбранных средств."]

{"sheet":"Ф.13","index":15,"n_rows":248,"n_cols":16,"rows_kept":248,"cut":false,"hidden":false,"merged":[[10,12,10,13],[11,12,11,13],[6,12,6,13],[7,12,7,13],[8,12,8,13],[9,12,9,13],[12,3,12,13],[245,3,245,4],[13,3,13,13],[15,10,15,13],[15,3,16,3],[15,4,16,4],[15,5,15,7],[15,8,15,9]]}
[2]
[]
[]
[]
[]
[]
[null,null,"Список листов",null,null,null,null,null,null,null,null,null,"Приложение № 13\nк Приказу Минэнерго России\nот 24.03.2010 № 114"]
[null,null,null,null,null,null,null,null,null,null,null,null,"Утверждаю\nруководитель организации"]
[]
[null,null,null,null,null,null,null,null,null,null,null,null,"(подпись)"]
[null,null,null,null,null,null,null,null,null,null,null,null,"\"___\" _____________ 20__ года"]
[null,null,null,null,null,null,null,null,null,null,null,null,"М.П."]
[null,null,null,"Отчет о техническом состоянии объекта (представляется ежеквартально)",null,null,null,null,null,null,null,null,null,null,null,"`"]
[null,null,null,{"$f":"org & \", Факт за \" & otchet_god & \" г. \" & kvartal","v":"ООО \"Красноярский жилищно-коммунальный комплекс\", Факт за 2016 г. IV квартал"}]
[]
[null,null,null,"№\nп/п","Наименование направления/\nпроекта инвестиционной программы","Технические характеристики",null,null,"Сроки реализации проекта",null,"Наличие исходно-разрешительной документации"]
[null,null,null,null,null,"Мощность,\nМВт, МВА","Выработка,\nмлн. кВт/ч","Длина ВЛ,\nкм","Год начала строительства","Год ввода в эксплуатацию","утвержденная проектно-сметная документация\n(+; -)","заключение Главгос-\nэкспертизы России\n(+; -)","оформленный в соответствии с законодательством землеотвод\n(+; -)","разрешение на строительство\n(+; -)"]
[null,null,null,1,2,3,4,5,6,7,8,9,10,11]
[null,null,null,null,"ВСЕГО"]
[null,null,null,"1","Техническое перевооружение и реконструкция"]
[null,null,"+","1.1","Реконструкция"]
[null,null,"+","1.1.1","Электрические линии"]
[null,null,"-","1.1.1.1","Воздушные линии"]
[null,null,"+","1.1.1.1.1","ВЛЭП 110-220 кВ (ВН)"]
[null,null,null,"1.1.1.1.1.0"]
[]
[null,null,"+","1.1.1.1.2","ВЛЭП 35 кВ (СН1)"]
[null,null,null,"1.1.1.1.2.0"]
[]
[null,null,"-","1.1.1.1.3","ВЛЭП 1-20 кВ (СН2)"]
[null,null,null,"1.1.1.1.3.0"]
[]
[null,null,"+","1.1.1.1.4","ВЛЭП 0,4 кВ (НН)"]
[null,null,null,"1.1.1.1.4.0"]
[]
[null,null,"-","1.1.1.2","Кабельные линии"]
[null,null,"+","1.1.1.2.1","КЛЭП 110 кВ (ВН)"]
[null,null,null,"1.1.1.2.1.0"]
[]
[null,null,"+","1.1.1.2.2","КЛЭП 20-35 кВ (СН1)"]
[null,null,null,"1.1.1.2.2.0"]
[]
[null,null,"-","1.1.1.2.3","КЛЭП 3-10 кВ (СН2)"]
[null,null,null,"1.1.1.2.3.0"]
[]
[null,null,"+","1.1.1.2.4","КЛЭП до 1 кВ (НН)"]
[null,null,null,"1.1.1.2.4.0"]
[]
[null,null,"-","1.1.2","Подстанции"]
[null,null,"-","1.1.2.1","Уровень входящего напряжения ВН"]
[null,null,null,"1.1.2.1.0"]
[]
[null,null,"+","1.1.2.2","Уровень входящего напряжения СН1"]
[null,null,null,"1.1.2.2.0"]
[]
[null,null,"+","1.1.2.3","Уровень входящего напряжения СН2"]
[null,null,null,"1.1.2.3.0"]
[]
[null,null,"+","1.1.3","Прочие электросетевые объекты"]
[null,null,null,"1.1.3.0"]
[]
[null,null,"-","1.2","Энергосбережение и повышение энергетической эффективности"]
[null,null,"+","1.2.1","Электрические линии"]
[null,null,"-","1.2.1.1","Воздушные линии"]
[null,null,"+","1.2.1.1.1","ВЛЭП 110-220 кВ (ВН)"]
[null,null,null,"1.2.1.1.1.0"]
[]
[null,null,"+","1.2.1.1.2","ВЛЭП 35 кВ (СН1)"]
[null,null,null,"1.2.1.1.2.0"]
[]
[null,null,"-","1.2.1.1.3","ВЛЭП 1-20 кВ (СН2)"]
[null,null,null,"1.2.1.1.3.0"]
[]
[null,null,"+","1.2.1.1.4","ВЛЭП 0,4 кВ (НН)"]
[null,null,null,"1.2.1.1.4.0"]
[]
[null,null,"-","1.2.1.2","Кабельные линии"]
[null,null,"+","1.2.1.2.1","КЛЭП 110 кВ (ВН)"]
[null,null,null,"1.2.1.2.1.0"]
[]
[null,null,"+","1.2.1.2.2","КЛЭП 20-35 кВ (СН1)"]
[null,null,null,"1.2.1.2.2.0"]
[]
[null,null,"-","1.2.1.2.3","КЛЭП 3-10 кВ (СН2)"]
[null,null,null,"1.2.1.2.3.0"]
[]
[null,null,"+","1.2.1.2.4","КЛЭП до 1 кВ (НН)"]
[null,null,null,"1.2.1.2.4.0"]
[]
[null,null,"-","1.2.2","Подстанции"]
[null,null,"-","1.2.2.1","Уровень входящего напряжения ВН"]
[null,null,null,"1.2.2.1.0"]
[]
[null,null,"+","1.2.2.2","Уровень входящего напряжения СН1"]
[null,null,null,"1.2.2.2.0"]
[]
[null,null,"-","1.2.2.3","Уровень входящего напряжения СН2"]
[null,null,null,"1.2.2.3.0"]
[null,null,null,"1.2.2.3.1",{"$f":"Ф.7.1!$E$99","v":"Модернизация оборудования трансформаторной подстанции № 685, находящейся по ул. Глинки, 13г"},0,null,null,null,null,"-","","",""]
[null,null,null,"1.2.2.3.2",{"$f":"Ф.7.1!$E$100","v":"Модернизация оборудования трансформаторной подстанции № 783, находящейся по ул. Парковая, 10 а"},0,null,null,null,null,"-","","",""]
[null,null,null,"1.2.2.3.3",{"$f":"Ф.7.1!$E$101","v":"Модернизация распределительного устройства напряжением 6 кВ в распределительной подстанции № 127, находящейся по ул. Пограничников, 7 д"},0,null,null,null,null,"-","","",""]
[null,null,null,"1.2.2.3.4",{"$f":"Ф.7.1!$E$102","v":"Модернизация оборудования трансформаторной подстанции № 508, находящейся по ул. Армейская, 21 г"},0,null,null,null,null,"-","","",""]
[null,null,null,"1.2.2.3.5",{"$f":"Ф.7.1!$E$103","v":"Модернизация оборудования трансформаторной подстанции № 686, находящейся по ул. Глинки, 7г"},{"$f":"Ф.9!AR46*0.89","v":0},null,null,null,null,"-","","",""]
[null,null,null,"1.2.2.3.6",{"$f":"Ф.7.1!$E$104","v":"Модернизация оборудования трансформаторной подстанции № 581, находящейся по ул. Малиновского, 4г"},{"$f":"Ф.9!AR47*0.89","v":0},null,null,null,null,"-","","",""]
[]
[null,null,"-","1.2.3","Прочие электросетевые объекты"]
[null,null,null,"1.2.3.0"]
[]
[null,null,"+","1.3","Создание систем противоаварийной и режимной автоматики"]
[null,null,null,"1.3.0"]
[]
[null,null,"+","1.4","Создание систем телемеханики и связи"]
[null,null,null,"1.4.0"]
[]
[null,null,"+","1.5","Установка устройств регулирования напряжения и компенсации реактивной мощности"]
[null,null,null,"1.5.0"]
[]
[null,null,"+","1.6","Исполнение договоров технологического присоединения"]
[null,null,"+","1.6.1","Электрические линии"]
[null,null,"+","1.6.1.1","Воздушные линии"]
[null,null,"+","1.6.1.1.1","ВЛЭП 110-220 кВ (ВН)"]
[null,null,null,"1.6.1.1.1.0"]
[]
[null,null,"+","1.6.1.1.2","ВЛЭП 35 кВ (СН1)"]
[null,null,null,"1.6.1.1.2.0"]
[]
[null,null,"+","1.6.1.1.3","ВЛЭП 1-20 кВ (СН2)"]
[null,null,null,"1.6.1.1.3.0"]
[]
[null,null,"+","1.6.1.1.4","ВЛЭП 0,4 кВ (НН)"]
[null,null,null,"1.6.1.1.4.0"]
[]
[null,null,"+","1.6.1.2","Кабельные линии"]
[null,null,"+","1.6.1.2.1","КЛЭП 110 кВ (ВН)"]
[null,null,null,"1.6.1.2.1.0"]
[]
[null,null,"+","1.6.1.2.2","КЛЭП 20-35 кВ (СН1)"]
[null,null,null,"1.6.1.2.2.0"]
[]
[null,null,"+","1.6.1.2.3","КЛЭП 3-10 кВ (СН2)"]
[null,null,null,"1.6.1.2.3.0"]
[]
[null,null,"+","1.6.1.2.4","КЛЭП до 1 кВ (НН)"]
[null,null,null,"1.6.1.2.4.0"]
[]
[null,null,"+","1.6.2","Подстанции"]
[null,null,"+","1.6.2.1","Уровень входящего напряжения ВН"]
[null,null,null,"1.6.2.1.0"]
[]
[null,null,"+","1.6.2.2","Уровень входящего напряжения СН1"]
[null,null,null,"1.6.2.2.0"]
[]
[null,null,"+","1.6.2.3","Уровень входящего напряжения СН2"]
[null,null,null,"1.6.2.3.0"]
[]
[null,null,"+","1.6.3","Прочие электросетевые объекты"]
[null,null,null,"1.6.3.0"]
[]
[null,null,null,"2","Новое строительство"]
[null,null,"+","2.1","Энергосбережение и повышение энергетической эффективности"]
[null,null,"+","2.1.1","Электрические линии"]
[null,null,"+","2.1.1.1","Воздушные линии"]
[null,null,"+","2.1.1.1.1","ВЛЭП 110-220 кВ (ВН)"]
[null,null,null,"2.1.1.1.1.0"]
[]
[null,null,"+","2.1.1.1.2","ВЛЭП 35 кВ (СН1)"]
[null,null,null,"2.1.1.1.2.0"]
[]
[null,null,"+","2.1.1.1.3","ВЛЭП 1-20 кВ (СН2)"]
[null,null,null,"2.1.1.1.3.0"]
[]
[null,null,"+","2.1.1.1.4","ВЛЭП 0,4 кВ (НН)"]
[null,null,null,"2.1.1.1.4.0"]
[]
[null,null,"+","2.1.1.2","Кабельные линии"]
[null,null,"+","2.1.1.2.1","КЛЭП 110 кВ (ВН)"]
[null,null,null,"2.1.1.2.1.0"]
[]
[null,null,"+","2.1.1.2.2","КЛЭП 20-35 кВ (СН1)"]
[null,null,null,"2.1.1.2.2.0"]
[]
[null,null,"+","2.1.1.2.3","КЛЭП 3-10 кВ (СН2)"]
[null,null,null,"2.1.1.2.3.0"]
[]
[null,null,"+","2.1.1.2.4","КЛЭП до 1 кВ (НН)"]
[null,null,null,"2.1.1.2.4.0"]
[]
[null,null,"+","2.1.2","Подстанции"]
[null,null,"+","2.1.2.1","Уровень входящего напряжения ВН"]
[null,null,null,"2.1.2.1.0"]
[]
[null,null,"+","2.1.2.2","Уровень входящего напряжения СН1"]
[null,null,null,"2.1.2.2.0"]
[]
[null,null,"+","2.1.2.3","Уровень входящего напряжения СН2"]
[null,null,null,"2.1.2.3.0"]
[]
[null,null,"+","2.1.3","Прочие электросетевые объекты"]
[null,null,null,"2.1.3.0"]
[]
[null,null,"+","2.2","Исполнение договоров технологического присоединения"]
[null,null,"+","2.2.1","Электрические линии"]
[null,null,"+","2.2.1.1","Воздушные линии"]
[null,null,"+","2.2.1.1.1","ВЛЭП 110-220 кВ (ВН)"]
[null,null,null,"2.2.1.1.1.0"]
[]
[null,null,"+","2.2.1.1.2","ВЛЭП 35 кВ (СН1)"]
[null,null,null,"2.2.1.1.2.0"]
[]
[null,null,"+","2.2.1.1.3","ВЛЭП 1-20 кВ (СН2)"]
[null,null,null,"2.2.1.1.3.0"]
[]
[null,null,"+","2.2.1.1.4","ВЛЭП 0,4 кВ (НН)"]
[null,null,null,"2.2.1.1.4.0"]
[]
[null,null,"+","2.2.1.2","Кабельные линии"]
[null,null,"+","2.2.1.2.1","КЛЭП 110 кВ (ВН)"]
[null,null,null,"2.2.1.2.1.0"]
[]
[null,null,"+","2.2.1.2.2","КЛЭП 20-35 кВ (СН1)"]
[null,null,null,"2.2.1.2.2.0"]
[]
[null,null,"+","2.2.1.2.3","КЛЭП 3-10 кВ (СН2)"]
[null,null,null,"2.2.1.2.3.0"]
[]
[null,null,"+","2.2.1.2.4","КЛЭП до 1 кВ (НН)"]
[null,null,null,"2.2.1.2.4.0"]
[]
[null,null,"+","2.2.2","Подстанции"]
[null,null,"+","2.2.2.1","Уровень входящего напряжения ВН"]
[null,null,null,"2.2.2.1.0"]
[]
[null,null,"+","2.2.2.2","Уровень входящего напряжения СН1"]
[null,null,null,"2.2.2.2.0"]
[]
[null,null,"+","2.2.2.3","Уровень входящего напряжения СН2"]
[null,null,null,"2.2.2.3.0"]
[]
[null,null,"+","2.2.3","Прочие электросетевые объекты"]
[null,null,null,"2.2.3.0"]
[]
[null,null,"+","2.3","Прочее новое строительство"]
[null,null,null,"2.3.0"]
[null,null,null,{"$f":"D243&\".1\"","v":"2.3.0.1"},"в том числе ПТП"]
[]
[null,null,null,"Справочно:"]
[null,null,"+",3,"Оплата процентов за привлеченные кредитные ресурсы"]
[null,null,null,"3.0"]

{"sheet":"Комментарий","index":16,"n_rows":19,"n_cols":5,"rows_kept":19,"cut":false,"hidden":false,"merged":[]}
[]
[]
[]
[]
[]
[]
[]
[null,null,null,null,"Комментарии"]
[null,null,null,null,"Ниже вы можете оставить свои комментарии"]
[]
[null,null,null,null,"В пп.1,2,3 формы 12 \"выручка\" и \"чистая прибыль\" указаны без учета оплаты услуг за 2015 год сетевой организации ОАО \"МРСК-Сибири-\"Красноярскэнерго\" в части суммы, подлежащей взысканию в судебном порядке.  Сумма разногласий по выставленным счетам-фактурам ориентировочно составляет  145,36 млн.руб. без учета НДС."]
[null,null,null,null,"Форма 12 заполняется без учета НДС"]
[null,null,null,null,"Данные предоставлены  по состоянию на 24.01.2017 г."]
[null,null,null,null,"В пп.1,2,3 формы 12 \"выручка\" и \"чистая прибыль\" указаны без учета оплаты услуг за 1 квартал 2015 года  сетевой организации ОАО \"МРСК-Сибири-\"Красноярскэнерго\" в части суммы, подлежащей взысканию в судебном порядке.  Сумма разногласий ориентировочно составляет 33,326 млн.руб. без учета НДС."]
[null,null,null,null,"Стоимость мероприятий приведена с учетом НДС"]
[null,null,null,null,"Проект корректировки инвестиционной программы на  2016 г  принят к рассмотрению Министерством промышленности, энергетики и торговли Красноярского края 29.04.2016 г."]
[null,null,null,null,"Проект корректировки инвестиционной программы на  2016 г  повторно принят к рассмотрению Министерством промышленности, энергетики и торговли Красноярского края в октябре 2016 г."]
[null,null,null,null,"Министерство промышленности, энергетики и торговли Красноярского края 11.11.2016г. (письмо исх.№ 08-3394) отказало в утверждении корректировки мероприятий 2016 г инвестиционной программы ООО \"КрасКом\"по развитию объектов электроснабжения г. Красноярска. Примечание: мероприятия были откорректированы в соответствии с размером средств 17,184 млн. руб. (с НДС), утвержденным в тарифе на услуги по передаче электрической энергии."]
[null,null,null,null,"Мероприятия 2016г приведены в соответствии с  «Инвестиционной программой по развитию объектов, используемых в сфере электроснабжения г.Красноярска на 2012-2016годы», утвержденной Министерством промышленности и энергетики Красноярского края письмом от 21.09.2012г исх.№05-02182."]

{"sheet":"Проверка","index":17,"n_rows":13,"n_cols":7,"rows_kept":13,"cut":false,"hidden":false,"merged":[[9,4,9,6]]}
[]
[]
[]
[]
[]
[]
[]
[]
[]
[null,null,null,null,"Результат проверки"]
[]
[null,null,null,null,"Ссылка","Причина","Статус ошибки"]
[null,null,null,null,"1","2","3"]

{"sheet":"modHyp","index":18,"n_rows":31,"n_cols":85,"rows_kept":31,"cut":false,"hidden":true,"merged":[[9,5,9,10],[13,12,15,12],[14,7,14,8],[9,3,9,4],[11,3,11,4],[13,10,15,10],[13,11,15,11],[14,5,14,6],[13,9,15,9],[13,3,15,3],[11,5,11,6],[13,5,13,8],[13,4,15,4]]}
["et_9"]
[]
[null,null,"Удалить",null,null,null,null,null,null,{"$f":"nerr(SUM(F3:I3))","v":0},null,null,null,null,{"$f":"nerr(SUM(K3:N3))","v":0},null,null,null,null,{"$f":"nerr(SUM(P3:S3))","v":0},null,null,null,null,{"$f":"nerr(SUM(U3:X3))","v":0},null,null,null,null,{"$f":"nerr(SUM(Z3:AC3))","v":0},null,null,null,null,{"$f":"nerr(SUM(AE3:AH3))","v":0},null,null,null,null,{"$f":"nerr(SUM(AJ3:AM3))","v":0},null,null,null,null,{"$f":"nerr(SUM(AO3:AR3))","v":0},null,null,null,null,{"$f":"nerr(SUM(AT3:AW3))","v":0},null,null,null,null,{"$f":"nerr(SUM(AY3:BB3))","v":0},null,null,null,null,{"$f":"nerr(SUM(BD3:BG3))","v":0},null,null,null,null,{"$f":"nerr(SUM(BI3:BL3))","v":0},null,null,null,null,{"$f":"nerr(SUM(BN3:BQ3))","v":0},null,null,null,null,{"$f":"nerr(SUM(BS3:BV3))","v":0},null,null,null,null,{"$f":"nerr(SUM(BX3:CA3))","v":0},null,null,null,null,{"$f":"nerr(SUM(CC3:CF3))","v":0}]
[]
["et_11_1"]
[]
[]
[]
["big_et_11_1"]
[null,null,null,"Наименование инвестиционного проекта"]
[]
[null,null,null,"по состоянию на"]
[]
[null,null,null,"№ пункта укрупненного сетевого графика","Наименование этапов основных работ\n(с учетом подготовительного периода до начала строительства) по общему сетевому графику*","Сроки выполнения задач по укрупненному",null,null,null,"Процент исполнения работ за весь период (%)","Процент выполнения за отчетный период (%)","Причины невыполнения","Предложения по корректирующим мероприятиям по устранению отставания"]
[null,null,null,null,null,"План",null,"Факт"]
[null,null,null,null,null,"Начало","Окончание","Начало","Окончание"]
[null,null,null,1,2,3,4,5,6,7,8,9,10]
[null,null,null,null,"Добавить"]
[]
[]
[]
["et_10"]
[]
[]
[]
[]
[]
[]
[]
[]
[null,null,"Удалить объект"]

{"sheet":"modUpdTemplMain","index":19,"n_rows":0,"n_cols":0,"rows_kept":0,"cut":false,"hidden":true,"merged":[]}

{"sheet":"modHypShowHide","index":20,"n_rows":0,"n_cols":0,"rows_kept":0,"cut":false,"hidden":true,"merged":[]}

{"sheet":"modChange","index":21,"n_rows":0,"n_cols":0,"rows_kept":0,"cut":false,"hidden":true,"merged":[]}

{"sheet":"TEHSHEET","index":22,"n_rows":84,"n_cols":12,"rows_kept":84,"cut":false,"hidden":true,"merged":[]}
["Алтайский край",null,null,null,null,null,null,null,null,null,"Vdet_list","period_list"]
["Амурская область","logical",null,"year_list",null,"month_range",null,"curr_period","obj_num",null,"Региональная генерация","1 год"]
["Архангельская область","+",null,"2007",null,"январь",null,1,63,null,"Сбытовая компания","2 года"]
["Астраханская область","-",null,"2008",null,"февраль",null,null,null,null,"ЭСО","3 года"]
["Белгородская область",null,null,"2009",null,"март",null,null,null,null,"Станция - поставщик ЭЭ","4 года"]
["Брянская область",null,null,"2010",null,"апрель",null,null,null,null,"Сетевая компания","5 лет"]
["Владимирская область",null,null,"2011",null,"май"]
["Волгоградская область",null,null,"2012",null,"июнь"]
["Вологодская область",null,null,"2013",null,"июль"]
["Воронежская область",null,null,"2014",null,"август"]
["г.Байконур",null,null,"2015",null,"сентябрь"]
["г. Москва",null,null,"2016",null,"октябрь"]
["г.Санкт-Петербург",null,null,"2017",null,"ноябрь"]
["Еврейская автономная область",null,null,"2018",null,"декабрь"]
["Забайкальский край",null,null,"2019"]
["Ивановская область",null,null,"2020"]
["Иркутская область"]
["Кабардино-Балкарская республика","Стадии реализации",null,"kvartal_list",null,"SphereActivity"]
["Калининградская область","С",null,"I квартал",null,"Теплоснабжение"]
["Калужская область","П",null,"II квартал",null,"Электроэнергетика"]
["Камчатский край",null,null,"III квартал"]
["Карачаево-Черкесская республика",null,null,"IV квартал"]
["Кемеровская область","TYPE_PROJECT"]
["Кировская область","модернизация"]
["Костромская область","реконструкция"]
["Краснодарский край","новое строительство"]
["Красноярский край","расширение"]
["Курганская область"]
["Курская область","STAGE_REALIZ"]
["Ленинградская область","проектирование"]
["Липецкая область","строительство"]
["Магаданская область","незавершенное строительство - приостановлено"]
["Московская область","законсервировано"]
["Мурманская область"]
["Ненецкий автономный округ"]
["Нижегородская область"]
["Новгородская область","XML_ORG_LIST_TAG_NAMES"]
["Новосибирская область","NSRF"]
["Омская область","MR_NAME"]
["Оренбургская область","OKTMO_MR_NAME"]
["Орловская область","MO_NAME"]
["Пензенская область","OKTMO_NAME"]
["Пермский край","ORG_NAME"]
["Приморский край","INN_NAME"]
["Псковская область","KPP_NAME"]
["Республика Адыгея","VDET_NAME"]
["Республика Алтай"]
["Республика Башкортостан"]
["Республика Бурятия"]
["Республика Дагестан"]
["Республика Ингушетия"]
["Республика Калмыкия"]
["Республика Карелия"]
["Республика Коми"]
["Республика Марий Эл"]
["Республика Мордовия"]
["Республика Саха (Якутия)"]
["Республика Северная Осетия-Алания"]
["Республика Татарстан"]
["Республика Тыва"]
["Республика Хакасия"]
["Ростовская область"]
["Рязанская область"]
["Самарская область"]
["Саратовская область"]
["Сахалинская область"]
["Свердловская область"]
["Смоленская область"]
["Ставропольский край"]
["Тамбовская область"]
["Тверская область"]
["Томская область"]
["Тульская область"]
["Тюменская область"]
["Удмуртская республика"]
["Ульяновская область"]
["Хабаровский край"]
["Ханты-Мансийский автономный округ"]
["Челябинская область"]
["Чеченская республика"]
["Чувашская республика"]
["Чукотский автономный округ"]
["Ямало-Ненецкий автономный округ"]
["Ярославская область"]

{"sheet":"REESTR_ORG","index":23,"n_rows":1181,"n_cols":5,"rows_kept":1181,"cut":false,"hidden":true,"merged":[]}
["№","ОРГАНИЗАЦИЯ","ИНН","КПП","ВИД ДЕЯТЕЛЬНОСТИ"]
[1,"ООО \"Промбытжилсервис\"","2401002496","240101001","Региональная генерация"]
[2,"ООО \"Промбытжилсервис\"","2401002496","240101001","ЭСО"]
[3,"АО «Транснефть - Западная Сибирь»","5502020634","246603001","Сетевая компания"]
[4,"ООО ЖКХ \"Приморье\"","2403007059","240301001","Региональная генерация"]
[5,"ООО ЖКХ \"Приморье\"","2403007059","240301001","Сбытовая компания"]
[6,"ДЭС Изолированных территорий","2466070303","246501001","Региональная генерация"]
[7,"ООО ЖКХ \"Приморье\"","2403007059","240301001","Региональная генерация"]
[8,"ООО ЖКХ \"Приморье\"","2403007059","240301001","Сбытовая компания"]
[9,"АО  \"Красноярская региональная энергетическая компания\"","2460087269","246001001","Региональная генерация"]
[10,"АО  \"Красноярская региональная энергетическая компания\"","2460087269","246001001","Сетевая компания"]
[11,"АО  \"Красноярская региональная энергетическая компания\"","2460087269","246001001","ЭСО"]
[12,"МУП \"Жилкомсервис\" г. Сосновоборск","2458008862","245801001","Сетевая компания"]
[13,"ООО \"Зыковская сетевая компания\"","2404013827","240401001","Сетевая компания"]
[14,"ООО \"Зыковская сетевая компания\"","2404013827","240401001","Сетевая компания"]
[15,"АО \"Енисейская ТГК (ТГК-13)\"","1901067718","246750001","Станция - поставщик ЭЭ"]
[16,"АО \"Енисейская ТГК (ТГК-13)\"","1901067718","246750001","Региональная генерация"]
[17,"АО \"Енисейская ТГК (ТГК-13)\"","1901067718","246750001","Сбытовая компания"]
[18,"АО \"Красноярская ТЭЦ-1\"","2460237926","246750001","Региональная генерация"]
[19,"АО \"Красноярская ТЭЦ-1\"","2460237926","246750001","Станция - поставщик ЭЭ"]
[20,"ООО \"Торговый дом\" п. Березовка","2404011185","240401001","Сетевая компания"]
[21,"ОАО \"Транссибнефть\" Новосибирское РНУ","5502020634","240201001","Сетевая компания"]
[22,"ДЭС Изолированных территорий","2466070303","246501001","Региональная генерация"]
[23,"ЗАО \"БоАЗ\"","2465102746","240701001","Сбытовая компания"]
[24,"ООО \"Богучанские ЭС\"","2407061515","240701001","ЭСО"]
[25,"ООО \"Богучанские ЭС\"","2407061515","240701001","Региональная генерация"]
[26,"ООО \"Богучанские ЭС\"","2407061515","240701001","Сетевая компания"]
[27,"ПАО \"РусГидро\"","2460066195","997450001","Станция - поставщик ЭЭ"]
[28,"ЗАО \"БоАЗ\"","2465102746","246501001","Сбытовая компания"]
[29,"АО  \"Красноярская региональная энергетическая компания\"","2460087269","246001001","Региональная генерация"]
[30,"АО  \"Красноярская региональная энергетическая компания\"","2460087269","246001001","ЭСО"]
[31,"АО  \"Красноярская региональная энергетическая компания\"","2460087269","246001001","Сетевая компания"]
[32,"АО  \"Красноярская региональная энергетическая компания\"","2460087269","246001001","ЭСО"]
[33,"АО  \"Красноярская региональная энергетическая компания\"","2460087269","246001001","Региональная генерация"]
[34,"АО  \"Красноярская региональная энергетическая компания\"","2460087269","246001001","Сетевая компания"]
[35,"АО  \"Красноярская региональная энергетическая компания\"","2460087269","246001001","Региональная генерация"]
[36,"АО  \"Красноярская региональная энергетическая компания\"","2460087269","246001001","ЭСО"]
[37,"АО  \"Красноярская региональная энергетическая компания\"","2460087269","246001001","Сетевая компания"]
[38,"АО  \"Красноярская региональная энергетическая компания\"","2460087269","246001001","Региональная генерация"]
[39,"АО  \"Красноярская региональная энергетическая компания\"","2460087269","246001001","Сетевая компания"]
[40,"АО  \"Красноярская региональная энергетическая компания\"","2460087269","246001001","ЭСО"]
[41,"АО  \"Красноярская региональная энергетическая компания\"","2460087269","246001001","Сетевая компания"]
[42,"АО  \"Красноярская региональная энергетическая компания\"","2460087269","246001001","Региональная генерация"]
[43,"АО  \"Красноярская региональная энергетическая компания\"","2460087269","246001001","ЭСО"]
[44,"АО  \"Красноярская региональная энергетическая компания\"","2460087269","246001001","Региональная генерация"]
[45,"АО  \"Красноярская региональная энергетическая компания\"","2460087269","246001001","Сетевая компания"]
[46,"АО  \"Красноярская региональная энергетическая компания\"","2460087269","246001001","ЭСО"]
[47,"АО  \"Красноярская региональная энергетическая компания\"","2460087269","246001001","Региональная генерация"]
[48,"АО  \"Красноярская региональная энергетическая компания\"","2460087269","246001001","Сетевая компания"]
[49,"АО  \"Красноярская региональная энергетическая компания\"","2460087269","246001001","ЭСО"]
[50,"АО  \"Красноярская региональная энергетическая компания\"","2460087269","246001001","Сетевая компания"]
[51,"АО  \"Красноярская региональная энергетическая компания\"","2460087269","246001001","Региональная генерация"]
[52,"АО  \"Красноярская региональная энергетическая компания\"","2460087269","246001001","ЭСО"]
[53,"АО  \"Красноярская региональная энергетическая компания\"","2460087269","246001001","Региональная генерация"]
[54,"АО  \"Красноярская региональная энергетическая компания\"","2460087269","246001001","Сетевая компания"]
[55,"АО  \"Красноярская региональная энергетическая компания\"","2460087269","246001001","ЭСО"]
[56,"АО  \"Красноярская региональная энергетическая компания\"","2460087269","246001001","Региональная генерация"]
[57,"АО  \"Красноярская региональная энергетическая компания\"","2460087269","246001001","Сетевая компания"]
[58,"АО  \"Красноярская региональная энергетическая компания\"","2460087269","246001001","ЭСО"]
[59,"АО  \"Красноярская региональная энергетическая компания\"","2460087269","246001001","Региональная генерация"]
[60,"АО  \"Красноярская региональная энергетическая компания\"","2460087269","246001001","Сетевая компания"]
[61,"АО  \"Красноярская региональная энергетическая компания\"","2460087269","246001001","ЭСО"]
[62,"АО  \"Красноярская региональная энергетическая компания\"","2460087269","246001001","Региональная генерация"]
[63,"АО  \"Красноярская региональная энергетическая компания\"","2460087269","246001001","Сетевая компания"]
[64,"АО  \"Красноярская региональная энергетическая компания\"","2460087269","246001001","ЭСО"]
[65,"АО \"Ачинский НПЗ ВНК\"","2443000518","244301001","Сетевая компания"]
[66,"АО \"Ачинский НПЗ ВНК\"","2443000518","244301001","Региональная генерация"]
[67,"АО \"Ачинский НПЗ ВНК\"","2443000518","244301001","ЭСО"]
[68,"АО \"Русал Ачинск\"","2443005570","997550001","Региональная генерация"]
[69,"АО \"Русал Ачинск\"","2443005570","997550001","Сетевая компания"]
[70,"АО \"Русал Ачинск\"","2443005570","997550001","Станция - поставщик ЭЭ"]
[71,"ООО \"Красноярский Завод Проппантов\"","2443026756","244301001","Сетевая компания"]
[72,"АО  \"Красноярская региональная энергетическая компания\"","2460087269","246001001","Региональная генерация"]
[73,"АО  \"Красноярская региональная энергетическая компания\"","2460087269","246001001","Сетевая компания"]
[74,"АО  \"Красноярская региональная энергетическая компания\"","2460087269","246001001","ЭСО"]
[75,"ООО \"Энергия\"","2411019080","241101001","Сетевая компания"]
[76,"АО \"ЕвроСибЭнерго\"","7706697347","244601001","Региональная генерация"]
[77,"АО \"ЕвроСибЭнерго\"","7706697347","244601001","Станция - поставщик ЭЭ"]
[78,"АО \"Енисейская ТГК (ТГК-13)\"","1901067718","246750001","Сбытовая компания"]
[79,"АО \"Енисейская ТГК (ТГК-13)\"","1901067718","246750001","Станция - поставщик ЭЭ"]
[80,"АО \"Енисейская ТГК (ТГК-13)\"","1901067718","246750001","Региональная генерация"]
[81,"АО \"Красноярская ГЭС\"","2446000322","244601001","Региональная генерация"]
[82,"АО \"Красноярская ГЭС\"","2446000322","244601001","Станция - поставщик ЭЭ"]
[83,"МУП \"ЭС\" г.Дивногорск","2446001206","244601001","Сетевая компания"]
[84,"ОАО \"Дивногорские тепловые сети\"","2460237884","246001001","Сбытовая компания"]
[85,"АО  \"Красноярская региональная энергетическая компания\"","2460087269","246001001","Региональная генерация"]
[86,"АО  \"Красноярская региональная энергетическая компания\"","2460087269","246001001","Сетевая компания"]
[87,"АО  \"Красноярская региональная энергетическая компания\"","2460087269","246001001","ЭСО"]
[88,"ЗАО \"Енисейэнергоком\"","2447012176","244701001","ЭСО"]
[89,"ЗАО \"Енисейэнергоком\"","2447012176","244701001","Региональная генерация"]
[90,"ООО \"Енисейэнергоком\"","2447012666","244701001","ЭСО"]
[91,"ООО \"Енисейэнергоком\"","2447012666","244701001","Региональная генерация"]
[92,"ООО \"Енисейэнергоком\"","2447012666","244701001","Сбытовая компания"]
[93,"ООО \"Енисейэнергоком\"","2447012666","244701001","Сетевая компания"]
[94,"ООО \"Енисейэнергоком\"","2447012666","244701001","Станция - поставщик ЭЭ"]
[95,"ФБУ ОИУ-2 ОУХД ГУФСИН России по Красноярскому краю","2447004802","244701001","Региональная генерация"]
[96,"АО \"Енисейская ТГК (ТГК-13)\"","1901067718","246750001","Региональная генерация"]
[97,"АО \"Енисейская ТГК (ТГК-13)\"","1901067718","246750001","Сбытовая компания"]
[98,"АО \"Енисейская ТГК (ТГК-13)\"","1901067718","246750001","Станция - поставщик ЭЭ"]
[99,"АО \"Канская ТЭЦ\"","2460237891","246050001","Региональная генерация"]
[100,"АО \"Канская ТЭЦ\"","2460237891","246050001","Станция - поставщик ЭЭ"]
[101,"ООО \"Генерация Т\"","2464262923","246401001","Станция - поставщик ЭЭ"]
[102,"ООО \"Генерация Т\"","2464262923","246401001","Региональная генерация"]
[103,"ООО Тепло-Сбыт-Сервис","2450012842","245001001","Станция - поставщик ЭЭ"]
[104,"ООО Тепло-Сбыт-Сервис","2450012842","245001001","Региональная генерация"]
[105,"АО  \"Красноярская региональная энергетическая компания\"","2460087269","246001001","Сетевая компания"]
[106,"АО  \"Красноярская региональная энергетическая компания\"","2460087269","246001001","ЭСО"]
[107,"АО  \"Красноярская региональная энергетическая компания\"","2460087269","246001001","Региональная генерация"]
[108,"АО \"Атомэнергопромсбыт\"","7725828549","772501001","Сбытовая компания"]
[109,"АО \"Витимэнергосбыт\"","3802010714","380201001","Сбытовая компания"]
[110,"АО \"ЕЭСнК\"","7727232575","771401001","Сбытовая компания"]
[111,"АО \"Енисейская ТГК (ТГК-13)\"","1901067718","246750001","Региональная генерация"]
[112,"АО \"Енисейская ТГК (ТГК-13)\"","1901067718","246750001","Станция - поставщик ЭЭ"]
[113,"АО \"Енисейская ТГК (ТГК-13)\"","1901067718","246750001","Сбытовая компания"]
[114,"АО \"Красмаш\"","2462206345","997850001","Сетевая компания"]
[115,"АО \"Красноярская ТЭЦ-1\"","2460237926","246750001","Станция - поставщик ЭЭ"]
[116,"АО \"Красноярская ТЭЦ-1\"","2460237926","246750001","Региональная генерация"]
[117,"АО \"Красноярский ДОК\"","2464004168","246401001","Сетевая компания"]
[118,"АО \"Оборонэнергосбыт\"","7704731218","773043001","Сбытовая компания"]
[119,"АО \"СУЭК-Красноярск\"","2466152267","246750001","Сетевая компания"]
[120,"АО \"Сибурэнергоменеджмент\"","7727276526","366301001","Сбытовая компания"]
[121,"АО \"Улан-Удэ Энерго\"","0326481003","032601001","Сетевая компания"]
[122,"АО «Транснефть - Западная Сибирь»","5502020634","246603001","Сетевая компания"]
[123,"ГПКК \"Центр транспортной логистики\"","2466083888","246601001","Сетевая компания"]
[124,"ДЭС Изолированных территорий","2466070303","246501001","Региональная генерация"]
[125,"ЗАО \"Красный Яр АО\"","7701243572","246101001","Сетевая компания"]
[126,"ЗАО \"Система\"","4205173700","420501001","Сбытовая компания"]
[127,"ЗАО \"Флагман-инвест\"","2465067548","246401001","Сетевая компания"]
[128,"ЗАО Лыжный стадион \"Ветлужанка\"","2463011331","246301001","Сетевая компания"]
[129,"ЗАО ТЦ \"Красноярье\"","2451000180","245101001","Сетевая компания"]
[130,"ИП Старченко","190100538868","000000000","Региональная генерация"]
[131,"Красноярский научный центр СО РАН","2463002263","246301001","Сетевая компания"]
[132,"Красноярское отделение филиала \"Сибирский\" ОАО \"Оборонэнергосбыт\"","7704731218","246645001","Сбытовая компания"]
[133,"ОАО  \"Российские железные дороги\" в лице Красноярской дирекции по энергообеспечению-структурного подразделения \"Трансэнерго\" филиала ОАО \"РЖД\"","7708503727","246045007","Сетевая компания"]
[134,"ОАО \" РУСАЛ Красноярск\"","2465000141","246501001","Сетевая компания"]
[135,"ОАО \" РУСАЛ Красноярск\"","2465000141","246501001","Сбытовая компания"]
[136,"ОАО \"Горевский ГОК\"","2426000250","242601001","Сетевая компания"]
[137,"ОАО \"ДОЗ 2 и К\"","2462023422","246201001","Сетевая компания"]
[138,"ОАО \"Дивногорские тепловые сети\"","2460237884","246001001","Сбытовая компания"]
[139,"ОАО \"КЗСК\"","2462004363","246750001","Сетевая компания"]
[140,"ОАО \"Красноярская электрокотельная\"","2460237845","246001001","Сбытовая компания"]
[141,"ОАО \"Красфарма\"","2464010490","246750001","Сетевая компания"]
[142,"ОАО \"Красцветмет\"","2451000818","997550001","Сетевая компания"]
[143,"ОАО \"РЖД\"","7708503727","246602001","Сетевая компания"]
[144,"ОАО \"Тываэнерго\"","1701029232","170101001","Сетевая компания"]
[145,"ОАО \"ХМЗ\"","2464003340","246401001","Сетевая компания"]
[146,"ОАО «ЭСК РусГидро»","7804403972","772801001","Сбытовая компания"]
[147,"ОАО ПО \"Красноярский завод комбайнов\"","2460053936","246750001","Сетевая компания"]
[148,"ООО \"Аквилон электросети\"","2465285722","246501001","Сетевая компания"]
[149,"ООО \"Альфа\"","2460001399","246001001","Сетевая компания"]
[150,"ООО \"Вотэл\"","2464206132","246401001","Сетевая компания"]
[151,"ООО \"Городские электрические сети\"","1902021787","190201001","Сетевая компания"]
[152,"ООО \"Дизаж М\"","7728587330","772801001","Сбытовая компания"]
[153,"ООО \"ЕнисейЭнергоСервис\"","2463058587","246301001","Сетевая компания"]
[154,"ООО \"Искра-Энергосети\"","2463037964","246301001","Сетевая компания"]
[155,"ООО \"КЛМ - Энерго\"","2466119189","246601001","Сетевая компания"]
[156,"ООО \"Коммерц Строй\"","2463050757","781101001","Сетевая компания"]
[157,"ООО \"Контакт\"","2462208303","246201001","Сетевая компания"]
[158,"ООО \"Крамз\"","2465043748","246501001","Сетевая компания"]
[159,"ООО \"Крамз-ТЕЛЕКОМ\"","2465050054","246501001","Сетевая компания"]
[160,"ООО \"Красноярский жилищно-коммунальный комплекс\"","2466114215","246750001","Сетевая компания"]
[161,"ООО \"Крассети\"","2460255883","246001001","Сетевая компания"]
[162,"ООО \"ЛУКОЙЛ-ЭНЕРГОСЕРВИС\"","5030040730","503001000","Сбытовая компания"]
[163,"ООО \"МАРЭМ+\"","7702387915","770201001","Сбытовая компания"]
[164,"ООО \"Перспектива\"","2461221421","246101001","Сетевая компания"]
[165,"ООО \"ПолюсЭнергострой\"","2464121538","246401001","Сетевая компания"]
[166,"ООО \"РН-Энерго\"","7706525041","772501001","Сбытовая компания"]
[167,"ООО \"РСК Сибиряк\"","2465208005","246501001","Сетевая компания"]
[168,"ООО \"РСК\"","2463064830","246301001","Сетевая компания"]
[169,"ООО \"РУСАЛ Энерго\"","7709653059","770901001","Сбытовая компания"]
[170,"ООО \"Региональная энергосбытовая компания\" (ОПП)","4633017746","463301001","Сбытовая компания"]
[171,"ООО \"Русэнергоресурс\"","7706288496","770601001","Сбытовая компания"]
[172,"ООО \"Русэнергосбыт Сибирь\"","2465115953","246601001","Сбытовая компания"]
[173,"ООО \"Русэнергосбыт\"","7706284124","770601001","Сбытовая компания"]
[174,"ООО \"СКС\"","2463212510","246301001","Сетевая компания"]
[175,"ООО \"СП-Энергосервис\"","2465240697","246501001","Сетевая компания"]
[176,"ООО \"ССК\"","2464118729","246401001","Сетевая компания"]
[177,"ООО \"Северный город\"","2464106177","246401001","Сетевая компания"]
[178,"ООО \"Сетевая территориальная компания\"","2464242162","246401001","Сетевая компания"]
[179,"ООО \"Сибирская энергетическая компания\"","2463228743","246301001","Сетевая компания"]
[180,"ООО \"Сибэлектросталь\"","2461206247","246101001","Сетевая компания"]
[181,"ООО \"ТЭС\"","2464031718","246401001","Сетевая компания"]
[182,"ООО \"Терминал\"","5406358558","240601001","Сетевая компания"]
[183,"ООО \"ТранснефтьЭлектросетьСервис\"","6311049306","631101001","Сетевая компания"]
[184,"ООО \"Транснефтьэнерго\"","7703552167","772301001","Сбытовая компания"]
[185,"ООО \"Трансферэнерго\"","2466252462","246601001","Сетевая компания"]
[186,"ООО \"Элеком\"","2464099890","246401001","Сетевая компания"]
[187,"ООО \"Электрические сети Сибири\"","2460235372","246001001","Региональная генерация"]
[188,"ООО \"Электрические сети Сибири\"","2460235372","246001001","Сетевая компания"]
[189,"ООО \"Энергия\"","2411019080","241101001","Сетевая компания"]
[190,"ООО \"Энерготранзит\"","2466152387","246601001","Сетевая компания"]
[191,"ООО \"Ярэнергосервис\"","2465085699","246501001","Сетевая компания"]
[192,"ООО «ПЕСЧАНКА ЭНЕРГО»","2466172249","246601001","Сетевая компания"]
[193,"ООО «Песчанка Энерго»","2466258908","246601001","Сетевая компания"]
[194,"ООО «Тепловая энергетическая компания»","2462206835","246201001","Сетевая компания"]
[195,"ООО «Энергетическая Компания»","2465304301","246501001","Сетевая компания"]
[196,"ООО Красэлектросервис","2464055525","246001001","Сетевая компания"]
[197,"ООО МД","2464071943","246401001","Сетевая компания"]
[198,"ООО ПСК \"Омега\"","2465012193","246301001","Сетевая компания"]
[199,"ООО РЕД-Сибирь","2465097486","246501001","Сетевая компания"]
[200,"ООО Торговый дом \"Маршал\"","2463087940","246601001","Сетевая компания"]
[201,"ПАО \"Красноярскэнергосбыт\"","2466132221","246750001","Сетевая компания"]
[202,"ПАО \"Красноярскэнергосбыт\"","2466132221","246750001","Сбытовая компания"]
[203,"ПАО \"Мосэнергосбыт\"","7736520080","997450001","Сбытовая компания"]
[204,"ПАО \"РусГидро\"","2460066195","997450001","Станция - поставщик ЭЭ"]
[205,"ПАО \"ФСК ЕЭС\"","4716016979","772801001","Сетевая компания"]
[206,"ПАО \"ФСК ЕЭС\"","4716016979","997450001","Сетевая компания"]
[207,"ФГУП ПО Красноярский химический комбинат \"Енисей\"","2451000046","246201001","Сетевая компания"]
[208,"Филиал ОАО \"МРСК Сибири\" - \"Красноярскэнерго\"","2460069527","246002001","Сетевая компания"]
[209,"Филиал ОАО \"Пивоваренная компания \"Балтика\" - \"Балтика - Пикра\"","7830001405","783450001","Сетевая компания"]
[210,"Филиал ОАО \"Пивоваренная компания \"Балтика\" - \"Балтика - Пикра\"","7830001405","783450001","Сбытовая компания"]
[211,"филиал \"Сибирский\" АО \"Оборонэнерго\"","7704726225","540643001","Сетевая компания"]
[212,"филиал \"Сибирский\" ОАО \"28 Электрическая сеть\"","2704016508","540743001","Сетевая компания"]
[213,"ЗАО \"Новоенисейский ЛХК\"","2454012346","245401001","ЭСО"]
[214,"ЗАО \"Новоенисейский ЛХК\"","2454012346","245401001","Региональная генерация"]
[215,"АО \"Енисейская ТГК (ТГК-13)\"","1901067718","246750001","Сбытовая компания"]
[216,"АО \"Енисейская ТГК (ТГК-13)\"","1901067718","246750001","Станция - поставщик ЭЭ"]
[217,"АО \"Енисейская ТГК (ТГК-13)\"","1901067718","246750001","Региональная генерация"]
[218,"ЗАО \"Минусинские городские ЭС\"","2455021216","245501001","Сетевая компания"]
[219,"ООО \"Электрокомплекс\"","2455031278","245501001","Сетевая компания"]
[220,"АО \"Енисейская ТГК (ТГК-13)\"","1901067718","246750001","Региональная генерация"]
[221,"АО \"Енисейская ТГК (ТГК-13)\"","1901067718","246750001","Сбытовая компания"]
[222,"АО \"Енисейская ТГК (ТГК-13)\"","1901067718","246750001","Станция - поставщик ЭЭ"]
[223,"АО \"Назаровская ГРЭС\"","2460237901","246750001","Региональная генерация"]
[224,"АО \"Назаровская ГРЭС\"","2460237901","246750001","Станция - поставщик ЭЭ"]
[225,"АО «Разрез Назаровский»","2456002745","245601001","Сетевая компания"]
[226,"ООО \"Энергия\"","2411019080","241101001","Сетевая компания"]
[227,"ООО ПГ  «Компас»","2456010023","245601001","Сетевая компания"]
[228,"АО \"Норильско-Таймырская энергетическая компания\"","2457058356","245701001","Сетевая компания"]
[229,"АО \"Норильско-Таймырская энергетическая компания\"","2457058356","245701001","Станция - поставщик ЭЭ"]
[230,"АО \"Норильско-Таймырская энергетическая компания\"","2457058356","245701001","Сбытовая компания"]
[231,"АО \"Норильско-Таймырская энергетическая компания\"","2457058356","245701001","Региональная генерация"]
[232,"АО \"Норильско-Таймырская энергетическая компания\"","2457058356","245701001","ЭСО"]
[233,"ЗАО \"Оганер-Комплекс\"","2457042370","245701001","Сетевая компания"]
[234,"МУП \"Коммунальные объединенные системы\"","2457029066","245701001","Сетевая компания"]
[235,"ООО  УК \"Энерготех\"","2457039314","245701001","Сетевая компания"]
[236,"ООО \"ГлавЭнергоСбыт\"","7725571452","772501001","Сбытовая компания"]
[237,"ООО \"Жилищный трест\"","2457055612","245701001","Сетевая компания"]
[238,"ООО \"НЖЭК\"","2457070804","245701001","Сетевая компания"]
[239,"ООО \"Нордсервис\"","2457046449","245701001","Сетевая компания"]
[240,"ООО \"Объединение коммунальников №1\"","2457046142","245701001","Сетевая компания"]
[241,"ООО \"СеверныйБыт\"","2457072713","245701001","Сетевая компания"]
[242,"ООО \"Талнахбыт\"","2457047435","245701001","Сетевая компания"]
[243,"филиал \"Сибирский\" АО \"Оборонэнерго\"","7704726225","540643001","Сетевая компания"]
[244,"АО \"Енисейская ТГК (ТГК-13)\"","1901067718","246750001","Региональная генерация"]
[245,"АО \"Енисейская ТГК (ТГК-13)\"","1901067718","246750001","Сбытовая компания"]
[246,"АО \"Енисейская ТГК (ТГК-13)\"","1901067718","246750001","Станция - поставщик ЭЭ"]
[247,"МУП \"Жилкомсервис\" г. Сосновоборск","2458008862","245801001","Сетевая компания"]
[248,"АО «Разрез Березовский»","2459018895","245901001","Сетевая компания"]
[249,"ПАО \"Красноярскэнергосбыт\"","2466132221","246750001","Сбытовая компания"]
[250,"ПАО \"Красноярскэнергосбыт\"","2466132221","246750001","Сетевая компания"]
[251,"ООО \"Электросеть\" с. Дзержинское","2410000946","241001001","Сетевая компания"]
[252,"ООО \"Энергия\"","2411019080","241101001","Сетевая компания"]
[253,"ДЭС Изолированных территорий","2466070303","246501001","Региональная генерация"]
[254,"ООО \"Энергия\"","2411019080","241101001","Сетевая компания"]
[255,"ДЭС Изолированных территорий","2466070303","246501001","Региональная генерация"]
[256,"ООО \"Энергия\"","2411019080","241101001","Сетевая компания"]
[257,"ДЭС Изолированных территорий","2466070303","246501001","Региональная генерация"]
[258,"ООО \"Энергия\"","2411019080","241101001","Сетевая компания"]
[259,"ООО \"Энергия\"","2411019080","241101001","Сетевая компания"]
[260,"ООО \"Энергия\"","2411019080","241101001","Сетевая компания"]
[261,"ДЭС Изолированных территорий","2466070303","246501001","Региональная генерация"]
[262,"МУП \"Емельяновские электрические сети\"","2411004492","241101001","Сетевая компания"]
[263,"ООО \"Аэропорт Емельяново\"","2460213509","241101001","Сетевая компания"]
[264,"ООО \"Энергия\"","2411019080","241101001","Сетевая компания"]
[265,"ДЭС Изолированных территорий","2466070303","246501001","Региональная генерация"]
[266,"ООО \"Энергия\"","2411019080","241101001","Сетевая компания"]
[267,"ДЭС Изолированных территорий","2466070303","246501001","Региональная генерация"]
[268,"ООО \"Энергия\"","2411019080","241101001","Сетевая компания"]
[269,"ДЭС Изолированных территорий","2466070303","246501001","Региональная генерация"]
[270,"ООО \"Энергия\"","2411019080","241101001","Сетевая компания"]
[271,"ДЭС Изолированных территорий","2466070303","246501001","Региональная генерация"]
[272,"ООО \"Энергия\"","2411019080","241101001","Сетевая компания"]
[273,"ДЭС Изолированных территорий","2466070303","246501001","Региональная генерация"]
[274,"ООО \"Региональная тепловая компания\"","2411014638","241101001","Сетевая компания"]
[275,"ООО \"Электрические сети Енисейского ферросплавного завода\"","2411020825","241101001","Сетевая компания"]
[276,"ООО \"Энергия\"","2411019080","241101001","Сетевая компания"]
[277,"ДЭС Изолированных территорий","2466070303","246501001","Региональная генерация"]
[278,"ООО \"Энергия\"","2411019080","241101001","Сетевая компания"]
[279,"ООО \"Энергия\"","2411019080","241101001","Сетевая компания"]
[280,"ДЭС Изолированных территорий","2466070303","246501001","Региональная генерация"]
[281,"ЗАО \"Енисейэнергоком\"","2447012176","244701001","Региональная генерация"]
[282,"ЗАО \"Енисейэнергоком\"","2447012176","244701001","ЭСО"]
[283,"ООО \"Енисейэнергоком\"","2447012666","244701001","Региональная генерация"]
[284,"ООО \"Енисейэнергоком\"","2447012666","244701001","ЭСО"]
[285,"ООО \"Енисейэнергоком\"","2447012666","244701001","Станция - поставщик ЭЭ"]
[286,"ООО \"Енисейэнергоком\"","2447012666","244701001","Сетевая компания"]
[287,"ООО \"Енисейэнергоком\"","2447012666","244701001","Сбытовая компания"]
[288,"ДЭС Изолированных территорий","2466070303","246501001","Региональная генерация"]
[289,"ЗАО \"Енисейэнергоком\"","2447012176","244701001","Региональная генерация"]
[290,"ЗАО \"Енисейэнергоком\"","2447012176","244701001","ЭСО"]
[291,"ООО \"Енисейэнергоком\"","2447012666","244701001","Сбытовая компания"]
[292,"ООО \"Енисейэнергоком\"","2447012666","244701001","Региональная генерация"]
[293,"ООО \"Енисейэнергоком\"","2447012666","244701001","Сетевая компания"]
[294,"ООО \"Енисейэнергоком\"","2447012666","244701001","ЭСО"]
[295,"ООО \"Енисейэнергоком\"","2447012666","244701001","Станция - поставщик ЭЭ"]
[296,"ДЭС Изолированных территорий","2466070303","246501001","Региональная генерация"]
[297,"ЗАО \"Енисейэнергоком\"","2447012176","244701001","Региональная генерация"]
[298,"ЗАО \"Енисейэнергоком\"","2447012176","244701001","ЭСО"]
[299,"ООО \"Енисейэнергоком\"","2447012666","244701001","Сбытовая компания"]
[300,"ООО \"Енисейэнергоком\"","2447012666","244701001","Региональная генерация"]
[301,"ООО \"Енисейэнергоком\"","2447012666","244701001","Сетевая компания"]
[302,"ООО \"Енисейэнергоком\"","2447012666","244701001","ЭСО"]
[303,"ООО \"Енисейэнергоком\"","2447012666","244701001","Станция - поставщик ЭЭ"]
[304,"ДЭС Изолированных территорий","2466070303","246501001","Региональная генерация"]
[305,"ЗАО \"Енисейэнергоком\"","2447012176","244701001","Региональная генерация"]
[306,"ЗАО \"Енисейэнергоком\"","2447012176","244701001","ЭСО"]
[307,"ООО \"Енисейэнергоком\"","2447012666","244701001","Сбытовая компания"]
[308,"ООО \"Енисейэнергоком\"","2447012666","244701001","Региональная генерация"]
[309,"ООО \"Енисейэнергоком\"","2447012666","244701001","Сетевая компания"]
[310,"ООО \"Енисейэнергоком\"","2447012666","244701001","ЭСО"]
[311,"ООО \"Енисейэнергоком\"","2447012666","244701001","Станция - поставщик ЭЭ"]
[312,"ДЭС Изолированных территорий","2466070303","246501001","Региональная генерация"]
[313,"ЗАО \"Енисейэнергоком\"","2447012176","244701001","Региональная генерация"]
[314,"ЗАО \"Енисейэнергоком\"","2447012176","244701001","ЭСО"]
[315,"ООО \"Енисейэнергоком\"","2447012666","244701001","Сбытовая компания"]
[316,"ООО \"Енисейэнергоком\"","2447012666","244701001","Сетевая компания"]
[317,"ООО \"Енисейэнергоком\"","2447012666","244701001","Станция - поставщик ЭЭ"]
[318,"ООО \"Енисейэнергоком\"","2447012666","244701001","ЭСО"]
[319,"ООО \"Енисейэнергоком\"","2447012666","244701001","Региональная генерация"]
[320,"ДЭС Изолированных территорий","2466070303","246501001","Региональная генерация"]
[321,"ООО \"Енисейэнергоком\"","2447012666","244701001","Сбытовая компания"]
[322,"ООО \"Енисейэнергоком\"","2447012666","244701001","Региональная генерация"]
[323,"ООО \"Енисейэнергоком\"","2447012666","244701001","Сетевая компания"]
[324,"ООО \"Енисейэнергоком\"","2447012666","244701001","Станция - поставщик ЭЭ"]
[325,"ООО \"Енисейэнергоком\"","2447012666","244701001","ЭСО"]
[326,"ДЭС Изолированных территорий","2466070303","246501001","Региональная генерация"]
[327,"ЗАО \"Енисейэнергоком\"","2447012176","244701001","Региональная генерация"]
[328,"ЗАО \"Енисейэнергоком\"","2447012176","244701001","ЭСО"]
[329,"ООО \"Енисейэнергоком\"","2447012666","244701001","Региональная генерация"]
[330,"ООО \"Енисейэнергоком\"","2447012666","244701001","Сбытовая компания"]
[331,"ООО \"Енисейэнергоком\"","2447012666","244701001","Сетевая компания"]
[332,"ООО \"Енисейэнергоком\"","2447012666","244701001","Станция - поставщик ЭЭ"]
[333,"ООО \"Енисейэнергоком\"","2447012666","244701001","ЭСО"]
[334,"ДЭС Изолированных территорий","2466070303","246501001","Региональная генерация"]
[335,"ООО \"Безымянское\"","2447009293","244701001","Региональная генерация"]
[336,"ООО \"Безымянское\"","2447009293","244701001","Сбытовая компания"]
[337,"ООО \"Безымянское\"","2447009293","244701001","ЭСО"]
[338,"ООО \"Енисейэнергоком\"","2447012666","244701001","Сетевая компания"]
[339,"ООО \"Енисейэнергоком\"","2447012666","244701001","Сбытовая компания"]
[340,"ООО \"Енисейэнергоком\"","2447012666","244701001","Региональная генерация"]
[341,"ООО \"Енисейэнергоком\"","2447012666","244701001","Станция - поставщик ЭЭ"]
[342,"ООО \"Енисейэнергоком\"","2447012666","244701001","ЭСО"]
[343,"ДЭС Изолированных территорий","2466070303","246501001","Региональная генерация"]
[344,"ЗАО \"Енисейэнергоком\"","2447012176","244701001","Региональная генерация"]
[345,"ЗАО \"Енисейэнергоком\"","2447012176","244701001","ЭСО"]
[346,"ООО \"Енисейэнергоком\"","2447012666","244701001","Региональная генерация"]
[347,"ООО \"Енисейэнергоком\"","2447012666","244701001","Сбытовая компания"]
[348,"ООО \"Енисейэнергоком\"","2447012666","244701001","Сетевая компания"]
[349,"ООО \"Енисейэнергоком\"","2447012666","244701001","Станция - поставщик ЭЭ"]
[350,"ООО \"Енисейэнергоком\"","2447012666","244701001","ЭСО"]
[351,"ДЭС Изолированных территорий","2466070303","246501001","Региональная генерация"]
[352,"ООО \"Енисейэнергоком\"","2447012666","244701001","Региональная генерация"]
[353,"ООО \"Енисейэнергоком\"","2447012666","244701001","Сбытовая компания"]
[354,"ООО \"Енисейэнергоком\"","2447012666","244701001","ЭСО"]
[355,"ООО \"Енисейэнергоком\"","2447012666","244701001","Станция - поставщик ЭЭ"]
[356,"ООО \"Енисейэнергоком\"","2447012666","244701001","Сетевая компания"]
[357,"ДЭС Изолированных территорий","2466070303","246501001","Региональная генерация"]
[358,"ООО \"Енисейэнергоком\"","2447012666","244701001","Региональная генерация"]
[359,"ООО \"Енисейэнергоком\"","2447012666","244701001","Сбытовая компания"]
[360,"ООО \"Енисейэнергоком\"","2447012666","244701001","ЭСО"]
[361,"ООО \"Енисейэнергоком\"","2447012666","244701001","Станция - поставщик ЭЭ"]
[362,"ООО \"Енисейэнергоком\"","2447012666","244701001","Сетевая компания"]
[363,"ДЭС Изолированных территорий","2466070303","246501001","Региональная генерация"]
[364,"ООО \"Енисейэнергоком\"","2447012666","244701001","Сбытовая компания"]
[365,"ООО \"Енисейэнергоком\"","2447012666","244701001","Сетевая компания"]
[366,"ООО \"Енисейэнергоком\"","2447012666","244701001","Станция - поставщик ЭЭ"]
[367,"ООО \"Енисейэнергоком\"","2447012666","244701001","ЭСО"]
[368,"ООО \"Енисейэнергоком\"","2447012666","244701001","Региональная генерация"]
[369,"ДЭС Изолированных территорий","2466070303","246501001","Региональная генерация"]
[370,"ЗАО \"Енисейэнергоком\"","2447012176","244701001","ЭСО"]
[371,"ЗАО \"Енисейэнергоком\"","2447012176","244701001","Региональная генерация"]
[372,"ООО \"Енисейэнергоком\"","2447012666","244701001","Станция - поставщик ЭЭ"]
[373,"ООО \"Енисейэнергоком\"","2447012666","244701001","Сетевая компания"]
[374,"ООО \"Енисейэнергоком\"","2447012666","244701001","Сбытовая компания"]
[375,"ООО \"Енисейэнергоком\"","2447012666","244701001","ЭСО"]
[376,"ООО \"Енисейэнергоком\"","2447012666","244701001","Региональная генерация"]
[377,"ДЭС Изолированных территорий","2466070303","246501001","Региональная генерация"]
[378,"ЗАО \"Енисейэнергоком\"","2447012176","244701001","ЭСО"]
[379,"ЗАО \"Енисейэнергоком\"","2447012176","244701001","Региональная генерация"]
[380,"ООО \"Енисейэнергоком\"","2447012666","244701001","Станция - поставщик ЭЭ"]
[381,"ООО \"Енисейэнергоком\"","2447012666","244701001","Сетевая компания"]
[382,"ООО \"Енисейэнергоком\"","2447012666","244701001","Сбытовая компания"]
[383,"ООО \"Енисейэнергоком\"","2447012666","244701001","ЭСО"]
[384,"ООО \"Енисейэнергоком\"","2447012666","244701001","Региональная генерация"]
[385,"ДЭС Изолированных территорий","2466070303","246501001","Региональная генерация"]
[386,"ЗАО \"Енисейэнергоком\"","2447012176","244701001","Региональная генерация"]
[387,"ЗАО \"Енисейэнергоком\"","2447012176","244701001","ЭСО"]
[388,"ООО \"Енисейэнергоком\"","2447012666","244701001","Региональная генерация"]
[389,"ООО \"Енисейэнергоком\"","2447012666","244701001","Сбытовая компания"]
[390,"ООО \"Енисейэнергоком\"","2447012666","244701001","Сетевая компания"]
[391,"ООО \"Енисейэнергоком\"","2447012666","244701001","Станция - поставщик ЭЭ"]
[392,"ООО \"Енисейэнергоком\"","2447012666","244701001","ЭСО"]
[393,"ДЭС Изолированных территорий","2466070303","246501001","Региональная генерация"]
[394,"ЗАО \"Енисейэнергоком\"","2447012176","244701001","Региональная генерация"]
[395,"ЗАО \"Енисейэнергоком\"","2447012176","244701001","ЭСО"]
[396,"ООО \"Енисейэнергоком\"","2447012666","244701001","Региональная генерация"]
[397,"ООО \"Енисейэнергоком\"","2447012666","244701001","Сбытовая компания"]
[398,"ООО \"Енисейэнергоком\"","2447012666","244701001","Сетевая компания"]
[399,"ООО \"Енисейэнергоком\"","2447012666","244701001","Станция - поставщик ЭЭ"]
[400,"ООО \"Енисейэнергоком\"","2447012666","244701001","ЭСО"]
[401,"ДЭС Изолированных территорий","2466070303","246501001","Региональная генерация"]
[402,"ООО \"Енисейэнергоком\"","2447012666","244701001","Региональная генерация"]
[403,"ООО \"Енисейэнергоком\"","2447012666","244701001","Сбытовая компания"]
[404,"ООО \"Енисейэнергоком\"","2447012666","244701001","ЭСО"]
[405,"ООО \"Енисейэнергоком\"","2447012666","244701001","Станция - поставщик ЭЭ"]
[406,"ООО \"Енисейэнергоком\"","2447012666","244701001","Сетевая компания"]
[407,"ДЭС Изолированных территорий","2466070303","246501001","Региональная генерация"]
[408,"ЗАО \"Енисейэнергоком\"","2447012176","244701001","ЭСО"]
[409,"ЗАО \"Енисейэнергоком\"","2447012176","244701001","Региональная генерация"]
[410,"ООО \"Енисейэнергоком\"","2447012666","244701001","Станция - поставщик ЭЭ"]
[411,"ООО \"Енисейэнергоком\"","2447012666","244701001","Сетевая компания"]
[412,"ООО \"Енисейэнергоком\"","2447012666","244701001","Сбытовая компания"]
[413,"ООО \"Енисейэнергоком\"","2447012666","244701001","Региональная генерация"]
[414,"ООО \"Енисейэнергоком\"","2447012666","244701001","ЭСО"]
[415,"ДЭС Изолированных территорий","2466070303","246501001","Региональная генерация"]
[416,"ЗАО \"Енисейэнергоком\"","2447012176","244701001","Региональная генерация"]
[417,"ЗАО \"Енисейэнергоком\"","2447012176","244701001","ЭСО"]
[418,"ООО \"Енисейэнергоком\"","2447012666","244701001","Региональная генерация"]
[419,"ООО \"Енисейэнергоком\"","2447012666","244701001","Станция - поставщик ЭЭ"]
[420,"ООО \"Енисейэнергоком\"","2447012666","244701001","Сетевая компания"]
[421,"ООО \"Енисейэнергоком\"","2447012666","244701001","Сбытовая компания"]
[422,"ООО \"Енисейэнергоком\"","2447012666","244701001","ЭСО"]
[423,"ДЭС Изолированных территорий","2466070303","246501001","Региональная генерация"]
[424,"ЗАО \"Енисейэнергоком\"","2447012176","244701001","Региональная генерация"]
[425,"ЗАО \"Енисейэнергоком\"","2447012176","244701001","ЭСО"]
[426,"ООО \"Енисейэнергоком\"","2447012666","244701001","ЭСО"]
[427,"ООО \"Енисейэнергоком\"","2447012666","244701001","Станция - поставщик ЭЭ"]
[428,"ООО \"Енисейэнергоком\"","2447012666","244701001","Сетевая компания"]
[429,"ООО \"Енисейэнергоком\"","2447012666","244701001","Сбытовая компания"]
[430,"ООО \"Енисейэнергоком\"","2447012666","244701001","Региональная генерация"]
[431,"ДЭС Изолированных территорий","2466070303","246501001","Региональная генерация"]
[432,"ЗАО \"Енисейэнергоком\"","2447012176","244701001","ЭСО"]
[433,"ЗАО \"Енисейэнергоком\"","2447012176","244701001","Региональная генерация"]
[434,"ООО \"Енисейэнергоком\"","2447012666","244701001","Региональная генерация"]
[435,"ООО \"Енисейэнергоком\"","2447012666","244701001","Сбытовая компания"]
[436,"ООО \"Енисейэнергоком\"","2447012666","244701001","Сетевая компания"]
[437,"ООО \"Енисейэнергоком\"","2447012666","244701001","Станция - поставщик ЭЭ"]
[438,"ООО \"Енисейэнергоком\"","2447012666","244701001","ЭСО"]
[439,"ДЭС Изолированных территорий","2466070303","246501001","Региональная генерация"]
[440,"ООО \"Енисейэнергоком\"","2447012666","244701001","ЭСО"]
[441,"ООО \"Енисейэнергоком\"","2447012666","244701001","Сетевая компания"]
[442,"ООО \"Енисейэнергоком\"","2447012666","244701001","Станция - поставщик ЭЭ"]
[443,"ООО \"Енисейэнергоком\"","2447012666","244701001","Региональная генерация"]
[444,"ООО \"Енисейэнергоком\"","2447012666","244701001","Сбытовая компания"]
[445,"ДЭС Изолированных территорий","2466070303","246501001","Региональная генерация"]
[446,"ЗАО \"Енисейэнергоком\"","2447012176","244701001","ЭСО"]
[447,"ЗАО \"Енисейэнергоком\"","2447012176","244701001","Региональная генерация"]
[448,"ООО \"Енисейэнергоком\"","2447012666","244701001","Станция - поставщик ЭЭ"]
[449,"ООО \"Енисейэнергоком\"","2447012666","244701001","Сетевая компания"]
[450,"ООО \"Енисейэнергоком\"","2447012666","244701001","Сбытовая компания"]
[451,"ООО \"Енисейэнергоком\"","2447012666","244701001","ЭСО"]
[452,"ООО \"Енисейэнергоком\"","2447012666","244701001","Региональная генерация"]
[453,"ДЭС Изолированных территорий","2466070303","246501001","Региональная генерация"]
[454,"ЗАО \"Енисейэнергоком\"","2447012176","244701001","ЭСО"]
[455,"ЗАО \"Енисейэнергоком\"","2447012176","244701001","Региональная генерация"]
[456,"ООО \"Енисейэнергоком\"","2447012666","244701001","Станция - поставщик ЭЭ"]
[457,"ООО \"Енисейэнергоком\"","2447012666","244701001","ЭСО"]
[458,"ООО \"Енисейэнергоком\"","2447012666","244701001","Региональная генерация"]
[459,"ООО \"Енисейэнергоком\"","2447012666","244701001","Сбытовая компания"]
[460,"ООО \"Енисейэнергоком\"","2447012666","244701001","Сетевая компания"]
[461,"ООО \"Ярцевская лесопромышленная компания\"","2447007031","244701001","Сбытовая компания"]
[462,"Ярцевский филиал ОАО \"Лесосибирский ЛДК 1\"","2454003302","244702002","Региональная генерация"]
[463,"ООО \"Теплосеть\"","2413007717","241301001","Региональная генерация"]
[464,"ООО \"Теплосеть\"","2413007717","241301001","Станция - поставщик ЭЭ"]
[465,"ДЭС Изолированных территорий","2466070303","246501001","Региональная генерация"]
[466,"ООО \"Теплосеть\"","2413007717","241301001","Региональная генерация"]
[467,"ООО \"Теплосеть\"","2413007717","241301001","Станция - поставщик ЭЭ"]
[468,"ДЭС Изолированных территорий","2466070303","246501001","Региональная генерация"]
[469,"ООО \"Теплосеть\"","2413007717","241301001","Региональная генерация"]
[470,"ООО \"Теплосеть\"","2413007717","241301001","Станция - поставщик ЭЭ"]
[471,"ДЭС Изолированных территорий","2466070303","246501001","Региональная генерация"]
[472,"ООО \"Теплосеть\"","2413007717","241301001","Региональная генерация"]
[473,"ООО \"Теплосеть\"","2413007717","241301001","Станция - поставщик ЭЭ"]
[474,"ООО \"Теплосеть\"","2413007717","241301001","Региональная генерация"]
[475,"ООО \"Теплосеть\"","2413007717","241301001","Станция - поставщик ЭЭ"]
[476,"ДЭС Изолированных территорий","2466070303","246501001","Региональная генерация"]
[477,"ООО \"Теплосеть\"","2413007717","241301001","Региональная генерация"]
[478,"ООО \"Теплосеть\"","2413007717","241301001","Станция - поставщик ЭЭ"]
[479,"ДЭС Изолированных территорий","2466070303","246501001","Региональная генерация"]
[480,"ООО \"Теплосеть\"","2413007717","241301001","Региональная генерация"]
[481,"ООО \"Теплосеть\"","2413007717","241301001","Станция - поставщик ЭЭ"]
[482,"ДЭС Изолированных территорий","2466070303","246501001","Региональная генерация"]
[483,"ООО \"Теплосеть\"","2413007717","241301001","Региональная генерация"]
[484,"ООО \"Теплосеть\"","2413007717","241301001","Станция - поставщик ЭЭ"]
[485,"ДЭС Изолированных территорий","2466070303","246501001","Региональная генерация"]
[486,"ООО \"Теплосеть\"","2413007717","241301001","Региональная генерация"]
[487,"ООО \"Теплосеть\"","2413007717","241301001","Станция - поставщик ЭЭ"]
[488,"ДЭС Изолированных территорий","2466070303","246501001","Региональная генерация"]
[489,"ООО \"Теплосеть\"","2413007717","241301001","Региональная генерация"]
[490,"ООО \"Теплосеть\"","2413007717","241301001","Станция - поставщик ЭЭ"]
[491,"ДЭС Изолированных территорий","2466070303","246501001","Региональная генерация"]
[492,"ООО \"Теплосеть\"","2413007717","241301001","Региональная генерация"]
[493,"ООО \"Теплосеть\"","2413007717","241301001","Станция - поставщик ЭЭ"]
[494,"ДЭС Изолированных территорий","2466070303","246501001","Региональная генерация"]
[495,"ООО \"Теплосеть\"","2413007717","241301001","Региональная генерация"]
[496,"ООО \"Теплосеть\"","2413007717","241301001","Станция - поставщик ЭЭ"]
[497,"ДЭС Изолированных территорий","2466070303","246501001","Региональная генерация"]
[498,"ООО \"Теплосеть\"","2413007717","241301001","Региональная генерация"]
[499,"ООО \"Теплосеть\"","2413007717","241301001","Станция - поставщик ЭЭ"]
[500,"ДЭС Изолированных территорий","2466070303","246501001","Региональная генерация"]
[501,"МУП \"Стимул\"","2413007273","241301001","Региональная генерация"]
[502,"МУП \"Стимул\"","2413007273","241301001","ЭСО"]
[503,"ООО \"Теплосеть\"","2413007717","241301001","Региональная генерация"]
[504,"ООО \"Теплосеть\"","2413007717","241301001","Станция - поставщик ЭЭ"]
[505,"АО \"АтомЭнергоСбыт\"","7704228075","772501001","Сбытовая компания"]
[506,"МП ЗАТО Железногорск \"Гортеплоэнерго\"","2452024096","245201001","Сетевая компания"]
[507,"МУП \"Жилкомсервис\" г. Сосновоборск","2458008862","245801001","Сетевая компания"]
[508,"ООО ЭСК «Энергия»","2452043606","245201001","Сетевая компания"]
[509,"ФГУП \" Горно-химический комбинат\"","2452000401","245201001","Сетевая компания"]
[510,"Химический завод - филиал ОАО  \"Красноярский машиностроительный завод\"","2462206345","245243001","Сетевая компания"]
[511,"АО \"АтомЭнергоСбыт\"","7704228075","772501001","Сбытовая компания"]
[512,"МУП ЭС г. Зеленогорска","2453008636","245301001","Сетевая компания"]
[513,"ОАО \"Управление строительства - 604\"","2453000901","245301001","Сетевая компания"]
[514,"ООО \"УЭС УС-604\"","2453016531","245301001","Сетевая компания"]
[515,"ООО \"УЭС\"","2453018377","245301001","Сетевая компания"]
[516,"Филиал ОАО \"ОГК-6\"  Красноярская ГРЭС-2","6164232756","245302001","Станция - поставщик ЭЭ"]
[517,"Филиал ПАО «ОГК-2» - Красноярская ГРЭС-2","2607018122","245343001","Станция - поставщик ЭЭ"]
[518,"АО  \"Красноярская региональная энергетическая компания\"","2460087269","246001001","Региональная генерация"]
[519,"АО  \"Красноярская региональная энергетическая компания\"","2460087269","246001001","Сетевая компания"]
[520,"АО  \"Красноярская региональная энергетическая компания\"","2460087269","246001001","ЭСО"]
[521,"МУП \"ЖКХ\" ЗАТО Солнечный","2439005538","243901001","Сетевая компания"]
[522,"АО  \"Красноярская региональная энергетическая компания\"","2460087269","246001001","Региональная генерация"]
[523,"АО  \"Красноярская региональная энергетическая компания\"","2460087269","246001001","Сетевая компания"]
[524,"АО  \"Красноярская региональная энергетическая компания\"","2460087269","246001001","ЭСО"]
[525,"АО  \"Красноярская региональная энергетическая компания\"","2460087269","246001001","Региональная генерация"]
[526,"АО  \"Красноярская региональная энергетическая компания\"","2460087269","246001001","Сетевая компания"]
[527,"АО  \"Красноярская региональная энергетическая компания\"","2460087269","246001001","ЭСО"]
[528,"АО  \"Красноярская региональная энергетическая компания\"","2460087269","246001001","Региональная генерация"]
[529,"АО  \"Красноярская региональная энергетическая компания\"","2460087269","246001001","Сетевая компания"]
[530,"АО  \"Красноярская региональная энергетическая компания\"","2460087269","246001001","ЭСО"]
[531,"АО  \"Красноярская региональная энергетическая компания\"","2460087269","246001001","Региональная генерация"]
[532,"АО  \"Красноярская региональная энергетическая компания\"","2460087269","246001001","Сетевая компания"]
[533,"АО  \"Красноярская региональная энергетическая компания\"","2460087269","246001001","ЭСО"]
[534,"АО  \"Красноярская региональная энергетическая компания\"","2460087269","246001001","Региональная генерация"]
[535,"АО  \"Красноярская региональная энергетическая компания\"","2460087269","246001001","Сетевая компания"]
[536,"АО  \"Красноярская региональная энергетическая компания\"","2460087269","246001001","ЭСО"]
[537,"ОАО \"Филимоновский МКК\"","2418002889","245001001","Сетевая компания"]
[538,"ООО \"Филимоновские электросети\"","2450029518","245001001","Сетевая компания"]
[539,"АО  \"Красноярская региональная энергетическая компания\"","2460087269","246001001","Региональная генерация"]
[540,"АО  \"Красноярская региональная энергетическая компания\"","2460087269","246001001","Сетевая компания"]
[541,"АО  \"Красноярская региональная энергетическая компания\"","2460087269","246001001","ЭСО"]
[542,"АО \"Енисейская ТГК (ТГК-13)\"","1901067718","246750001","Региональная генерация"]
[543,"АО \"Енисейская ТГК (ТГК-13)\"","1901067718","246750001","Сбытовая компания"]
[544,"АО \"Енисейская ТГК (ТГК-13)\"","1901067718","246750001","Станция - поставщик ЭЭ"]
[545,"ДЭС Изолированных территорий","2466070303","246501001","Региональная генерация"]
[546,"Кодинское МУП ЖКХ Кежемского района","2420070117","242001001","Сбытовая компания"]
[547,"Кодинское МУП ЖКХ Кежемского района","2420070117","242001001","Региональная генерация"]
[548,"ООО \"Поселенческие сети электроснабжения\"","2420008119","242001001","Станция - поставщик ЭЭ"]
[549,"ООО \"Поселенческие сети электроснабжения\"","2420008119","242001001","Сбытовая компания"]
[550,"ООО \"Поселенческие сети электроснабжения\"","2420008119","242001001","Региональная генерация"]
[551,"ООО «Сибирские энергетические сети»","2465313000","246501001","Сетевая компания"]
[552,"ПАО \"Богучанская ГЭС\"","2420002597","246750001","Станция - поставщик ЭЭ"]
[553,"ПАО \"Богучанская ГЭС\"","2420002597","246750001","Сетевая компания"]
[554,"ООО «Сибирские энергетические сети»","2465313000","246501001","Сетевая компания"]
[555,"АО  \"Красноярская региональная энергетическая компания\"","2460087269","246001001","Региональная генерация"]
[556,"АО  \"Красноярская региональная энергетическая компания\"","2460087269","246001001","Сетевая компания"]
[557,"АО  \"Красноярская региональная энергетическая компания\"","2460087269","246001001","ЭСО"]
[558,"АО \"Енисейская ТГК (ТГК-13)\"","1901067718","246750001","Региональная генерация"]
[559,"АО \"Енисейская ТГК (ТГК-13)\"","1901067718","246750001","Сбытовая компания"]
[560,"АО \"Енисейская ТГК (ТГК-13)\"","1901067718","246750001","Станция - поставщик ЭЭ"]
[561,"ДЭС Изолированных территорий","2466070303","246501001","Региональная генерация"]
[562,"Кодинское МУП ЖКХ Кежемского района","2420070117","242001001","Региональная генерация"]
[563,"Кодинское МУП ЖКХ Кежемского района","2420070117","242001001","Сбытовая компания"]
[564,"ООО \"Поселенческие сети электроснабжения\"","2420008119","242001001","Региональная генерация"]
[565,"ООО \"Поселенческие сети электроснабжения\"","2420008119","242001001","Сбытовая компания"]
[566,"ООО \"Поселенческие сети электроснабжения\"","2420008119","242001001","Станция - поставщик ЭЭ"]
[567,"ООО «Сибирские энергетические сети»","2465313000","246501001","Сетевая компания"]
[568,"АО  \"Красноярская региональная энергетическая компания\"","2460087269","246001001","Региональная генерация"]
[569,"АО  \"Красноярская региональная энергетическая компания\"","2460087269","246001001","ЭСО"]
[570,"АО  \"Красноярская региональная энергетическая компания\"","2460087269","246001001","Сетевая компания"]
[571,"АО \"Енисейская ТГК (ТГК-13)\"","1901067718","246750001","Сбытовая компания"]
[572,"АО \"Енисейская ТГК (ТГК-13)\"","1901067718","246750001","Региональная генерация"]
[573,"АО \"Енисейская ТГК (ТГК-13)\"","1901067718","246750001","Станция - поставщик ЭЭ"]
[574,"ДЭС Изолированных территорий","2466070303","246501001","Региональная генерация"]
[575,"Кодинское МУП ЖКХ Кежемского района","2420070117","242001001","Сбытовая компания"]
[576,"Кодинское МУП ЖКХ Кежемского района","2420070117","242001001","Региональная генерация"]
[577,"ООО \"Поселенческие сети электроснабжения\"","2420008119","242001001","Региональная генерация"]
[578,"ООО \"Поселенческие сети электроснабжения\"","2420008119","242001001","Сбытовая компания"]
[579,"ООО \"Поселенческие сети электроснабжения\"","2420008119","242001001","Станция - поставщик ЭЭ"]
[580,"ООО «Сибирские энергетические сети»","2465313000","246501001","Сетевая компания"]
[581,"АО \"Енисейская ТГК (ТГК-13)\"","1901067718","246750001","Региональная генерация"]
[582,"АО \"Енисейская ТГК (ТГК-13)\"","1901067718","246750001","Станция - поставщик ЭЭ"]
[583,"АО \"Енисейская ТГК (ТГК-13)\"","1901067718","246750001","Сбытовая компания"]
[584,"ООО \"Поселенческие сети электроснабжения\"","2420008119","242001001","Региональная генерация"]
[585,"ООО \"Поселенческие сети электроснабжения\"","2420008119","242001001","Станция - поставщик ЭЭ"]
[586,"ООО \"Поселенческие сети электроснабжения\"","2420008119","242001001","Сбытовая компания"]
[587,"ООО «Сибирские энергетические сети»","2465313000","246501001","Сетевая компания"]
[588,"ДЭС Изолированных территорий","2466070303","246501001","Региональная генерация"]
[589,"ООО «Сибирские энергетические сети»","2465313000","246501001","Сетевая компания"]
[590,"АО \"Енисейская ТГК (ТГК-13)\"","1901067718","246750001","Сбытовая компания"]
[591,"АО \"Енисейская ТГК (ТГК-13)\"","1901067718","246750001","Региональная генерация"]
[592,"АО \"Енисейская ТГК (ТГК-13)\"","1901067718","246750001","Станция - поставщик ЭЭ"]
[593,"ООО \"Поселенческие сети электроснабжения\"","2420008119","242001001","Региональная генерация"]
[594,"ООО \"Поселенческие сети электроснабжения\"","2420008119","242001001","Сбытовая компания"]
[595,"ООО \"Поселенческие сети электроснабжения\"","2420008119","242001001","Станция - поставщик ЭЭ"]
[596,"АО  \"Красноярская региональная энергетическая компания\"","2460087269","246001001","Региональная генерация"]
[597,"АО  \"Красноярская региональная энергетическая компания\"","2460087269","246001001","ЭСО"]
[598,"АО  \"Красноярская региональная энергетическая компания\"","2460087269","246001001","Сетевая компания"]
[599,"АО \"Енисейская ТГК (ТГК-13)\"","1901067718","246750001","Региональная генерация"]
[600,"АО \"Енисейская ТГК (ТГК-13)\"","1901067718","246750001","Станция - поставщик ЭЭ"]
[601,"АО \"Енисейская ТГК (ТГК-13)\"","1901067718","246750001","Сбытовая компания"]
[602,"ДЭС Изолированных территорий","2466070303","246501001","Региональная генерация"]
[603,"Кодинское МУП ЖКХ Кежемского района","2420070117","242001001","Региональная генерация"]
[604,"Кодинское МУП ЖКХ Кежемского района","2420070117","242001001","Сбытовая компания"]
[605,"ООО \"Поселенческие сети электроснабжения\"","2420008119","242001001","Региональная генерация"]
[606,"ООО \"Поселенческие сети электроснабжения\"","2420008119","242001001","Сбытовая компания"]
[607,"ООО \"Поселенческие сети электроснабжения\"","2420008119","242001001","Станция - поставщик ЭЭ"]
[608,"ООО «Сибирские энергетические сети»","2465313000","246501001","Сетевая компания"]
[609,"ООО «Сибирские энергетические сети»","2465313000","246501001","Сетевая компания"]
[610,"ДЭС Изолированных территорий","2466070303","246501001","Региональная генерация"]
[611,"ООО «Сибирские энергетические сети»","2465313000","246501001","Сетевая компания"]
[612,"ФБУ ОИУ-8 ОУХД ГУФСИН России по Красноярскому краю","3817009542","241701001","Региональная генерация"]
[613,"ФБУ ОИУ-8 ОУХД ГУФСИН России по Красноярскому краю","3817009542","241701001","Сбытовая компания"]
[614,"ООО «Сибирские энергетические сети»","2465313000","246501001","Сетевая компания"]
[615,"АО  \"Красноярская региональная энергетическая компания\"","2460087269","246001001","Региональная генерация"]
[616,"АО  \"Красноярская региональная энергетическая компания\"","2460087269","246001001","Сетевая компания"]
[617,"АО  \"Красноярская региональная энергетическая компания\"","2460087269","246001001","ЭСО"]
[618,"АО \"Енисейская ТГК (ТГК-13)\"","1901067718","246750001","Сбытовая компания"]
[619,"АО \"Енисейская ТГК (ТГК-13)\"","1901067718","246750001","Региональная генерация"]
[620,"АО \"Енисейская ТГК (ТГК-13)\"","1901067718","246750001","Станция - поставщик ЭЭ"]
[621,"ДЭС Изолированных территорий","2466070303","246501001","Региональная генерация"]
[622,"ООО \"Поселенческие сети электроснабжения\"","2420008119","242001001","Региональная генерация"]
[623,"ООО \"Поселенческие сети электроснабжения\"","2420008119","242001001","Сбытовая компания"]
[624,"ООО \"Поселенческие сети электроснабжения\"","2420008119","242001001","Станция - поставщик ЭЭ"]
[625,"ООО «Сибирские энергетические сети»","2465313000","246501001","Сетевая компания"]
[626,"АО  \"Красноярская региональная энергетическая компания\"","2460087269","246001001","Региональная генерация"]
[627,"АО  \"Красноярская региональная энергетическая компания\"","2460087269","246001001","ЭСО"]
[628,"АО  \"Красноярская региональная энергетическая компания\"","2460087269","246001001","Сетевая компания"]
[629,"АО \"Енисейская ТГК (ТГК-13)\"","1901067718","246750001","Региональная генерация"]
[630,"АО \"Енисейская ТГК (ТГК-13)\"","1901067718","246750001","Станция - поставщик ЭЭ"]
[631,"АО \"Енисейская ТГК (ТГК-13)\"","1901067718","246750001","Сбытовая компания"]
[632,"ДЭС Изолированных территорий","2466070303","246501001","Региональная генерация"]
[633,"ООО \"Поселенческие сети электроснабжения\"","2420008119","242001001","Станция - поставщик ЭЭ"]
[634,"ООО \"Поселенческие сети электроснабжения\"","2420008119","242001001","Сбытовая компания"]
[635,"ООО \"Поселенческие сети электроснабжения\"","2420008119","242001001","Региональная генерация"]
[636,"ООО «Сибирские энергетические сети»","2465313000","246501001","Сетевая компания"]
[637,"АО \"Енисейская ТГК (ТГК-13)\"","1901067718","246750001","Региональная генерация"]
[638,"АО \"Енисейская ТГК (ТГК-13)\"","1901067718","246750001","Сбытовая компания"]
[639,"АО \"Енисейская ТГК (ТГК-13)\"","1901067718","246750001","Станция - поставщик ЭЭ"]
[640,"ООО \"Поселенческие сети электроснабжения\"","2420008119","242001001","Станция - поставщик ЭЭ"]
[641,"ООО \"Поселенческие сети электроснабжения\"","2420008119","242001001","Сбытовая компания"]
[642,"ООО \"Поселенческие сети электроснабжения\"","2420008119","242001001","Региональная генерация"]
[643,"ООО «Сибирские энергетические сети»","2465313000","246501001","Сетевая компания"]
[644,"АО «Транснефть - Западная Сибирь»","5502020634","246603001","Сетевая компания"]
[645,"АО  \"Красноярская региональная энергетическая компания\"","2460087269","246001001","Сетевая компания"]
[646,"АО  \"Красноярская региональная энергетическая компания\"","2460087269","246001001","Региональная генерация"]
[647,"АО  \"Красноярская региональная энергетическая компания\"","2460087269","246001001","ЭСО"]
[648,"АО  \"Красноярская региональная энергетическая компания\"","2460087269","246001001","Региональная генерация"]
[649,"АО  \"Красноярская региональная энергетическая компания\"","2460087269","246001001","Сетевая компания"]
[650,"АО  \"Красноярская региональная энергетическая компания\"","2460087269","246001001","ЭСО"]
[651,"ООО \"Ирбинские энергосети\"","2423009921","242301001","Сетевая компания"]
[652,"АО \"Енисейская ТГК (ТГК-13)\"","1901067718","246750001","Станция - поставщик ЭЭ"]
[653,"АО \"Енисейская ТГК (ТГК-13)\"","1901067718","246750001","Сбытовая компания"]
[654,"АО \"Енисейская ТГК (ТГК-13)\"","1901067718","246750001","Региональная генерация"]
[655,"ОАО \"Южно-Енисейские тепловые сети\"","2460237860","246001001","Сбытовая компания"]
[656,"ОАО Электрокомплекс","2455011881","245501001","Сетевая компания"]
[657,"ООО «ПЕСЧАНКА ЭНЕРГО»","2466172249","246601001","Сетевая компания"]
[658,"ООО «ПЕСЧАНКА ЭНЕРГО»","2466172249","246601001","Сетевая компания"]
[659,"ММУП ЖКХ «Коммунальник»","2426004946","242601001","Региональная генерация"]
[660,"ООО «ПЕСЧАНКА ЭНЕРГО»","2466172249","246601001","Сетевая компания"]
[661,"ООО «ПЕСЧАНКА ЭНЕРГО»","2466172249","246601001","Сетевая компания"]
[662,"ООО «ПЕСЧАНКА ЭНЕРГО»","2466172249","246601001","Сетевая компания"]
[663,"ООО «ПЕСЧАНКА ЭНЕРГО»","2466172249","246601001","Сетевая компания"]
[664,"ООО «ПЕСЧАНКА ЭНЕРГО»","2466172249","246601001","Сетевая компания"]
[665,"ООО «ПЕСЧАНКА ЭНЕРГО»","2466172249","246601001","Сетевая компания"]
[666,"ООО \"Актор\"","2426004907","242601001","Региональная генерация"]
[667,"ООО \"Татарка\"","2426005160","242601001","Региональная генерация"]
[668,"ООО \"Энергетика\"","2426005178","242601001","Региональная генерация"]
[669,"ООО «ПЕСЧАНКА ЭНЕРГО»","2466172249","246601001","Сетевая компания"]
[670,"ЗАО \"Прииск Удерейский\"","2426003621","242601001","Сетевая компания"]
[671,"ООО \"МГК Ангара\"","2426004544","242601001","Региональная генерация"]
[672,"ООО «ПЕСЧАНКА ЭНЕРГО»","2466172249","246601001","Сетевая компания"]
[673,"ООО «ПЕСЧАНКА ЭНЕРГО»","2466172249","246601001","Сетевая компания"]
[674,"ООО \"Энергия\"","2411019080","241101001","Сетевая компания"]
[675,"ООО \"Энергия\"","2411019080","241101001","Сетевая компания"]
[676,"ООО \"Энергия\"","2411019080","241101001","Сетевая компания"]
[677,"ООО \"Энергия\"","2411019080","241101001","Сетевая компания"]
[678,"ООО \"Энергия\"","2411019080","241101001","Сетевая компания"]
[679,"ООО \"Энергия\"","2411019080","241101001","Сетевая компания"]
[680,"ООО \"Энергия\"","2411019080","241101001","Сетевая компания"]
[681,"ООО \"Энергия\"","2411019080","241101001","Сетевая компания"]
[682,"ООО \"Энергия\"","2411019080","241101001","Сетевая компания"]
[683,"ООО \"Энергия\"","2411019080","241101001","Сетевая компания"]
[684,"ООО \"Энергия\"","2411019080","241101001","Сетевая компания"]
[685,"ООО \"Энергия\"","2411019080","241101001","Сетевая компания"]
[686,"ООО \"Энергия\"","2411019080","241101001","Сетевая компания"]
[687,"ООО \"Энергия\"","2411019080","241101001","Сетевая компания"]
[688,"ООО \"Энергия\"","2411019080","241101001","Сетевая компания"]
[689,"ООО \"Энергия\"","2411019080","241101001","Сетевая компания"]
[690,"ООО \"Тепловые сети\"","2429002810","242901001","Региональная генерация"]
[691,"ООО \"Тепловые сети\"","2429002810","242901001","Сбытовая компания"]
[692,"ООО \"Тепловые сети\"","2429002810","242901001","Сетевая компания"]
[693,"ООО \"Тепловые сети\"","2429002810","242901001","Станция - поставщик ЭЭ"]
[694,"ООО \"Тепловые сети\"","2429002810","242901001","ЭСО"]
[695,"АО  \"Красноярская региональная энергетическая компания\"","2460087269","246001001","Региональная генерация"]
[696,"АО  \"Красноярская региональная энергетическая компания\"","2460087269","246001001","Сетевая компания"]
[697,"АО  \"Красноярская региональная энергетическая компания\"","2460087269","246001001","ЭСО"]
[698,"ООО \"Кедр\"","2411021113","241101001","Сетевая компания"]
[699,"ООО \"Энергия\"","2411019080","241101001","Сетевая компания"]
[700,"АО  \"Красноярская региональная энергетическая компания\"","2460087269","246001001","Региональная генерация"]
[701,"АО  \"Красноярская региональная энергетическая компания\"","2460087269","246001001","ЭСО"]
[702,"АО  \"Красноярская региональная энергетическая компания\"","2460087269","246001001","Сетевая компания"]
[703,"ЗАО \"ЗДК Полюс\"","2434000335","243401001","ЭСО"]
[704,"ЗАО \"ЗДК Полюс\"","2434000335","243401001","Региональная генерация"]
[705,"МУП \"УКК\" Северо-Енисейского района\"","2434001177","243401001","Сетевая компания"]
[706,"МУП \"УКК\" Северо-Енисейского района\"","2434001177","243401001","Региональная генерация"]
[707,"МУП \"УКК\" Северо-Енисейского района\"","2434001177","243401001","Сбытовая компания"]
[708,"МУП \"УКК\" Северо-Енисейского района\"","2434001177","243401001","Станция - поставщик ЭЭ"]
[709,"МУП \"УКК\" Северо-Енисейского района\"","2434001177","243401001","ЭСО"]
[710,"ООО Енашиминская ГЭС","2434011217","243401001","Станция - поставщик ЭЭ"]
[711,"ООО Енашиминская ГЭС","2434011217","243401001","Региональная генерация"]
[712,"АО  \"Красноярская региональная энергетическая компания\"","2460087269","246001001","Региональная генерация"]
[713,"АО  \"Красноярская региональная энергетическая компания\"","2460087269","246001001","Сетевая компания"]
[714,"АО  \"Красноярская региональная энергетическая компания\"","2460087269","246001001","ЭСО"]
[715,"АО  \"Красноярская региональная энергетическая компания\"","2460087269","246001001","Сетевая компания"]
[716,"АО  \"Красноярская региональная энергетическая компания\"","2460087269","246001001","ЭСО"]
[717,"АО  \"Красноярская региональная энергетическая компания\"","2460087269","246001001","Региональная генерация"]
[718,"АО  \"Красноярская региональная энергетическая компания\"","2460087269","246001001","ЭСО"]
[719,"АО  \"Красноярская региональная энергетическая компания\"","2460087269","246001001","Региональная генерация"]
[720,"АО  \"Красноярская региональная энергетическая компания\"","2460087269","246001001","Сетевая компания"]
[721,"АО  \"Красноярская региональная энергетическая компания\"","2460087269","246001001","Сетевая компания"]
[722,"АО  \"Красноярская региональная энергетическая компания\"","2460087269","246001001","ЭСО"]
[723,"АО  \"Красноярская региональная энергетическая компания\"","2460087269","246001001","Региональная генерация"]
[724,"АО  \"Красноярская региональная энергетическая компания\"","2460087269","246001001","ЭСО"]
[725,"АО  \"Красноярская региональная энергетическая компания\"","2460087269","246001001","Региональная генерация"]
[726,"АО  \"Красноярская региональная энергетическая компания\"","2460087269","246001001","Сетевая компания"]
[727,"АО  \"Красноярская региональная энергетическая компания\"","2460087269","246001001","Сетевая компания"]
[728,"АО  \"Красноярская региональная энергетическая компания\"","2460087269","246001001","ЭСО"]
[729,"АО  \"Красноярская региональная энергетическая компания\"","2460087269","246001001","Региональная генерация"]
[730,"АО  \"Красноярская региональная энергетическая компания\"","2460087269","246001001","Региональная генерация"]
[731,"АО  \"Красноярская региональная энергетическая компания\"","2460087269","246001001","Сетевая компания"]
[732,"АО  \"Красноярская региональная энергетическая компания\"","2460087269","246001001","ЭСО"]
[733,"АО  \"Красноярская региональная энергетическая компания\"","2460087269","246001001","Региональная генерация"]
[734,"АО  \"Красноярская региональная энергетическая компания\"","2460087269","246001001","Сетевая компания"]
[735,"АО  \"Красноярская региональная энергетическая компания\"","2460087269","246001001","ЭСО"]
[736,"ДЭС Изолированных территорий","2466070303","246501001","Региональная генерация"]
[737,"МУП \"ЖКХ\" сельского поселения Хатанга","2469012194","246901001","Сбытовая компания"]
[738,"МУП \"ЖКХ\" сельского поселения Хатанга","2469012194","246901001","Сетевая компания"]
[739,"МУП \"ЖКХ\" сельского поселения Хатанга","2469012194","246901001","Региональная генерация"]
[740,"МУП \"ЖКХ\" сельского поселения Хатанга","2469012194","246901001","Станция - поставщик ЭЭ"]
[741,"МУП \"ЖКХ\" сельского поселения Хатанга","2469012194","246901001","ЭСО"]
[742,"ООО \"Скиф\"","2469002502","246901001","Станция - поставщик ЭЭ"]
[743,"ООО \"Скиф\"","2469002502","246901001","Региональная генерация"]
[744,"ООО \"Таймырская энергетическая компания\"","2469001523","246901001","Региональная генерация"]
[745,"ООО \"Таймырская энергетическая компания\"","2469001523","246901001","ЭСО"]
[746,"ООО \"Таймырэнергоресурс\"","2469002679","246901001","Станция - поставщик ЭЭ"]
[747,"ООО \"Таймырэнергоресурс\"","2469002679","246901001","Региональная генерация"]
[748,"ООО \"УК \"ЭнергобытСервис\"","2469003175","246901001","Региональная генерация"]
[749,"ООО \"УК \"ЭнергобытСервис\"","2469003175","246901001","Станция - поставщик ЭЭ"]
[750,"АО \"Норильско-Таймырская энергетическая компания\"","2457058356","245701001","Сетевая компания"]
[751,"АО \"Норильско-Таймырская энергетическая компания\"","2457058356","245701001","Сбытовая компания"]
[752,"АО \"Норильско-Таймырская энергетическая компания\"","2457058356","245701001","Региональная генерация"]
[753,"АО \"Норильско-Таймырская энергетическая компания\"","2457058356","245701001","ЭСО"]
[754,"АО \"Норильско-Таймырская энергетическая компания\"","2457058356","245701001","Станция - поставщик ЭЭ"]
[755,"АО \"Таймырбыт\"","8401011170","840101001","ЭСО"]
[756,"АО \"Таймырбыт\"","8401011170","840101001","Сетевая компания"]
[757,"АО \"Таймырбыт\"","8401011170","840101001","Сбытовая компания"]
[758,"АО \"Таймырбыт\"","8401011170","840101001","Региональная генерация"]
[759,"АО \"Таймырбыт\"","8401011170","840101001","Станция - поставщик ЭЭ"]
[760,"ДЭС Изолированных территорий","2466070303","246501001","Региональная генерация"]
[761,"МУП \"ЖКХ\" сельского поселения Хатанга","2469012194","246901001","ЭСО"]
[762,"МУП \"ЖКХ\" сельского поселения Хатанга","2469012194","246901001","Региональная генерация"]
[763,"МУП \"ЖКХ\" сельского поселения Хатанга","2469012194","246901001","Сбытовая компания"]
[764,"МУП \"ЖКХ\" сельского поселения Хатанга","2469012194","246901001","Сетевая компания"]
[765,"МУП \"ЖКХ\" сельского поселения Хатанга","2469012194","246901001","Станция - поставщик ЭЭ"]
[766,"ОАО \"Хантайское\"","8401010956","840101001","Региональная генерация"]
[767,"ОАО \"Хантайское\"","8401010956","840101001","ЭСО"]
[768,"ООО \"Арктикэнерго\"","2469002661","246901001","Региональная генерация"]
[769,"ООО \"Потапово\"","8401009157","840101001","Региональная генерация"]
[770,"ООО \"Потапово\"","8401009157","840101001","Сбытовая компания"]
[771,"ООО \"Скиф\"","2469002502","246901001","Станция - поставщик ЭЭ"]
[772,"ООО \"Скиф\"","2469002502","246901001","Региональная генерация"]
[773,"ООО \"Таймырэнергоресурс\"","2469002679","246901001","Региональная генерация"]
[774,"ООО \"Таймырэнергоресурс\"","2469002679","246901001","Станция - поставщик ЭЭ"]
[775,"ООО \"УК \"ЭнергобытСервис\"","2469003175","246901001","Региональная генерация"]
[776,"ООО \"УК \"ЭнергобытСервис\"","2469003175","246901001","Станция - поставщик ЭЭ"]
[777,"ДЭС Изолированных территорий","2466070303","246501001","Региональная генерация"]
[778,"МУП \"ЖКХ\" сельского поселения Хатанга","2469012194","246901001","ЭСО"]
[779,"МУП \"ЖКХ\" сельского поселения Хатанга","2469012194","246901001","Станция - поставщик ЭЭ"]
[780,"МУП \"ЖКХ\" сельского поселения Хатанга","2469012194","246901001","Сетевая компания"]
[781,"МУП \"ЖКХ\" сельского поселения Хатанга","2469012194","246901001","Региональная генерация"]
[782,"МУП \"ЖКХ\" сельского поселения Хатанга","2469012194","246901001","Сбытовая компания"]
[783,"МУП сельского поселения Караул \"Коммунальщик\"","8404010136","840401001","Региональная генерация"]
[784,"ОАО \"Норильскгазпром\"","2457002628","245701001","Региональная генерация"]
[785,"ООО \"Скиф\"","2469002502","246901001","Региональная генерация"]
[786,"ООО \"Скиф\"","2469002502","246901001","Станция - поставщик ЭЭ"]
[787,"ООО \"Таймырэнергоресурс\"","2469002679","246901001","Региональная генерация"]
[788,"ООО \"Таймырэнергоресурс\"","2469002679","246901001","Станция - поставщик ЭЭ"]
[789,"ООО \"УК \"ЭнергобытСервис\"","2469003175","246901001","Региональная генерация"]
[790,"ООО \"УК \"ЭнергобытСервис\"","2469003175","246901001","Станция - поставщик ЭЭ"]
[791,"ДЭС Изолированных территорий","2466070303","246501001","Региональная генерация"]
[792,"МУП \"ЖКХ\" сельского поселения Хатанга","2469012194","246901001","Региональная генерация"]
[793,"МУП \"ЖКХ\" сельского поселения Хатанга","2469012194","246901001","Сбытовая компания"]
[794,"МУП \"ЖКХ\" сельского поселения Хатанга","2469012194","246901001","Сетевая компания"]
[795,"МУП \"ЖКХ\" сельского поселения Хатанга","2469012194","246901001","Станция - поставщик ЭЭ"]
[796,"МУП \"ЖКХ\" сельского поселения Хатанга","2469012194","246901001","ЭСО"]
[797,"МУП \"Хатанга-Энергия\"","8403001604","840301001","Региональная генерация"]
[798,"МУП \"Хатанга-Энергия\"","8403001604","840301001","ЭСО"]
[799,"ОАО \"Полярная геологоразведочная экспедиция\"","2469001756","246901001","Станция - поставщик ЭЭ"]
[800,"ОАО \"Полярная геологоразведочная экспедиция\"","2469001756","246901001","Сбытовая компания"]
[801,"ОАО \"Полярная геологоразведочная экспедиция\"","2469001756","246901001","Региональная генерация"]
[802,"ОАО \"Полярная геологоразведочная экспедиция\"","2469001756","246901001","ЭСО"]
[803,"ОАО \"Полярная геологоразведочная экспедиция\"","2469001756","246901001","Сетевая компания"]
[804,"ООО \"Скиф\"","2469002502","246901001","Региональная генерация"]
[805,"ООО \"Скиф\"","2469002502","246901001","Станция - поставщик ЭЭ"]
[806,"ООО \"Таймырэнергоресурс\"","2469002679","246901001","Региональная генерация"]
[807,"ООО \"Таймырэнергоресурс\"","2469002679","246901001","Станция - поставщик ЭЭ"]
[808,"ООО \"УК \"ЭнергобытСервис\"","2469003175","246901001","Региональная генерация"]
[809,"ООО \"УК \"ЭнергобытСервис\"","2469003175","246901001","Станция - поставщик ЭЭ"]
[810,"ООО \"Энергия\"","2411024040","246901001","Станция - поставщик ЭЭ"]
[811,"ООО \"Энергия\"","2411024040","246901001","Региональная генерация"]
[812,"ООО «Лестрест»","2436004046","243601001","Региональная генерация"]
[813,"ИП Димитриадис","243601720761","отсутствует","Региональная генерация"]
[814,"ИП Димитриадис","243601720761","отсутствует","Сетевая компания"]
[815,"ИП Димитриадис","243601720761","отсутствует","Станция - поставщик ЭЭ"]
[816,"ИП Соловьев","243601230478","243601001","Региональная генерация"]
[817,"ИП Соловьев","243601230478","243601001","ЭСО"]
[818,"ДЭС Изолированных территорий","2466070303","246501001","Региональная генерация"]
[819,"ОАО \"Туруханскэнерго\"","2437004384","243701001","Сбытовая компания"]
[820,"ОАО \"Туруханскэнерго\"","2437004384","243701001","Региональная генерация"]
[821,"ОАО \"Туруханскэнерго\"","2437004384","243701001","Станция - поставщик ЭЭ"]
[822,"ООО \"ТуруханскЭнергоком\"","2437005236","243701001","Станция - поставщик ЭЭ"]
[823,"ООО \"ТуруханскЭнергоком\"","2437005236","243701001","Региональная генерация"]
[824,"ДЭС Изолированных территорий","2466070303","246501001","Региональная генерация"]
[825,"ОАО \"Туруханскэнерго\"","2437004384","243701001","Сбытовая компания"]
[826,"ОАО \"Туруханскэнерго\"","2437004384","243701001","Региональная генерация"]
[827,"ОАО \"Туруханскэнерго\"","2437004384","243701001","Станция - поставщик ЭЭ"]
[828,"ООО \"ТуруханскЭнергоком\"","2437005236","243701001","Региональная генерация"]
[829,"ООО \"ТуруханскЭнергоком\"","2437005236","243701001","Станция - поставщик ЭЭ"]
[830,"ДЭС Изолированных территорий","2466070303","246501001","Региональная генерация"]
[831,"ОАО \"Туруханскэнерго\"","2437004384","243701001","Региональная генерация"]
[832,"ОАО \"Туруханскэнерго\"","2437004384","243701001","Станция - поставщик ЭЭ"]
[833,"ОАО \"Туруханскэнерго\"","2437004384","243701001","Сбытовая компания"]
[834,"ООО \"ТуруханскЭнергоком\"","2437005236","243701001","Станция - поставщик ЭЭ"]
[835,"ООО \"ТуруханскЭнергоком\"","2437005236","243701001","Региональная генерация"]
[836,"ДЭС Изолированных территорий","2466070303","246501001","Региональная генерация"]
[837,"ООО \"ТуруханскЭнергоком\"","2437005236","243701001","Региональная генерация"]
[838,"ООО \"ТуруханскЭнергоком\"","2437005236","243701001","Станция - поставщик ЭЭ"]
[839,"ООО \"Энергопром\"","2449002945","244901001","Сбытовая компания"]
[840,"ДЭС Изолированных территорий","2466070303","246501001","Региональная генерация"]
[841,"ОАО \"Туруханскэнерго\"","2437004384","243701001","Региональная генерация"]
[842,"ОАО \"Туруханскэнерго\"","2437004384","243701001","Сбытовая компания"]
[843,"ОАО \"Туруханскэнерго\"","2437004384","243701001","Станция - поставщик ЭЭ"]
[844,"ООО \"ТуруханскЭнергоком\"","2437005236","243701001","Региональная генерация"]
[845,"ООО \"ТуруханскЭнергоком\"","2437005236","243701001","Станция - поставщик ЭЭ"]
[846,"ООО \"ТуруханскЭнергоком\"","2437005236","243701001","Региональная генерация"]
[847,"ООО \"ТуруханскЭнергоком\"","2437005236","243701001","Станция - поставщик ЭЭ"]
[848,"ДЭС Изолированных территорий","2466070303","246501001","Региональная генерация"]
[849,"ЗАО \"Ванкорнефть\"","2437261631","245701001","Региональная генерация"]
[850,"ОАО \"Туруханскэнерго\"","2437004384","243701001","Станция - поставщик ЭЭ"]
[851,"ОАО \"Туруханскэнерго\"","2437004384","243701001","Сбытовая компания"]
[852,"ОАО \"Туруханскэнерго\"","2437004384","243701001","Региональная генерация"]
[853,"ООО \"ТуруханскЭнергоком\"","2437005236","243701001","Региональная генерация"]
[854,"ООО \"ТуруханскЭнергоком\"","2437005236","243701001","Станция - поставщик ЭЭ"]
[855,"АО \"Норильско-Таймырская энергетическая компания\"","2457058356","245701001","Региональная генерация"]
[856,"АО \"Норильско-Таймырская энергетическая компания\"","2457058356","245701001","Сбытовая компания"]
[857,"АО \"Норильско-Таймырская энергетическая компания\"","2457058356","245701001","Сетевая компания"]
[858,"АО \"Норильско-Таймырская энергетическая компания\"","2457058356","245701001","Станция - поставщик ЭЭ"]
[859,"АО \"Норильско-Таймырская энергетическая компания\"","2457058356","245701001","ЭСО"]
[860,"ДЭС Изолированных территорий","2466070303","246501001","Региональная генерация"]
[861,"ООО \"ТуруханскЭнергоком\"","2437005236","243701001","Региональная генерация"]
[862,"ООО \"ТуруханскЭнергоком\"","2437005236","243701001","Станция - поставщик ЭЭ"]
[863,"АО «Транснефть - Западная Сибирь»","5502020634","246603001","Сетевая компания"]
[864,"ООО \"Грамадский щебеночный карьер\"","2440006328","246601001","Сетевая компания"]
[865,"ПАО \"Юнипро\"","8602067092","245902002","Региональная генерация"]
[866,"ПАО \"Юнипро\"","8602067092","245902002","Станция - поставщик ЭЭ"]
[867,"МУП \"Шушенские ТЭС\"","2442000890","244201001","Сетевая компания"]
[868,"АО \"Енисейская ТГК (ТГК-13)\"","1901067718","246750001","Региональная генерация"]
[869,"АО \"Енисейская ТГК (ТГК-13)\"","1901067718","246750001","Станция - поставщик ЭЭ"]
[870,"АО \"Енисейская ТГК (ТГК-13)\"","1901067718","246750001","Сбытовая компания"]
[871,"МУП \"Шушенские ТЭС\"","2442000890","244201001","Сетевая компания"]
[872,"ОАО \"Южно-Енисейские тепловые сети\"","2460237860","246001001","Сбытовая компания"]
[873,"МУП \"Шушенские ТЭС\"","2442000890","244201001","Сетевая компания"]
[874,"МУП \"Шушенские ТЭС\"","2442000890","244201001","Сетевая компания"]
[875,"МУП \"Шушенские ТЭС\"","2442000890","244201001","Сетевая компания"]
[876,"МУП \"Шушенские ТЭС\"","2442000890","244201001","Сетевая компания"]
[877,"МУП \"Шушенские ТЭС\"","2442000890","244201001","Сетевая компания"]
[878,"АО  \"Красноярская региональная энергетическая компания\"","2460087269","246001001","Сетевая компания"]
[879,"АО  \"Красноярская региональная энергетическая компания\"","2460087269","246001001","Региональная генерация"]
[880,"АО  \"Красноярская региональная энергетическая компания\"","2460087269","246001001","ЭСО"]
[881,"АО \"Енисейская ТГК (ТГК-13)\"","1901067718","246750001","Региональная генерация"]
[882,"АО \"Енисейская ТГК (ТГК-13)\"","1901067718","246750001","Сбытовая компания"]
[883,"АО \"Енисейская ТГК (ТГК-13)\"","1901067718","246750001","Станция - поставщик ЭЭ"]
[884,"МУП \"Шушенские ТЭС\"","2442000890","244201001","Сетевая компания"]
[885,"ОАО \"Южно-Енисейские тепловые сети\"","2460237860","246001001","Сбытовая компания"]
[886,"ООО \"ВанавараЭнергоком\"","7701972840","247001001","Региональная генерация"]
[887,"ООО \"ВанавараЭнергоком\"","7701972840","247001001","Сбытовая компания"]
[888,"ООО \"ВанавараЭнергоком\"","7701972840","247001001","ЭСО"]
[889,"ООО \"ВанавараЭнергоком\"","7701972840","247001001","Станция - поставщик ЭЭ"]
[890,"ООО \"ВанавараЭнергоком\"","7701972840","247001001","Сетевая компания"]
[891,"ДЭС Изолированных территорий","2466070303","246501001","Региональная генерация"]
[892,"ООО \"ВанавараЭнергоком\"","7701972840","247001001","ЭСО"]
[893,"ООО \"ВанавараЭнергоком\"","7701972840","247001001","Сетевая компания"]
[894,"ООО \"ВанавараЭнергоком\"","7701972840","247001001","Станция - поставщик ЭЭ"]
[895,"ООО \"ВанавараЭнергоком\"","7701972840","247001001","Региональная генерация"]
[896,"ООО \"ВанавараЭнергоком\"","7701972840","247001001","Сбытовая компания"]
[897,"ДЭС Изолированных территорий","2466070303","246501001","Региональная генерация"]
[898,"ООО \"ВанавараЭнергоком\"","7701972840","247001001","Региональная генерация"]
[899,"ООО \"ВанавараЭнергоком\"","7701972840","247001001","Сбытовая компания"]
[900,"ООО \"ВанавараЭнергоком\"","7701972840","247001001","Сетевая компания"]
[901,"ООО \"ВанавараЭнергоком\"","7701972840","247001001","Станция - поставщик ЭЭ"]
[902,"ООО \"ВанавараЭнергоком\"","7701972840","247001001","ЭСО"]
[903,"ООО \"ВанавараЭнергоком\"","7701972840","247001001","Сбытовая компания"]
[904,"ООО \"ВанавараЭнергоком\"","7701972840","247001001","Региональная генерация"]
[905,"ООО \"ВанавараЭнергоком\"","7701972840","247001001","Сетевая компания"]
[906,"ООО \"ВанавараЭнергоком\"","7701972840","247001001","ЭСО"]
[907,"ООО \"ВанавараЭнергоком\"","7701972840","247001001","Станция - поставщик ЭЭ"]
[908,"ДЭС Изолированных территорий","2466070303","246501001","Региональная генерация"]
[909,"ООО \"ВанавараЭнергоком\"","7701972840","247001001","Региональная генерация"]
[910,"ООО \"ВанавараЭнергоком\"","7701972840","247001001","Сбытовая компания"]
[911,"ООО \"ВанавараЭнергоком\"","7701972840","247001001","Станция - поставщик ЭЭ"]
[912,"ООО \"ВанавараЭнергоком\"","7701972840","247001001","Сетевая компания"]
[913,"ООО \"ВанавараЭнергоком\"","7701972840","247001001","ЭСО"]
[914,"ООО \"ВанавараЭнергоком\"","7701972840","247001001","Региональная генерация"]
[915,"ООО \"ВанавараЭнергоком\"","7701972840","247001001","Сбытовая компания"]
[916,"ООО \"ВанавараЭнергоком\"","7701972840","247001001","ЭСО"]
[917,"ООО \"ВанавараЭнергоком\"","7701972840","247001001","Станция - поставщик ЭЭ"]
[918,"ООО \"ВанавараЭнергоком\"","7701972840","247001001","Сетевая компания"]
[919,"ДЭС Изолированных территорий","2466070303","246501001","Региональная генерация"]
[920,"ООО \"ВанавараЭнергоком\"","7701972840","247001001","ЭСО"]
[921,"ООО \"ВанавараЭнергоком\"","7701972840","247001001","Сетевая компания"]
[922,"ООО \"ВанавараЭнергоком\"","7701972840","247001001","Станция - поставщик ЭЭ"]
[923,"ООО \"ВанавараЭнергоком\"","7701972840","247001001","Региональная генерация"]
[924,"ООО \"ВанавараЭнергоком\"","7701972840","247001001","Сбытовая компания"]
[925,"ООО \"ВанавараЭнергоком\"","7701972840","247001001","Региональная генерация"]
[926,"ООО \"ВанавараЭнергоком\"","7701972840","247001001","Сбытовая компания"]
[927,"ООО \"ВанавараЭнергоком\"","7701972840","247001001","Сетевая компания"]
[928,"ООО \"ВанавараЭнергоком\"","7701972840","247001001","Станция - поставщик ЭЭ"]
[929,"ООО \"ВанавараЭнергоком\"","7701972840","247001001","ЭСО"]
[930,"ДЭС Изолированных территорий","2466070303","246501001","Региональная генерация"]
[931,"ООО \"ВанавараЭнергоком\"","7701972840","247001001","Региональная генерация"]
[932,"ООО \"ВанавараЭнергоком\"","7701972840","247001001","Сбытовая компания"]
[933,"ООО \"ВанавараЭнергоком\"","7701972840","247001001","Сетевая компания"]
[934,"ООО \"ВанавараЭнергоком\"","7701972840","247001001","Станция - поставщик ЭЭ"]
[935,"ООО \"ВанавараЭнергоком\"","7701972840","247001001","ЭСО"]
[936,"ДЭС Изолированных территорий","2466070303","246501001","Региональная генерация"]
[937,"МП ЭМР \"Байкитэнерго\"","8802000955","880201001","ЭСО"]
[938,"МП ЭМР \"Байкитэнерго\"","8802000955","880201001","Станция - поставщик ЭЭ"]
[939,"МП ЭМР \"Байкитэнерго\"","8802000955","880201001","Сетевая компания"]
[940,"МП ЭМР \"Байкитэнерго\"","8802000955","880201001","Сбытовая компания"]
[941,"МП ЭМР \"Байкитэнерго\"","8802000955","880201001","Региональная генерация"]
[942,"ООО \"ВанавараЭнергоком\"","7701972840","247001001","Станция - поставщик ЭЭ"]
[943,"ООО \"ВанавараЭнергоком\"","7701972840","247001001","Сетевая компания"]
[944,"ООО \"ВанавараЭнергоком\"","7701972840","247001001","Сбытовая компания"]
[945,"ООО \"ВанавараЭнергоком\"","7701972840","247001001","Региональная генерация"]
[946,"ООО \"ВанавараЭнергоком\"","7701972840","247001001","ЭСО"]
[947,"ООО \"ВанавараЭнергоком\"","7701972840","247001001","Региональная генерация"]
[948,"ООО \"ВанавараЭнергоком\"","7701972840","247001001","Сбытовая компания"]
[949,"ООО \"ВанавараЭнергоком\"","7701972840","247001001","Сетевая компания"]
[950,"ООО \"ВанавараЭнергоком\"","7701972840","247001001","Станция - поставщик ЭЭ"]
[951,"ООО \"ВанавараЭнергоком\"","7701972840","247001001","ЭСО"]
[952,"ДЭС Изолированных территорий","2466070303","246501001","Региональная генерация"]
[953,"ООО \"ВанавараЭнергоком\"","7701972840","247001001","Региональная генерация"]
[954,"ООО \"ВанавараЭнергоком\"","7701972840","247001001","Сбытовая компания"]
[955,"ООО \"ВанавараЭнергоком\"","7701972840","247001001","Сетевая компания"]
[956,"ООО \"ВанавараЭнергоком\"","7701972840","247001001","Станция - поставщик ЭЭ"]
[957,"ООО \"ВанавараЭнергоком\"","7701972840","247001001","ЭСО"]
[958,"ДЭС Изолированных территорий","2466070303","246501001","Региональная генерация"]
[959,"МП ЭМР \"Байкитэнерго\"","8802000955","880201001","Региональная генерация"]
[960,"МП ЭМР \"Байкитэнерго\"","8802000955","880201001","Сбытовая компания"]
[961,"МП ЭМР \"Байкитэнерго\"","8802000955","880201001","Сетевая компания"]
[962,"МП ЭМР \"Байкитэнерго\"","8802000955","880201001","Станция - поставщик ЭЭ"]
[963,"МП ЭМР \"Байкитэнерго\"","8802000955","880201001","ЭСО"]
[964,"ООО \"ВанавараЭнергоком\"","7701972840","247001001","Станция - поставщик ЭЭ"]
[965,"ООО \"ВанавараЭнергоком\"","7701972840","247001001","Сетевая компания"]
[966,"ООО \"ВанавараЭнергоком\"","7701972840","247001001","Сбытовая компания"]
[967,"ООО \"ВанавараЭнергоком\"","7701972840","247001001","Региональная генерация"]
[968,"ООО \"ВанавараЭнергоком\"","7701972840","247001001","ЭСО"]
[969,"ДЭС Изолированных территорий","2466070303","246501001","Региональная генерация"]
[970,"МП ЭМР \"Илимпийские электросети\"","8801011136","880101001","Региональная генерация"]
[971,"МП ЭМР \"Илимпийские электросети\"","8801011136","880101001","ЭСО"]
[972,"ООО \"ВанавараЭнергоком\"","7701972840","247001001","Региональная генерация"]
[973,"ООО \"ВанавараЭнергоком\"","7701972840","247001001","Сбытовая компания"]
[974,"ООО \"ВанавараЭнергоком\"","7701972840","247001001","ЭСО"]
[975,"ООО \"ВанавараЭнергоком\"","7701972840","247001001","Станция - поставщик ЭЭ"]
[976,"ООО \"ВанавараЭнергоком\"","7701972840","247001001","Сетевая компания"]
[977,"ДЭС Изолированных территорий","2466070303","246501001","Региональная генерация"]
[978,"ООО \"ВанавараЭнергоком\"","7701972840","247001001","Региональная генерация"]
[979,"ООО \"ВанавараЭнергоком\"","7701972840","247001001","Станция - поставщик ЭЭ"]
[980,"ООО \"ВанавараЭнергоком\"","7701972840","247001001","Сетевая компания"]
[981,"ООО \"ВанавараЭнергоком\"","7701972840","247001001","Сбытовая компания"]
[982,"ООО \"ВанавараЭнергоком\"","7701972840","247001001","ЭСО"]
[983,"ООО \"ВанавараЭнергоком\"","7701972840","247001001","Станция - поставщик ЭЭ"]
[984,"ООО \"ВанавараЭнергоком\"","7701972840","247001001","Сетевая компания"]
[985,"ООО \"ВанавараЭнергоком\"","7701972840","247001001","Сбытовая компания"]
[986,"ООО \"ВанавараЭнергоком\"","7701972840","247001001","Региональная генерация"]
[987,"ООО \"ВанавараЭнергоком\"","7701972840","247001001","ЭСО"]
[988,"ООО \"ВанавараЭнергоком\"","7701972840","247001001","Региональная генерация"]
[989,"ООО \"ВанавараЭнергоком\"","7701972840","247001001","Сбытовая компания"]
[990,"ООО \"ВанавараЭнергоком\"","7701972840","247001001","Сетевая компания"]
[991,"ООО \"ВанавараЭнергоком\"","7701972840","247001001","Станция - поставщик ЭЭ"]
[992,"ООО \"ВанавараЭнергоком\"","7701972840","247001001","ЭСО"]
[993,"ДЭС Изолированных территорий","2466070303","246501001","Региональная генерация"]
[994,"ООО \"ВанавараЭнергоком\"","7701972840","247001001","Региональная генерация"]
[995,"ООО \"ВанавараЭнергоком\"","7701972840","247001001","Сбытовая компания"]
[996,"ООО \"ВанавараЭнергоком\"","7701972840","247001001","Сетевая компания"]
[997,"ООО \"ВанавараЭнергоком\"","7701972840","247001001","Станция - поставщик ЭЭ"]
[998,"ООО \"ВанавараЭнергоком\"","7701972840","247001001","ЭСО"]
[999,"ДЭС Изолированных территорий","2466070303","246501001","Региональная генерация"]
[1000,"ООО \"ВанавараЭнергоком\"","7701972840","247001001","Региональная генерация"]
[1001,"ООО \"ВанавараЭнергоком\"","7701972840","247001001","Сбытовая компания"]
[1002,"ООО \"ВанавараЭнергоком\"","7701972840","247001001","Сетевая компания"]
[1003,"ООО \"ВанавараЭнергоком\"","7701972840","247001001","Станция - поставщик ЭЭ"]
[1004,"ООО \"ВанавараЭнергоком\"","7701972840","247001001","ЭСО"]
[1005,"ДЭС Изолированных территорий","2466070303","246501001","Региональная генерация"]
[1006,"ООО \"ВанавараЭнергоком\"","7701972840","247001001","Региональная генерация"]
[1007,"ООО \"ВанавараЭнергоком\"","7701972840","247001001","Сбытовая компания"]
[1008,"ООО \"ВанавараЭнергоком\"","7701972840","247001001","Сетевая компания"]
[1009,"ООО \"ВанавараЭнергоком\"","7701972840","247001001","Станция - поставщик ЭЭ"]
[1010,"ООО \"ВанавараЭнергоком\"","7701972840","247001001","ЭСО"]
[1011,"АО  \"Красноярская региональная энергетическая компания\"","2460087269","246001001","Региональная генерация"]
[1012,"АО  \"Красноярская региональная энергетическая компания\"","2460087269","246001001","Сетевая компания"]
[1013,"АО  \"Красноярская региональная энергетическая компания\"","2460087269","246001001","ЭСО"]
[1014,"ДЭС Изолированных территорий","2466070303","246501001","Региональная генерация"]
[1015,"МП ЭМР \"Байкитэнерго\"","8802000955","880201001","ЭСО"]
[1016,"МП ЭМР \"Байкитэнерго\"","8802000955","880201001","Станция - поставщик ЭЭ"]
[1017,"МП ЭМР \"Байкитэнерго\"","8802000955","880201001","Сетевая компания"]
[1018,"МП ЭМР \"Байкитэнерго\"","8802000955","880201001","Региональная генерация"]
[1019,"МП ЭМР \"Байкитэнерго\"","8802000955","880201001","Сбытовая компания"]
[1020,"ООО \"ВанавараЭнергоком\"","7701972840","247001001","Станция - поставщик ЭЭ"]
[1021,"ООО \"ВанавараЭнергоком\"","7701972840","247001001","Сетевая компания"]
[1022,"ООО \"ВанавараЭнергоком\"","7701972840","247001001","Сбытовая компания"]
[1023,"ООО \"ВанавараЭнергоком\"","7701972840","247001001","Региональная генерация"]
[1024,"ООО \"ВанавараЭнергоком\"","7701972840","247001001","ЭСО"]
[1025,"ДЭС Изолированных территорий","2466070303","246501001","Региональная генерация"]
[1026,"МП ЭМР \"Ванавараэнерго\"","8803001655","880301001","ЭСО"]
[1027,"МП ЭМР \"Ванавараэнерго\"","8803001655","880301001","Региональная генерация"]
[1028,"ООО \"ВанавараЭнергоком\"","7701972840","247001001","Сетевая компания"]
[1029,"ООО \"ВанавараЭнергоком\"","7701972840","247001001","Сбытовая компания"]
[1030,"ООО \"ВанавараЭнергоком\"","7701972840","247001001","Региональная генерация"]
[1031,"ООО \"ВанавараЭнергоком\"","7701972840","247001001","Станция - поставщик ЭЭ"]
[1032,"ООО \"ВанавараЭнергоком\"","7701972840","247001001","ЭСО"]
[1033,"ООО \"ВанавараЭнергоком\"","7701972840","247001001","Региональная генерация"]
[1034,"ООО \"ВанавараЭнергоком\"","7701972840","247001001","Сбытовая компания"]
[1035,"ООО \"ВанавараЭнергоком\"","7701972840","247001001","Сетевая компания"]
[1036,"ООО \"ВанавараЭнергоком\"","7701972840","247001001","Станция - поставщик ЭЭ"]
[1037,"ООО \"ВанавараЭнергоком\"","7701972840","247001001","ЭСО"]
[1038,"АО \"АтомЭнергоСбыт\"","7704228075","772501001","Сбытовая компания"]
[1039,"АО \"Атомэнергопромсбыт\"","7725828549","772501001","Сбытовая компания"]
[1040,"АО \"ЕЭСнК\"","7727232575","771401001","Сбытовая компания"]
[1041,"АО \"ЕвроСибЭнерго\"","7706697347","244601001","Региональная генерация"]
[1042,"АО \"ЕвроСибЭнерго\"","7706697347","244601001","Станция - поставщик ЭЭ"]
[1043,"АО \"Енисейская ТГК (ТГК-13)\"","1901067718","246750001","Станция - поставщик ЭЭ"]
[1044,"АО \"Енисейская ТГК (ТГК-13)\"","1901067718","246750001","Сбытовая компания"]
[1045,"АО \"Енисейская ТГК (ТГК-13)\"","1901067718","246750001","Региональная генерация"]
[1046,"АО \"Канская ТЭЦ\"","2460237891","246050001","Региональная генерация"]
[1047,"АО \"Канская ТЭЦ\"","2460237891","246050001","Станция - поставщик ЭЭ"]
[1048,"АО \"Красноярская ТЭЦ-1\"","2460237926","246750001","Станция - поставщик ЭЭ"]
[1049,"АО \"Красноярская ТЭЦ-1\"","2460237926","246750001","Региональная генерация"]
[1050,"АО \"Назаровская ГРЭС\"","2460237901","246750001","Региональная генерация"]
[1051,"АО \"Назаровская ГРЭС\"","2460237901","246750001","Станция - поставщик ЭЭ"]
[1052,"АО \"Норильско-Таймырская энергетическая компания\"","2457058356","245701001","Сетевая компания"]
[1053,"АО \"Норильско-Таймырская энергетическая компания\"","2457058356","245701001","Станция - поставщик ЭЭ"]
[1054,"АО \"Норильско-Таймырская энергетическая компания\"","2457058356","245701001","Сбытовая компания"]
[1055,"АО \"Норильско-Таймырская энергетическая компания\"","2457058356","245701001","ЭСО"]
[1056,"АО \"Норильско-Таймырская энергетическая компания\"","2457058356","245701001","Региональная генерация"]
[1057,"АО \"Оборонэнергосбыт\"","7704731218","773043001","Сбытовая компания"]
[1058,"АО \"Русал Ачинск\"","2443005570","997550001","Региональная генерация"]
[1059,"АО \"Русал Ачинск\"","2443005570","997550001","Станция - поставщик ЭЭ"]
[1060,"АО \"Русал Ачинск\"","2443005570","997550001","Сетевая компания"]
[1061,"АО \"Сибурэнергоменеджмент\"","7727276526","366301001","Сбытовая компания"]
[1062,"АО \"Таймырбыт\"","8401011170","840101001","ЭСО"]
[1063,"АО \"Таймырбыт\"","8401011170","840101001","Сетевая компания"]
[1064,"АО \"Таймырбыт\"","8401011170","840101001","Сбытовая компания"]
[1065,"АО \"Таймырбыт\"","8401011170","840101001","Региональная генерация"]
[1066,"АО \"Таймырбыт\"","8401011170","840101001","Станция - поставщик ЭЭ"]
[1067,"АО «Транснефть - Западная Сибирь»","5502020634","246603001","Сетевая компания"]
[1068,"ДЭС Изолированных территорий","2466070303","246501001","Региональная генерация"]
[1069,"ЗАО \"ЗДК Полюс\"","2434000335","243401001","Региональная генерация"]
[1070,"ЗАО \"ЗДК Полюс\"","2434000335","243401001","ЭСО"]
[1071,"ЗАО \"Система\"","4205173700","420501001","Сбытовая компания"]
[1072,"ЗАО Лыжный стадион \"Ветлужанка\"","2463011331","246301001","Сетевая компания"]
[1073,"ИП Димитриадис","243601720761","отсутствует","Региональная генерация"]
[1074,"ИП Димитриадис","243601720761","отсутствует","Станция - поставщик ЭЭ"]
[1075,"ИП Димитриадис","243601720761","отсутствует","Сетевая компания"]
[1076,"МП ЗАТО Железногорск \"Гортеплоэнерго\"","2452024096","245201001","Сетевая компания"]
[1077,"МП ЭМР \"Байкитэнерго\"","8802000955","880201001","ЭСО"]
[1078,"МП ЭМР \"Байкитэнерго\"","8802000955","880201001","Региональная генерация"]
[1079,"МП ЭМР \"Байкитэнерго\"","8802000955","880201001","Сбытовая компания"]
[1080,"МП ЭМР \"Байкитэнерго\"","8802000955","880201001","Станция - поставщик ЭЭ"]
[1081,"МП ЭМР \"Байкитэнерго\"","8802000955","880201001","Сетевая компания"]
[1082,"МУП \"ЖКХ\" сельского поселения Хатанга","2469012194","246901001","Сбытовая компания"]
[1083,"МУП \"ЖКХ\" сельского поселения Хатанга","2469012194","246901001","Сетевая компания"]
[1084,"МУП \"ЖКХ\" сельского поселения Хатанга","2469012194","246901001","Региональная генерация"]
[1085,"МУП \"ЖКХ\" сельского поселения Хатанга","2469012194","246901001","ЭСО"]
[1086,"МУП \"ЖКХ\" сельского поселения Хатанга","2469012194","246901001","Станция - поставщик ЭЭ"]
[1087,"МУП \"Жилкомсервис\" г. Сосновоборск","2458008862","245801001","Сетевая компания"]
[1088,"МУП \"Коммунальные объединенные системы\"","2457029066","245701001","Сетевая компания"]
[1089,"МУП \"УКК\" Северо-Енисейского района\"","2434001177","243401001","Станция - поставщик ЭЭ"]
[1090,"МУП \"УКК\" Северо-Енисейского района\"","2434001177","243401001","Сетевая компания"]
[1091,"МУП \"УКК\" Северо-Енисейского района\"","2434001177","243401001","Сбытовая компания"]
[1092,"МУП \"УКК\" Северо-Енисейского района\"","2434001177","243401001","Региональная генерация"]
[1093,"МУП \"УКК\" Северо-Енисейского района\"","2434001177","243401001","ЭСО"]
[1094,"МУП \"Шушенские ТЭС\"","2442000890","244201001","Сетевая компания"]
[1095,"МУП \"ЭС\" г.Дивногорск","2446001206","244601001","Сетевая компания"]
[1096,"МУП сельского поселения Караул \"Коммунальщик\"","8404010136","840401001","Региональная генерация"]
[1097,"ОАО  \"Российские железные дороги\" в лице Красноярской дирекции по энергообеспечению-структурного подразделения \"Трансэнерго\" филиала ОАО \"РЖД\"","7708503727","246045007","Сетевая компания"]
[1098,"ОАО \"Дивногорские тепловые сети\"","2460237884","246001001","Сбытовая компания"]
[1099,"ОАО \"Красноярская электрокотельная\"","2460237845","246001001","Сбытовая компания"]
[1100,"ОАО \"Полярная геологоразведочная экспедиция\"","2469001756","246901001","ЭСО"]
[1101,"ОАО \"Полярная геологоразведочная экспедиция\"","2469001756","246901001","Сбытовая компания"]
[1102,"ОАО \"Полярная геологоразведочная экспедиция\"","2469001756","246901001","Сетевая компания"]
[1103,"ОАО \"Полярная геологоразведочная экспедиция\"","2469001756","246901001","Региональная генерация"]
[1104,"ОАО \"Полярная геологоразведочная экспедиция\"","2469001756","246901001","Станция - поставщик ЭЭ"]
[1105,"ОАО \"Туруханскэнерго\"","2437004384","243701001","Региональная генерация"]
[1106,"ОАО \"Туруханскэнерго\"","2437004384","243701001","Сбытовая компания"]
[1107,"ОАО \"Туруханскэнерго\"","2437004384","243701001","Станция - поставщик ЭЭ"]
[1108,"ОАО «ЭСК РусГидро»","7804403972","772801001","Сбытовая компания"]
[1109,"ООО \"ВанавараЭнергоком\"","7701972840","247001001","Сетевая компания"]
[1110,"ООО \"ВанавараЭнергоком\"","7701972840","247001001","Станция - поставщик ЭЭ"]
[1111,"ООО \"ВанавараЭнергоком\"","7701972840","247001001","Сбытовая компания"]
[1112,"ООО \"ВанавараЭнергоком\"","7701972840","247001001","ЭСО"]
[1113,"ООО \"ВанавараЭнергоком\"","7701972840","247001001","Региональная генерация"]
[1114,"ООО \"Генерация Т\"","2464262923","246401001","Региональная генерация"]
[1115,"ООО \"Генерация Т\"","2464262923","246401001","Станция - поставщик ЭЭ"]
[1116,"ООО \"ГлавЭнергоСбыт\"","7725571452","772501001","Сбытовая компания"]
[1117,"ООО \"Дизаж М\"","7728587330","772801001","Сбытовая компания"]
[1118,"ООО \"Енисейэнергоком\"","2447012666","244701001","ЭСО"]
[1119,"ООО \"Енисейэнергоком\"","2447012666","244701001","Станция - поставщик ЭЭ"]
[1120,"ООО \"Енисейэнергоком\"","2447012666","244701001","Сбытовая компания"]
[1121,"ООО \"Енисейэнергоком\"","2447012666","244701001","Региональная генерация"]
[1122,"ООО \"Енисейэнергоком\"","2447012666","244701001","Сетевая компания"]
[1123,"ООО \"КЛМ - Энерго\"","2466119189","246601001","Сетевая компания"]
[1124,"ООО \"Крамз-ТЕЛЕКОМ\"","2465050054","246501001","Сетевая компания"]
[1125,"ООО \"Красноярский жилищно-коммунальный комплекс\"","2466114215","246750001","Сетевая компания"]
[1126,"ООО \"Крассети\"","2460255883","246001001","Сетевая компания"]
[1127,"ООО \"ЛУКОЙЛ-ЭНЕРГОСЕРВИС\"","5030040730","503001000","Сбытовая компания"]
[1128,"ООО \"МАРЭМ+\"","7702387915","770201001","Сбытовая компания"]
[1129,"ООО \"НЖЭК\"","2457070804","245701001","Сетевая компания"]
[1130,"ООО \"ПолюсЭнергострой\"","2464121538","246401001","Сетевая компания"]
[1131,"ООО \"Поселенческие сети электроснабжения\"","2420008119","242001001","Региональная генерация"]
[1132,"ООО \"Поселенческие сети электроснабжения\"","2420008119","242001001","Сбытовая компания"]
[1133,"ООО \"Поселенческие сети электроснабжения\"","2420008119","242001001","Станция - поставщик ЭЭ"]
[1134,"ООО \"РН-Энерго\"","7706525041","772501001","Сбытовая компания"]
[1135,"ООО \"РУСАЛ Энерго\"","7709653059","770901001","Сбытовая компания"]
[1136,"ООО \"Региональная энергосбытовая компания\" (ОПП)","4633017746","463301001","Сбытовая компания"]
[1137,"ООО \"Русэнергоресурс\"","7706288496","770601001","Сбытовая компания"]
[1138,"ООО \"Русэнергосбыт\"","7706284124","770601001","Сбытовая компания"]
[1139,"ООО \"СКС\"","2463212510","246301001","Сетевая компания"]
[1140,"ООО \"ССК\"","2464118729","246401001","Сетевая компания"]
[1141,"ООО \"СеверныйБыт\"","2457072713","245701001","Сетевая компания"]
[1142,"ООО \"Сибэлектросталь\"","2461206247","246101001","Сетевая компания"]
[1143,"ООО \"Скиф\"","2469002502","246901001","Региональная генерация"]
[1144,"ООО \"Скиф\"","2469002502","246901001","Станция - поставщик ЭЭ"]
[1145,"ООО \"Таймырэнергоресурс\"","2469002679","246901001","Станция - поставщик ЭЭ"]
[1146,"ООО \"Таймырэнергоресурс\"","2469002679","246901001","Региональная генерация"]
[1147,"ООО \"Тепловые сети\"","2429002810","242901001","ЭСО"]
[1148,"ООО \"Тепловые сети\"","2429002810","242901001","Станция - поставщик ЭЭ"]
[1149,"ООО \"Тепловые сети\"","2429002810","242901001","Сбытовая компания"]
[1150,"ООО \"Тепловые сети\"","2429002810","242901001","Сетевая компания"]
[1151,"ООО \"Тепловые сети\"","2429002810","242901001","Региональная генерация"]
[1152,"ООО \"Теплосеть\"","2413007717","241301001","Станция - поставщик ЭЭ"]
[1153,"ООО \"Теплосеть\"","2413007717","241301001","Региональная генерация"]
[1154,"ООО \"ТранснефтьЭлектросетьСервис\"","6311049306","631101001","Сетевая компания"]
[1155,"ООО \"Транснефтьэнерго\"","7703552167","772301001","Сбытовая компания"]
[1156,"ООО \"ТуруханскЭнергоком\"","2437005236","243701001","Станция - поставщик ЭЭ"]
[1157,"ООО \"ТуруханскЭнергоком\"","2437005236","243701001","Региональная генерация"]
[1158,"ООО \"УК \"ЭнергобытСервис\"","2469003175","246901001","Станция - поставщик ЭЭ"]
[1159,"ООО \"УК \"ЭнергобытСервис\"","2469003175","246901001","Региональная генерация"]
[1160,"ООО \"УЭС УС-604\"","2453016531","245301001","Сетевая компания"]
[1161,"ООО \"Энергия\"","2411024040","246901001","Региональная генерация"]
[1162,"ООО \"Энергия\"","2411024040","246901001","Станция - поставщик ЭЭ"]
[1163,"ООО \"Энергопром\"","2449002945","244901001","Сбытовая компания"]
[1164,"ООО «ПЕСЧАНКА ЭНЕРГО»","2466172249","246601001","Сетевая компания"]
[1165,"ООО «Тепловая энергетическая компания»","2462206835","246201001","Сетевая компания"]
[1166,"ООО Енашиминская ГЭС","2434011217","243401001","Станция - поставщик ЭЭ"]
[1167,"ООО Енашиминская ГЭС","2434011217","243401001","Региональная генерация"]
[1168,"ООО Тепло-Сбыт-Сервис","2450012842","245001001","Станция - поставщик ЭЭ"]
[1169,"ООО Тепло-Сбыт-Сервис","2450012842","245001001","Региональная генерация"]
[1170,"ООО Торговый дом \"Маршал\"","2463087940","246601001","Сетевая компания"]
[1171,"ООО ЭСК «Энергия»","2452043606","245201001","Сетевая компания"]
[1172,"ПАО \"Мосэнергосбыт\"","7736520080","997450001","Сбытовая компания"]
[1173,"ПАО \"ФСК ЕЭС\"","4716016979","772801001","Сетевая компания"]
[1174,"ПАО \"ФСК ЕЭС\"","4716016979","997450001","Сетевая компания"]
[1175,"ПАО \"Юнипро\"","8602067092","245902002","Станция - поставщик ЭЭ"]
[1176,"ПАО \"Юнипро\"","8602067092","245902002","Региональная генерация"]
[1177,"ФГУП \" Горно-химический комбинат\"","2452000401","245201001","Сетевая компания"]
[1178,"Филиал ОАО \"Пивоваренная компания \"Балтика\" - \"Балтика - Пикра\"","7830001405","783450001","Сетевая компания"]
[1179,"Филиал ОАО \"Пивоваренная компания \"Балтика\" - \"Балтика - Пикра\"","7830001405","783450001","Сбытовая компания"]
[1180,"филиал \"Сибирский\" АО \"Оборонэнерго\"","7704726225","540643001","Сетевая компания"]

{"sheet":"REESTR_FILTERED","index":24,"n_rows":9,"n_cols":5,"rows_kept":9,"cut":false,"hidden":true,"merged":[]}
["№","ОРГАНИЗАЦИЯ","ИНН","КПП","ВИД ДЕЯТЕЛЬНОСТИ"]
[1,"ООО \"Красноярский Завод Проппантов\"","2443026756","244301001","Сетевая компания"]
[2,"АО \"Красноярский ДОК\"","2464004168","246401001","Сетевая компания"]
[3,"Красноярский научный центр СО РАН","2463002263","246301001","Сетевая компания"]
[4,"ОАО ПО \"Красноярский завод комбайнов\"","2460053936","246750001","Сетевая компания"]
[5,"ООО \"Красноярский жилищно-коммунальный комплекс\"","2466114215","246750001","Сетевая компания"]
[6,"ФГУП ПО Красноярский химический комбинат \"Енисей\"","2451000046","246201001","Сетевая компания"]
[7,"Химический завод - филиал ОАО  \"Красноярский машиностроительный завод\"","2462206345","245243001","Сетевая компания"]
[8,"ООО \"Красноярский жилищно-коммунальный комплекс\"","2466114215","246750001","Сетевая компания"]

{"sheet":"modfrmReestr","index":25,"n_rows":0,"n_cols":0,"rows_kept":0,"cut":false,"hidden":true,"merged":[]}

{"sheet":"modCommandButton","index":26,"n_rows":0,"n_cols":0,"rows_kept":0,"cut":false,"hidden":true,"merged":[]}

{"sheet":"AllSheetsInThisWorkbook","index":27,"n_rows":18,"n_cols":2,"rows_kept":18,"cut":false,"hidden":true,"merged":[]}
["Расчетные листы","Скрытые листы"]
["Инструкция","modHyp"]
["Выбор субъекта РФ","modUpdTemplMain"]
["Обновление","modHypShowHide"]
["Лог обновления","modChange"]
["Титульный","TEHSHEET"]
["Список листов","REESTR_ORG"]
["Ф.7.1","REESTR_FILTERED"]
["Ф.7.2","modfrmReestr"]
["Ф.8","modCommandButton"]
["Ф.9","AllSheetsInThisWorkbook"]
["Ф.10","modF_7_1"]
["Ф.11.1","modF_7_2"]
["Ф.11.2","modHandler"]
["Ф.12","modProv"]
["Ф.13"]
["Комментарий"]
["Проверка"]

{"sheet":"modF_7_1","index":28,"n_rows":0,"n_cols":0,"rows_kept":0,"cut":false,"hidden":true,"merged":[]}

{"sheet":"modF_7_2","index":29,"n_rows":0,"n_cols":0,"rows_kept":0,"cut":false,"hidden":true,"merged":[]}

{"sheet":"modHandler","index":30,"n_rows":0,"n_cols":0,"rows_kept":0,"cut":false,"hidden":true,"merged":[]}